Workbook

Sheet ⓪作成要領
A2: 1 | B2: エクセルの設定でマクロが無効になっている場合、マクロを有効化してください。
A3: 2 | B3: 「はじめに」シートについて、必要な箇所を入力・選択してください。
A4: 3 | B4: 全ての入力が終了したら、「作成開始」ボタンを押してください。入力内容が「参考様式７兼体制付表１－３」へ転記されます。
A5: 4 | B5: 「参考様式７兼体制付表１－３」では、各従業員が各職種で勤務する時間数を入力してください。
A6: 5 | B6: 「作成開始」ボタンを押下後、「はじめに」シートを修正する場合は、フィルターの解除（クリア）を行い、再度「はじめに」シートを入力し、「作成開始」ボタンを押下してください。

Sheet ①はじめに
C1: ↑マクロが無効になっている場合、マクロを有効化してください
A3: 1 | B3: 作成年月を入力してください | C3: 令和 | E3: 年 | G3: 月 | O3: ・・・ | P3: 入力する箇所
A4: 2 | B4: 事業所名を入力してください | O4: ・・・ | P4: 選択する箇所
A5: 3 | B5: 事業所番号を入力してください
A6: 4 | B6: 総定員を入力してください | H6: 人
A7: 5 | B7: 該当するサービスを選んでください
A8: 6 | B8: ④に、各住居ごとの前年度利用者数をそれぞれ入力してください。 | C8: ④のシートを住居ごとに入力
A9: 7 | B9: 1週間に当該事業所における常勤職員の勤務すべき時間数（就業規則上に定める時間数）を入力してください | H9: 時間 | I9: 10人
A10: 8 | B10: 管理者の情報を入力してください | C10: 名前 | F10: 勤務形態
C11: 福祉専門職員配置等加算 対象者 | E11: 勤続3年 | G11: 保有資格
A12: 9 | B12: 管理者が兼務する職種をすべて選択してください。 | C12: サービス 管理責任者 | D12: 世話人 | E12: 生活 支援員 | F12: 夜間 支援員 | G12: 日中 支援員 | H12: 加配要員
C13: FALSE | D13: FALSE | E13: FALSE | F13: FALSE | G13: FALSE | H13: FALSE
A14: 10 | B14: =IF($C$13=TRUE,I15,I14) -> 1人目のサービス管理責任者の情報を入力してください | C14: 名前 | F14: 勤務形態 | I14: 1人目のサービス管理責任者の情報を入力してください
C15: 福祉専門職員配置等加算 対象者 | E15: 勤続3年 | G15: 保有資格 | I15: 入力省略
A16: 11 | B16: =IF($C$13=TRUE,I17,I16) -> 1人目のサービス管理責任者が兼務する職種をすべて選択してください。 | D16: 世話人 | E16: 生活 支援員 | F16: 夜間 支援員 | G16: 日中 支援員 | H16: 加配要員 | I16: 1人目のサービス管理責任者が兼務する職種をすべて選択してください。
D17: FALSE | E17: FALSE | F17: FALSE | G17: FALSE | H17: FALSE | I17: 入力省略
A18: 12 | B18: 上記以外の従業者の数（頭数）を入力してください。 | D18: 人 | E18: =IF(C18>80,I18,"") ->  | I18: 従業員の数が80人を超える場合は指導監査課までご連絡ください。
A19: 13 | B19: １人目の従業者の情報を入力してください | C19: 名前 | F19: 勤務形態
C20: 福祉専門職員配置等加算 対象者 | E20: 勤続3年 | G20: 保有資格 | I20: 1
A21: 14 | B21: １人目の従業者が兼務する職種をすべて選択してください。 | C21: サービス 管理責任者 | D21: 世話人 | E21: 生活 支援員 | F21: 夜間 支援員 | G21: 日中 支援員 | H21: 加配要員 | M21: =IF(I23="有",L26,L28) -> ↑ 押してください
C22: FALSE | D22: FALSE | E22: FALSE | F22: FALSE | G22: FALSE | H22: FALSE
A23: 15 | B23: =IF(I23="有",+I25&J25,J28) -> 入力不要 | C23: 名前 | F23: 勤務形態 | I23: =IF(I25<=$C$18,"有","無") -> 無 | K23: =+I23 -> 無
C25: 福祉専門職員配置等加算 対象者 | E25: 勤続3年 | G25: 保有資格 | I25: =+I20+1 -> 2 | J25: 人目の従業者の情報を入力してください | K25: =+I23 -> 無
A26: 16 | B26: =IF(I23="有",+I25&J26,J28) -> 入力不要 | C26: サービス 管理責任者 | D26: 世話人 | E26: 生活 支援員 | F26: 夜間 支援員 | G26: 日中 支援員 | H26: 加配要員 | J26: 人目の従業者が兼務する職種をすべて選択してください。 | K26: =+I23 -> 無 | L26: ↑ まだ押さない | M26: =IF(I29="有",L26,L28) -> ↑ 押してください
C28: FALSE | D28: FALSE | E28: FALSE | F28: FALSE | G28: FALSE | H28: FALSE | J28: 入力不要 | K28: =+I23 -> 無 | L28: ↑ 押してください
A29: =+A26+1 -> 17 | B29: =IF(I29="有",+I31&J31,J34) -> 入力不要 | C29: 名前 | F29: 勤務形態 | I29: =IF(I31<=$C$18,"有","無") -> 無 | K29: =+I29 -> 無
C31: 福祉専門職員配置等加算 対象者 | E31: 勤続3年 | G31: 保有資格 | I31: =+I25+1 -> 3 | J31: 人目の従業者の情報を入力してください | K31: =+I29 -> 無
A32: =+A29+1 -> 18 | B32: =IF(I29="有",+I31&J32,J34) -> 入力不要 | C32: サービス 管理責任者 | D32: 世話人 | E32: 生活 支援員 | F32: 夜間 支援員 | G32: 日中 支援員 | H32: 加配要員 | J32: 人目の従業者が兼務する職種をすべて選択してください。 | K32: =+I29 -> 無 | L32: ↑ まだ押さない | M32: =IF(I35="有",L32,L34) -> ↑ 押してください
C34: FALSE | D34: FALSE | E34: FALSE | F34: FALSE | G34: FALSE | H34: FALSE | J34: 入力不要 | K34: =+I29 -> 無 | L34: ↑ 押してください
A35: =+A32+1 -> 19 | B35: =IF(I35="有",+I37&J37,J40) -> 入力不要 | C35: 名前 | F35: 勤務形態 | I35: =IF(I37<=$C$18,"有","無") -> 無 | K35: =+I35 -> 無
C37: 福祉専門職員配置等加算 対象者 | E37: 勤続3年 | G37: 保有資格 | I37: =+I31+1 -> 4 | J37: 人目の従業者の情報を入力してください | K37: =+I35 -> 無
A38: =+A35+1 -> 20 | B38: =IF(I35="有",+I37&J38,J40) -> 入力不要 | C38: サービス 管理責任者 | D38: 世話人 | E38: 生活 支援員 | F38: 夜間 支援員 | G38: 日中 支援員 | H38: 加配要員 | J38: 人目の従業者が兼務する職種をすべて選択してください。 | K38: =+I35 -> 無 | L38: ↑ まだ押さない | M38: =IF(I41="有",L38,L40) -> ↑ 押してください
C40: FALSE | D40: FALSE | E40: FALSE | F40: FALSE | G40: FALSE | H40: FALSE | J40: 入力不要 | K40: =+I35 -> 無 | L40: ↑ 押してください
A41: =+A38+1 -> 21 | B41: =IF(I41="有",+I43&J43,J46) -> 入力不要 | C41: 名前 | F41: 勤務形態 | I41: =IF(I43<=$C$18,"有","無") -> 無 | K41: =+I41 -> 無
C43: 福祉専門職員配置等加算 対象者 | E43: 勤続3年 | G43: 保有資格 | I43: =+I37+1 -> 5 | J43: 人目の従業者の情報を入力してください | K43: =+I41 -> 無
A44: =+A41+1 -> 22 | B44: =IF(I41="有",+I43&J44,J46) -> 入力不要 | C44: サービス 管理責任者 | D44: 世話人 | E44: 生活 支援員 | F44: 夜間 支援員 | G44: 日中 支援員 | H44: 加配要員 | J44: 人目の従業者が兼務する職種をすべて選択してください。 | K44: =+I41 -> 無 | L44: ↑ まだ押さない | M44: =IF(I47="有",L44,L46) -> ↑ 押してください
C46: FALSE | D46: FALSE | E46: FALSE | F46: FALSE | G46: FALSE | H46: FALSE | J46: 入力不要 | K46: =+I41 -> 無 | L46: ↑ 押してください
A47: =+A44+1 -> 23 | B47: =IF(I47="有",+I49&J49,J52) -> 入力不要 | C47: 名前 | F47: 勤務形態 | I47: =IF(I49<=$C$18,"有","無") -> 無 | K47: =+I47 -> 無
C49: 福祉専門職員配置等加算 対象者 | E49: 勤続3年 | G49: 保有資格 | I49: =+I43+1 -> 6 | J49: 人目の従業者の情報を入力してください | K49: =+I47 -> 無
A50: =+A47+1 -> 24 | B50: =IF(I47="有",+I49&J50,J52) -> 入力不要 | C50: サービス 管理責任者 | D50: 世話人 | E50: 生活 支援員 | F50: 夜間 支援員 | G50: 日中 支援員 | H50: 加配要員 | J50: 人目の従業者が兼務する職種をすべて選択してください。 | K50: =+I47 -> 無 | L50: ↑ まだ押さない | M50: =IF(I53="有",L50,L52) -> ↑ 押してください
C52: FALSE | D52: FALSE | E52: FALSE | F52: FALSE | G52: FALSE | H52: FALSE | J52: 入力不要 | K52: =+I47 -> 無 | L52: ↑ 押してください
A53: =+A50+1 -> 25 | B53: =IF(I53="有",+I55&J55,J58) -> 入力不要 | C53: 名前 | F53: 勤務形態 | I53: =IF(I55<=$C$18,"有","無") -> 無 | K53: =+I53 -> 無
C55: 福祉専門職員配置等加算 対象者 | E55: 勤続3年 | G55: 保有資格 | I55: =+I49+1 -> 7 | J55: 人目の従業者の情報を入力してください | K55: =+I53 -> 無
A56: =+A53+1 -> 26 | B56: =IF(I53="有",+I55&J56,J58) -> 入力不要 | C56: サービス 管理責任者 | D56: 世話人 | E56: 生活 支援員 | F56: 夜間 支援員 | G56: 日中 支援員 | H56: 加配要員 | J56: 人目の従業者が兼務する職種をすべて選択してください。 | K56: =+I53 -> 無 | L56: ↑ まだ押さない | M56: =IF(I59="有",L56,L58) -> ↑ 押してください
C58: FALSE | D58: FALSE | E58: FALSE | F58: FALSE | G58: FALSE | H58: FALSE | J58: 入力不要 | K58: =+I53 -> 無 | L58: ↑ 押してください
A59: =+A56+1 -> 27 | B59: =IF(I59="有",+I61&J61,J64) -> 入力不要 | C59: 名前 | F59: 勤務形態 | I59: =IF(I61<=$C$18,"有","無") -> 無 | K59: =+I59 -> 無
C61: 福祉専門職員配置等加算 対象者 | E61: 勤続3年 | G61: 保有資格 | I61: =+I55+1 -> 8 | J61: 人目の従業者の情報を入力してください | K61: =+I59 -> 無
A62: =+A59+1 -> 28 | B62: =IF(I59="有",+I61&J62,J64) -> 入力不要 | C62: サービス 管理責任者 | D62: 世話人 | E62: 生活 支援員 | F62: 夜間 支援員 | G62: 日中 支援員 | H62: 加配要員 | J62: 人目の従業者が兼務する職種をすべて選択してください。 | K62: =+I59 -> 無 | L62: ↑ まだ押さない | M62: =IF(I65="有",L62,L64) -> ↑ 押してください
C64: FALSE | D64: FALSE | E64: FALSE | F64: FALSE | G64: FALSE | H64: FALSE | J64: 入力不要 | K64: =+I59 -> 無 | L64: ↑ 押してください
A65: =+A62+1 -> 29 | B65: =IF(I65="有",+I67&J67,J70) -> 入力不要 | C65: 名前 | F65: 勤務形態 | I65: =IF(I67<=$C$18,"有","無") -> 無 | K65: =+I65 -> 無
C67: 福祉専門職員配置等加算 対象者 | E67: 勤続3年 | G67: 保有資格 | I67: =+I61+1 -> 9 | J67: 人目の従業者の情報を入力してください | K67: =+I65 -> 無
A68: =+A65+1 -> 30 | B68: =IF(I65="有",+I67&J68,J70) -> 入力不要 | C68: サービス 管理責任者 | D68: 世話人 | E68: 生活 支援員 | F68: 夜間 支援員 | G68: 日中 支援員 | H68: 加配要員 | J68: 人目の従業者が兼務する職種をすべて選択してください。 | K68: =+I65 -> 無 | L68: ↑ まだ押さない | M68: =IF(I71="有",L68,L70) -> ↑ 押してください
C70: FALSE | D70: FALSE | E70: FALSE | F70: FALSE | G70: FALSE | H70: FALSE | J70: 入力不要 | K70: =+I65 -> 無 | L70: ↑ 押してください
A71: =+A68+1 -> 31 | B71: =IF(I71="有",+I73&J73,J76) -> 入力不要 | C71: 名前 | F71: 勤務形態 | I71: =IF(I73<=$C$18,"有","無") -> 無 | K71: =+I71 -> 無
C73: 福祉専門職員配置等加算 対象者 | E73: 勤続3年 | G73: 保有資格 | I73: =+I67+1 -> 10 | J73: 人目の従業者の情報を入力してください | K73: =+I71 -> 無
A74: =+A71+1 -> 32 | B74: =IF(I71="有",+I73&J74,J76) -> 入力不要 | C74: サービス 管理責任者 | D74: 世話人 | E74: 生活 支援員 | F74: 夜間 支援員 | G74: 日中 支援員 | H74: 加配要員 | J74: 人目の従業者が兼務する職種をすべて選択してください。 | K74: =+I71 -> 無 | L74: ↑ まだ押さない | M74: =IF(I77="有",L74,L76) -> ↑ 押してください
C76: FALSE | D76: FALSE | E76: FALSE | F76: FALSE | G76: FALSE | H76: FALSE | J76: 入力不要 | K76: =+I71 -> 無 | L76: ↑ 押してください
A77: =+A74+1 -> 33 | B77: =IF(I77="有",+I79&J79,J82) -> 入力不要 | C77: 名前 | F77: 勤務形態 | I77: =IF(I79<=$C$18,"有","無") -> 無 | K77: =+I77 -> 無
C79: 福祉専門職員配置等加算 対象者 | E79: 勤続3年 | G79: 保有資格 | I79: =+I73+1 -> 11 | J79: 人目の従業者の情報を入力してください | K79: =+I77 -> 無
A80: =+A77+1 -> 34 | B80: =IF(I77="有",+I79&J80,J82) -> 入力不要 | C80: サービス 管理責任者 | D80: 世話人 | E80: 生活 支援員 | F80: 夜間 支援員 | G80: 日中 支援員 | H80: 加配要員 | J80: 人目の従業者が兼務する職種をすべて選択してください。 | K80: =+I77 -> 無 | L80: ↑ まだ押さない | M80: =IF(I83="有",L80,L82) -> ↑ 押してください
C82: FALSE | D82: FALSE | E82: FALSE | F82: FALSE | G82: FALSE | H82: FALSE | J82: 入力不要 | K82: =+I77 -> 無 | L82: ↑ 押してください
A83: =+A80+1 -> 35 | B83: =IF(I83="有",+I85&J85,J88) -> 入力不要 | C83: 名前 | F83: 勤務形態 | I83: =IF(I85<=$C$18,"有","無") -> 無 | K83: =+I83 -> 無
C85: 福祉専門職員配置等加算 対象者 | E85: 勤続3年 | G85: 保有資格 | I85: =+I79+1 -> 12 | J85: 人目の従業者の情報を入力してください | K85: =+I83 -> 無
A86: =+A83+1 -> 36 | B86: =IF(I83="有",+I85&J86,J88) -> 入力不要 | C86: サービス 管理責任者 | D86: 世話人 | E86: 生活 支援員 | F86: 夜間 支援員 | G86: 日中 支援員 | H86: 加配要員 | J86: 人目の従業者が兼務する職種をすべて選択してください。 | K86: =+I83 -> 無 | L86: ↑ まだ押さない | M86: =IF(I89="有",L86,L88) -> ↑ 押してください
C88: FALSE | D88: FALSE | E88: FALSE | F88: FALSE | G88: FALSE | H88: FALSE | J88: 入力不要 | K88: =+I83 -> 無 | L88: ↑ 押してください
A89: =+A86+1 -> 37 | B89: =IF(I89="有",+I91&J91,J94) -> 入力不要 | C89: 名前 | F89: 勤務形態 | I89: =IF(I91<=$C$18,"有","無") -> 無 | K89: =+I89 -> 無
C91: 福祉専門職員配置等加算 対象者 | E91: 勤続3年 | G91: 保有資格 | I91: =+I85+1 -> 13 | J91: 人目の従業者の情報を入力してください | K91: =+I89 -> 無
A92: =+A89+1 -> 38 | B92: =IF(I89="有",+I91&J92,J94) -> 入力不要 | C92: サービス 管理責任者 | D92: 世話人 | E92: 生活 支援員 | F92: 夜間 支援員 | G92: 日中 支援員 | H92: 加配要員 | J92: 人目の従業者が兼務する職種をすべて選択してください。 | K92: =+I89 -> 無 | L92: ↑ まだ押さない | M92: =IF(I95="有",L92,L94) -> ↑ 押してください
C94: FALSE | D94: FALSE | E94: FALSE | F94: FALSE | G94: FALSE | H94: FALSE | J94: 入力不要 | K94: =+I89 -> 無 | L94: ↑ 押してください
A95: =+A92+1 -> 39 | B95: =IF(I95="有",+I97&J97,J100) -> 入力不要 | C95: 名前 | F95: 勤務形態 | I95: =IF(I97<=$C$18,"有","無") -> 無 | K95: =+I95 -> 無
C97: 福祉専門職員配置等加算 対象者 | E97: 勤続3年 | G97: 保有資格 | I97: =+I91+1 -> 14 | J97: 人目の従業者の情報を入力してください | K97: =+I95 -> 無
A98: =+A95+1 -> 40 | B98: =IF(I95="有",+I97&J98,J100) -> 入力不要 | C98: サービス 管理責任者 | D98: 世話人 | E98: 生活 支援員 | F98: 夜間 支援員 | G98: 日中 支援員 | H98: 加配要員 | J98: 人目の従業者が兼務する職種をすべて選択してください。 | K98: =+I95 -> 無 | L98: ↑ まだ押さない | M98: =IF(I101="有",L98,L100) -> ↑ 押してください
C100: FALSE | D100: FALSE | E100: FALSE | F100: FALSE | G100: FALSE | H100: FALSE | J100: 入力不要 | K100: =+I95 -> 無 | L100: ↑ 押してください
A101: =+A98+1 -> 41 | B101: =IF(I101="有",+I103&J103,J106) -> 入力不要 | C101: 名前 | F101: 勤務形態 | I101: =IF(I103<=$C$18,"有","無") -> 無 | K101: =+I101 -> 無
C103: 福祉専門職員配置等加算 対象者 | E103: 勤続3年 | G103: 保有資格 | I103: =+I97+1 -> 15 | J103: 人目の従業者の情報を入力してください | K103: =+I101 -> 無
A104: =+A101+1 -> 42 | B104: =IF(I101="有",+I103&J104,J106) -> 入力不要 | C104: サービス 管理責任者 | D104: 世話人 | E104: 生活 支援員 | F104: 夜間 支援員 | G104: 日中 支援員 | H104: 加配要員 | J104: 人目の従業者が兼務する職種をすべて選択してください。 | K104: =+I101 -> 無 | L104: ↑ まだ押さない | M104: =IF(I107="有",L104,L106) -> ↑ 押してください
C106: FALSE | D106: FALSE | E106: FALSE | F106: FALSE | G106: FALSE | H106: FALSE | J106: 入力不要 | K106: =+I101 -> 無 | L106: ↑ 押してください
A107: =+A104+1 -> 43 | B107: =IF(I107="有",+I109&J109,J112) -> 入力不要 | C107: 名前 | F107: 勤務形態 | I107: =IF(I109<=$C$18,"有","無") -> 無 | K107: =+I107 -> 無
C109: 福祉専門職員配置等加算 対象者 | E109: 勤続3年 | G109: 保有資格 | I109: =+I103+1 -> 16 | J109: 人目の従業者の情報を入力してください | K109: =+I107 -> 無
A110: =+A107+1 -> 44 | B110: =IF(I107="有",+I109&J110,J112) -> 入力不要 | C110: サービス 管理責任者 | D110: 世話人 | E110: 生活 支援員 | F110: 夜間 支援員 | G110: 日中 支援員 | H110: 加配要員 | J110: 人目の従業者が兼務する職種をすべて選択してください。 | K110: =+I107 -> 無 | L110: ↑ まだ押さない | M110: =IF(I113="有",L110,L112) -> ↑ 押してください
C112: FALSE | D112: FALSE | E112: FALSE | F112: FALSE | G112: FALSE | H112: FALSE | J112: 入力不要 | K112: =+I107 -> 無 | L112: ↑ 押してください
A113: =+A110+1 -> 45 | B113: =IF(I113="有",+I115&J115,J118) -> 入力不要 | C113: 名前 | F113: 勤務形態 | I113: =IF(I115<=$C$18,"有","無") -> 無 | K113: =+I113 -> 無
C115: 福祉専門職員配置等加算 対象者 | E115: 勤続3年 | G115: 保有資格 | I115: =+I109+1 -> 17 | J115: 人目の従業者の情報を入力してください | K115: =+I113 -> 無
A116: =+A113+1 -> 46 | B116: =IF(I113="有",+I115&J116,J118) -> 入力不要 | C116: サービス 管理責任者 | D116: 世話人 | E116: 生活 支援員 | F116: 夜間 支援員 | G116: 日中 支援員 | H116: 加配要員 | J116: 人目の従業者が兼務する職種をすべて選択してください。 | K116: =+I113 -> 無 | L116: ↑ まだ押さない | M116: =IF(I119="有",L116,L118) -> ↑ 押してください
C118: FALSE | D118: FALSE | E118: FALSE | F118: FALSE | G118: FALSE | H118: FALSE | J118: 入力不要 | K118: =+I113 -> 無 | L118: ↑ 押してください
A119: =+A116+1 -> 47 | B119: =IF(I119="有",+I121&J121,J124) -> 入力不要 | C119: 名前 | F119: 勤務形態 | I119: =IF(I121<=$C$18,"有","無") -> 無 | K119: =+I119 -> 無
C121: 福祉専門職員配置等加算 対象者 | E121: 勤続3年 | G121: 保有資格 | I121: =+I115+1 -> 18 | J121: 人目の従業者の情報を入力してください | K121: =+I119 -> 無
A122: =+A119+1 -> 48 | B122: =IF(I119="有",+I121&J122,J124) -> 入力不要 | C122: サービス 管理責任者 | D122: 世話人 | E122: 生活 支援員 | F122: 夜間 支援員 | G122: 日中 支援員 | H122: 加配要員 | J122: 人目の従業者が兼務する職種をすべて選択してください。 | K122: =+I119 -> 無 | L122: ↑ まだ押さない | M122: =IF(I125="有",L122,L124) -> ↑ 押してください
C124: FALSE | D124: FALSE | E124: FALSE | F124: FALSE | G124: FALSE | H124: FALSE | J124: 入力不要 | K124: =+I119 -> 無 | L124: ↑ 押してください
A125: =+A122+1 -> 49 | B125: =IF(I125="有",+I127&J127,J130) -> 入力不要 | C125: 名前 | F125: 勤務形態 | I125: =IF(I127<=$C$18,"有","無") -> 無 | K125: =+I125 -> 無
C127: 福祉専門職員配置等加算 対象者 | E127: 勤続3年 | G127: 保有資格 | I127: =+I121+1 -> 19 | J127: 人目の従業者の情報を入力してください | K127: =+I125 -> 無
A128: =+A125+1 -> 50 | B128: =IF(I125="有",+I127&J128,J130) -> 入力不要 | C128: サービス 管理責任者 | D128: 世話人 | E128: 生活 支援員 | F128: 夜間 支援員 | G128: 日中 支援員 | H128: 加配要員 | J128: 人目の従業者が兼務する職種をすべて選択してください。 | K128: =+I125 -> 無 | L128: ↑ まだ押さない | M128: =IF(I131="有",L128,L130) -> ↑ 押してください
C130: FALSE | D130: FALSE | E130: FALSE | F130: FALSE | G130: FALSE | H130: FALSE | J130: 入力不要 | K130: =+I125 -> 無 | L130: ↑ 押してください
A131: =+A128+1 -> 51 | B131: =IF(I131="有",+I133&J133,J136) -> 入力不要 | C131: 名前 | F131: 勤務形態 | I131: =IF(I133<=$C$18,"有","無") -> 無 | K131: =+I131 -> 無
C133: 福祉専門職員配置等加算 対象者 | E133: 勤続3年 | G133: 保有資格 | I133: =+I127+1 -> 20 | J133: 人目の従業者の情報を入力してください | K133: =+I131 -> 無
A134: =+A131+1 -> 52 | B134: =IF(I131="有",+I133&J134,J136) -> 入力不要 | C134: サービス 管理責任者 | D134: 世話人 | E134: 生活 支援員 | F134: 夜間 支援員 | G134: 日中 支援員 | H134: 加配要員 | J134: 人目の従業者が兼務する職種をすべて選択してください。 | K134: =+I131 -> 無 | L134: ↑ まだ押さない | M134: =IF(I137="有",L134,L136) -> ↑ 押してください
C136: FALSE | D136: FALSE | E136: FALSE | F136: FALSE | G136: FALSE | H136: FALSE | J136: 入力不要 | K136: =+I131 -> 無 | L136: ↑ 押してください
A137: =+A134+1 -> 53 | B137: =IF(I137="有",+I139&J139,J142) -> 入力不要 | C137: 名前 | F137: 勤務形態 | I137: =IF(I139<=$C$18,"有","無") -> 無 | K137: =+I137 -> 無
C139: 福祉専門職員配置等加算 対象者 | E139: 勤続3年 | G139: 保有資格 | I139: =+I133+1 -> 21 | J139: 人目の従業者の情報を入力してください | K139: =+I137 -> 無
A140: =+A137+1 -> 54 | B140: =IF(I137="有",+I139&J140,J142) -> 入力不要 | C140: サービス 管理責任者 | D140: 世話人 | E140: 生活 支援員 | F140: 夜間 支援員 | G140: 日中 支援員 | H140: 加配要員 | J140: 人目の従業者が兼務する職種をすべて選択してください。 | K140: =+I137 -> 無 | L140: ↑ まだ押さない | M140: =IF(I143="有",L140,L142) -> ↑ 押してください
C142: FALSE | D142: FALSE | E142: FALSE | F142: FALSE | G142: FALSE | H142: FALSE | J142: 入力不要 | K142: =+I137 -> 無 | L142: ↑ 押してください
A143: =+A140+1 -> 55 | B143: =IF(I143="有",+I145&J145,J148) -> 入力不要 | C143: 名前 | F143: 勤務形態 | I143: =IF(I145<=$C$18,"有","無") -> 無 | K143: =+I143 -> 無
C145: 福祉専門職員配置等加算 対象者 | E145: 勤続3年 | G145: 保有資格 | I145: =+I139+1 -> 22 | J145: 人目の従業者の情報を入力してください | K145: =+I143 -> 無
A146: =+A143+1 -> 56 | B146: =IF(I143="有",+I145&J146,J148) -> 入力不要 | C146: サービス 管理責任者 | D146: 世話人 | E146: 生活 支援員 | F146: 夜間 支援員 | G146: 日中 支援員 | H146: 加配要員 | J146: 人目の従業者が兼務する職種をすべて選択してください。 | K146: =+I143 -> 無 | L146: ↑ まだ押さない | M146: =IF(I149="有",L146,L148) -> ↑ 押してください
C148: FALSE | D148: FALSE | E148: FALSE | F148: FALSE | G148: FALSE | H148: FALSE | J148: 入力不要 | K148: =+I143 -> 無 | L148: ↑ 押してください
A149: =+A146+1 -> 57 | B149: =IF(I149="有",+I151&J151,J154) -> 入力不要 | C149: 名前 | F149: 勤務形態 | I149: =IF(I151<=$C$18,"有","無") -> 無 | K149: =+I149 -> 無
C151: 福祉専門職員配置等加算 対象者 | E151: 勤続3年 | G151: 保有資格 | I151: =+I145+1 -> 23 | J151: 人目の従業者の情報を入力してください | K151: =+I149 -> 無
A152: =+A149+1 -> 58 | B152: =IF(I149="有",+I151&J152,J154) -> 入力不要 | C152: サービス 管理責任者 | D152: 世話人 | E152: 生活 支援員 | F152: 夜間 支援員 | G152: 日中 支援員 | H152: 加配要員 | J152: 人目の従業者が兼務する職種をすべて選択してください。 | K152: =+I149 -> 無 | L152: ↑ まだ押さない | M152: =IF(I155="有",L152,L154) -> ↑ 押してください
C154: FALSE | D154: FALSE | E154: FALSE | F154: FALSE | G154: FALSE | H154: FALSE | J154: 入力不要 | K154: =+I149 -> 無 | L154: ↑ 押してください
A155: =+A152+1 -> 59 | B155: =IF(I155="有",+I157&J157,J160) -> 入力不要 | C155: 名前 | F155: 勤務形態 | I155: =IF(I157<=$C$18,"有","無") -> 無 | K155: =+I155 -> 無
C157: 福祉専門職員配置等加算 対象者 | E157: 勤続3年 | G157: 保有資格 | I157: =+I151+1 -> 24 | J157: 人目の従業者の情報を入力してください | K157: =+I155 -> 無
A158: =+A155+1 -> 60 | B158: =IF(I155="有",+I157&J158,J160) -> 入力不要 | C158: サービス 管理責任者 | D158: 世話人 | E158: 生活 支援員 | F158: 夜間 支援員 | G158: 日中 支援員 | H158: 加配要員 | J158: 人目の従業者が兼務する職種をすべて選択してください。 | K158: =+I155 -> 無 | L158: ↑ まだ押さない | M158: =IF(I161="有",L158,L160) -> ↑ 押してください
C160: FALSE | D160: FALSE | E160: FALSE | F160: FALSE | G160: FALSE | H160: FALSE | J160: 入力不要 | K160: =+I155 -> 無 | L160: ↑ 押してください
A161: =+A158+1 -> 61 | B161: =IF(I161="有",+I163&J163,J166) -> 入力不要 | C161: 名前 | F161: 勤務形態 | I161: =IF(I163<=$C$18,"有","無") -> 無 | K161: =+I161 -> 無
C163: 福祉専門職員配置等加算 対象者 | E163: 勤続3年 | G163: 保有資格 | I163: =+I157+1 -> 25 | J163: 人目の従業者の情報を入力してください | K163: =+I161 -> 無
A164: =+A161+1 -> 62 | B164: =IF(I161="有",+I163&J164,J166) -> 入力不要 | C164: サービス 管理責任者 | D164: 世話人 | E164: 生活 支援員 | F164: 夜間 支援員 | G164: 日中 支援員 | H164: 加配要員 | J164: 人目の従業者が兼務する職種をすべて選択してください。 | K164: =+I161 -> 無 | L164: ↑ まだ押さない | M164: =IF(I167="有",L164,L166) -> ↑ 押してください
C166: FALSE | D166: FALSE | E166: FALSE | F166: FALSE | G166: FALSE | H166: FALSE | J166: 入力不要 | K166: =+I161 -> 無 | L166: ↑ 押してください
A167: =+A164+1 -> 63 | B167: =IF(I167="有",+I169&J169,J172) -> 入力不要 | C167: 名前 | F167: 勤務形態 | I167: =IF(I169<=$C$18,"有","無") -> 無 | K167: =+I167 -> 無
C169: 福祉専門職員配置等加算 対象者 | E169: 勤続3年 | G169: 保有資格 | I169: =+I163+1 -> 26 | J169: 人目の従業者の情報を入力してください | K169: =+I167 -> 無
A170: =+A167+1 -> 64 | B170: =IF(I167="有",+I169&J170,J172) -> 入力不要 | C170: サービス 管理責任者 | D170: 世話人 | E170: 生活 支援員 | F170: 夜間 支援員 | G170: 日中 支援員 | H170: 加配要員 | J170: 人目の従業者が兼務する職種をすべて選択してください。 | K170: =+I167 -> 無 | L170: ↑ まだ押さない | M170: =IF(I173="有",L170,L172) -> ↑ 押してください
C172: FALSE | D172: FALSE | E172: FALSE | F172: FALSE | G172: FALSE | H172: FALSE | J172: 入力不要 | K172: =+I167 -> 無 | L172: ↑ 押してください
A173: =+A170+1 -> 65 | B173: =IF(I173="有",+I175&J175,J178) -> 入力不要 | C173: 名前 | F173: 勤務形態 | I173: =IF(I175<=$C$18,"有","無") -> 無 | K173: =+I173 -> 無
C175: 福祉専門職員配置等加算 対象者 | E175: 勤続3年 | G175: 保有資格 | I175: =+I169+1 -> 27 | J175: 人目の従業者の情報を入力してください | K175: =+I173 -> 無
A176: =+A173+1 -> 66 | B176: =IF(I173="有",+I175&J176,J178) -> 入力不要 | C176: サービス 管理責任者 | D176: 世話人 | E176: 生活 支援員 | F176: 夜間 支援員 | G176: 日中 支援員 | H176: 加配要員 | J176: 人目の従業者が兼務する職種をすべて選択してください。 | K176: =+I173 -> 無 | L176: ↑ まだ押さない | M176: =IF(I179="有",L176,L178) -> ↑ 押してください
C178: FALSE | D178: FALSE | E178: FALSE | F178: FALSE | G178: FALSE | H178: FALSE | J178: 入力不要 | K178: =+I173 -> 無 | L178: ↑ 押してください
A179: =+A176+1 -> 67 | B179: =IF(I179="有",+I181&J181,J184) -> 入力不要 | C179: 名前 | F179: 勤務形態 | I179: =IF(I181<=$C$18,"有","無") -> 無 | K179: =+I179 -> 無
C181: 福祉専門職員配置等加算 対象者 | E181: 勤続3年 | G181: 保有資格 | I181: =+I175+1 -> 28 | J181: 人目の従業者の情報を入力してください | K181: =+I179 -> 無
A182: =+A179+1 -> 68 | B182: =IF(I179="有",+I181&J182,J184) -> 入力不要 | C182: サービス 管理責任者 | D182: 世話人 | E182: 生活 支援員 | F182: 夜間 支援員 | G182: 日中 支援員 | H182: 加配要員 | J182: 人目の従業者が兼務する職種をすべて選択してください。 | K182: =+I179 -> 無 | L182: ↑ まだ押さない | M182: =IF(I185="有",L182,L184) -> ↑ 押してください
C184: FALSE | D184: FALSE | E184: FALSE | F184: FALSE | G184: FALSE | H184: FALSE | J184: 入力不要 | K184: =+I179 -> 無 | L184: ↑ 押してください
A185: =+A182+1 -> 69 | B185: =IF(I185="有",+I187&J187,J190) -> 入力不要 | C185: 名前 | F185: 勤務形態 | I185: =IF(I187<=$C$18,"有","無") -> 無 | K185: =+I185 -> 無
C187: 福祉専門職員配置等加算 対象者 | E187: 勤続3年 | G187: 保有資格 | I187: =+I181+1 -> 29 | J187: 人目の従業者の情報を入力してください | K187: =+I185 -> 無
A188: =+A185+1 -> 70 | B188: =IF(I185="有",+I187&J188,J190) -> 入力不要 | C188: サービス 管理責任者 | D188: 世話人 | E188: 生活 支援員 | F188: 夜間 支援員 | G188: 日中 支援員 | H188: 加配要員 | J188: 人目の従業者が兼務する職種をすべて選択してください。 | K188: =+I185 -> 無 | L188: ↑ まだ押さない | M188: =IF(I191="有",L188,L190) -> ↑ 押してください
C190: FALSE | D190: FALSE | E190: FALSE | F190: FALSE | G190: FALSE | H190: FALSE | J190: 入力不要 | K190: =+I185 -> 無 | L190: ↑ 押してください
A191: =+A188+1 -> 71 | B191: =IF(I191="有",+I193&J193,J196) -> 入力不要 | C191: 名前 | F191: 勤務形態 | I191: =IF(I193<=$C$18,"有","無") -> 無 | K191: =+I191 -> 無
C193: 福祉専門職員配置等加算 対象者 | E193: 勤続3年 | G193: 保有資格 | I193: =+I187+1 -> 30 | J193: 人目の従業者の情報を入力してください | K193: =+I191 -> 無
A194: =+A191+1 -> 72 | B194: =IF(I191="有",+I193&J194,J196) -> 入力不要 | C194: サービス 管理責任者 | D194: 世話人 | E194: 生活 支援員 | F194: 夜間 支援員 | G194: 日中 支援員 | H194: 加配要員 | J194: 人目の従業者が兼務する職種をすべて選択してください。 | K194: =+I191 -> 無 | L194: ↑ まだ押さない | M194: =IF(I197="有",L194,L196) -> ↑ 押してください
C196: FALSE | D196: FALSE | E196: FALSE | F196: FALSE | G196: FALSE | H196: FALSE | J196: 入力不要 | K196: =+I191 -> 無 | L196: ↑ 押してください
A197: =+A194+1 -> 73 | B197: =IF(I197="有",+I199&J199,J202) -> 入力不要 | C197: 名前 | F197: 勤務形態 | I197: =IF(I199<=$C$18,"有","無") -> 無 | K197: =+I197 -> 無
C199: 福祉専門職員配置等加算 対象者 | E199: 勤続3年 | G199: 保有資格 | I199: =+I193+1 -> 31 | J199: 人目の従業者の情報を入力してください | K199: =+I197 -> 無
A200: =+A197+1 -> 74 | B200: =IF(I197="有",+I199&J200,J202) -> 入力不要 | C200: サービス 管理責任者 | D200: 世話人 | E200: 生活 支援員 | F200: 夜間 支援員 | G200: 日中 支援員 | H200: 加配要員 | J200: 人目の従業者が兼務する職種をすべて選択してください。 | K200: =+I197 -> 無 | L200: ↑ まだ押さない | M200: =IF(I203="有",L200,L202) -> ↑ 押してください
C202: FALSE | D202: FALSE | E202: FALSE | F202: FALSE | G202: FALSE | H202: FALSE | J202: 入力不要 | K202: =+I197 -> 無 | L202: ↑ 押してください
A203: =+A200+1 -> 75 | B203: =IF(I203="有",+I205&J205,J208) -> 入力不要 | C203: 名前 | F203: 勤務形態 | I203: =IF(I205<=$C$18,"有","無") -> 無 | K203: =+I203 -> 無
C205: 福祉専門職員配置等加算 対象者 | E205: 勤続3年 | G205: 保有資格 | I205: =+I199+1 -> 32 | J205: 人目の従業者の情報を入力してください | K205: =+I203 -> 無
A206: =+A203+1 -> 76 | B206: =IF(I203="有",+I205&J206,J208) -> 入力不要 | C206: サービス 管理責任者 | D206: 世話人 | E206: 生活 支援員 | F206: 夜間 支援員 | G206: 日中 支援員 | H206: 加配要員 | J206: 人目の従業者が兼務する職種をすべて選択してください。 | K206: =+I203 -> 無 | L206: ↑ まだ押さない | M206: =IF(I209="有",L206,L208) -> ↑ 押してください
C208: FALSE | D208: FALSE | E208: FALSE | F208: FALSE | G208: FALSE | H208: FALSE | J208: 入力不要 | K208: =+I203 -> 無 | L208: ↑ 押してください
A209: =+A206+1 -> 77 | B209: =IF(I209="有",+I211&J211,J214) -> 入力不要 | C209: 名前 | F209: 勤務形態 | I209: =IF(I211<=$C$18,"有","無") -> 無 | K209: =+I209 -> 無
C211: 福祉専門職員配置等加算 対象者 | E211: 勤続3年 | G211: 保有資格 | I211: =+I205+1 -> 33 | J211: 人目の従業者の情報を入力してください | K211: =+I209 -> 無
A212: =+A209+1 -> 78 | B212: =IF(I209="有",+I211&J212,J214) -> 入力不要 | C212: サービス 管理責任者 | D212: 世話人 | E212: 生活 支援員 | F212: 夜間 支援員 | G212: 日中 支援員 | H212: 加配要員 | J212: 人目の従業者が兼務する職種をすべて選択してください。 | K212: =+I209 -> 無 | L212: ↑ まだ押さない | M212: =IF(I215="有",L212,L214) -> ↑ 押してください
C214: FALSE | D214: FALSE | E214: FALSE | F214: FALSE | G214: FALSE | H214: FALSE | J214: 入力不要 | K214: =+I209 -> 無 | L214: ↑ 押してください
A215: =+A212+1 -> 79 | B215: =IF(I215="有",+I217&J217,J220) -> 入力不要 | C215: 名前 | F215: 勤務形態 | I215: =IF(I217<=$C$18,"有","無") -> 無 | K215: =+I215 -> 無
C217: 福祉専門職員配置等加算 対象者 | E217: 勤続3年 | G217: 保有資格 | I217: =+I211+1 -> 34 | J217: 人目の従業者の情報を入力してください | K217: =+I215 -> 無
A218: =+A215+1 -> 80 | B218: =IF(I215="有",+I217&J218,J220) -> 入力不要 | C218: サービス 管理責任者 | D218: 世話人 | E218: 生活 支援員 | F218: 夜間 支援員 | G218: 日中 支援員 | H218: 加配要員 | J218: 人目の従業者が兼務する職種をすべて選択してください。 | K218: =+I215 -> 無 | L218: ↑ まだ押さない | M218: =IF(I221="有",L218,L220) -> ↑ 押してください
C220: FALSE | D220: FALSE | E220: FALSE | F220: FALSE | G220: FALSE | H220: FALSE | J220: 入力不要 | K220: =+I215 -> 無 | L220: ↑ 押してください
A221: =+A218+1 -> 81 | B221: =IF(I221="有",+I223&J223,J226) -> 入力不要 | C221: 名前 | F221: 勤務形態 | I221: =IF(I223<=$C$18,"有","無") -> 無 | K221: =+I221 -> 無
C223: 福祉専門職員配置等加算 対象者 | E223: 勤続3年 | G223: 保有資格 | I223: =+I217+1 -> 35 | J223: 人目の従業者の情報を入力してください | K223: =+I221 -> 無
A224: =+A221+1 -> 82 | B224: =IF(I221="有",+I223&J224,J226) -> 入力不要 | C224: サービス 管理責任者 | D224: 世話人 | E224: 生活 支援員 | F224: 夜間 支援員 | G224: 日中 支援員 | H224: 加配要員 | J224: 人目の従業者が兼務する職種をすべて選択してください。 | K224: =+I221 -> 無 | L224: ↑ まだ押さない | M224: =IF(I227="有",L224,L226) -> ↑ 押してください
C226: FALSE | D226: FALSE | E226: FALSE | F226: FALSE | G226: FALSE | H226: FALSE | J226: 入力不要 | K226: =+I221 -> 無 | L226: ↑ 押してください
A227: =+A224+1 -> 83 | B227: =IF(I227="有",+I229&J229,J232) -> 入力不要 | C227: 名前 | F227: 勤務形態 | I227: =IF(I229<=$C$18,"有","無") -> 無 | K227: =+I227 -> 無
C229: 福祉専門職員配置等加算 対象者 | E229: 勤続3年 | G229: 保有資格 | I229: =+I223+1 -> 36 | J229: 人目の従業者の情報を入力してください | K229: =+I227 -> 無
A230: =+A227+1 -> 84 | B230: =IF(I227="有",+I229&J230,J232) -> 入力不要 | C230: サービス 管理責任者 | D230: 世話人 | E230: 生活 支援員 | F230: 夜間 支援員 | G230: 日中 支援員 | H230: 加配要員 | J230: 人目の従業者が兼務する職種をすべて選択してください。 | K230: =+I227 -> 無 | L230: ↑ まだ押さない | M230: =IF(I233="有",L230,L232) -> ↑ 押してください
C232: FALSE | D232: FALSE | E232: FALSE | F232: FALSE | G232: FALSE | H232: FALSE | J232: 入力不要 | K232: =+I227 -> 無 | L232: ↑ 押してください
A233: =+A230+1 -> 85 | B233: =IF(I233="有",+I235&J235,J238) -> 入力不要 | C233: 名前 | F233: 勤務形態 | I233: =IF(I235<=$C$18,"有","無") -> 無 | K233: =+I233 -> 無
C235: 福祉専門職員配置等加算 対象者 | E235: 勤続3年 | G235: 保有資格 | I235: =+I229+1 -> 37 | J235: 人目の従業者の情報を入力してください | K235: =+I233 -> 無
A236: =+A233+1 -> 86 | B236: =IF(I233="有",+I235&J236,J238) -> 入力不要 | C236: サービス 管理責任者 | D236: 世話人 | E236: 生活 支援員 | F236: 夜間 支援員 | G236: 日中 支援員 | H236: 加配要員 | J236: 人目の従業者が兼務する職種をすべて選択してください。 | K236: =+I233 -> 無 | L236: ↑ まだ押さない | M236: =IF(I239="有",L236,L238) -> ↑ 押してください
C238: FALSE | D238: FALSE | E238: FALSE | F238: FALSE | G238: FALSE | H238: FALSE | J238: 入力不要 | K238: =+I233 -> 無 | L238: ↑ 押してください
A239: =+A236+1 -> 87 | B239: =IF(I239="有",+I241&J241,J244) -> 入力不要 | C239: 名前 | F239: 勤務形態 | I239: =IF(I241<=$C$18,"有","無") -> 無 | K239: =+I239 -> 無
C241: 福祉専門職員配置等加算 対象者 | E241: 勤続3年 | G241: 保有資格 | I241: =+I235+1 -> 38 | J241: 人目の従業者の情報を入力してください | K241: =+I239 -> 無
A242: =+A239+1 -> 88 | B242: =IF(I239="有",+I241&J242,J244) -> 入力不要 | C242: サービス 管理責任者 | D242: 世話人 | E242: 生活 支援員 | F242: 夜間 支援員 | G242: 日中 支援員 | H242: 加配要員 | J242: 人目の従業者が兼務する職種をすべて選択してください。 | K242: =+I239 -> 無 | L242: ↑ まだ押さない | M242: =IF(I245="有",L242,L244) -> ↑ 押してください
C244: FALSE | D244: FALSE | E244: FALSE | F244: FALSE | G244: FALSE | H244: FALSE | J244: 入力不要 | K244: =+I239 -> 無 | L244: ↑ 押してください
A245: =+A242+1 -> 89 | B245: =IF(I245="有",+I247&J247,J250) -> 入力不要 | C245: 名前 | F245: 勤務形態 | I245: =IF(I247<=$C$18,"有","無") -> 無 | K245: =+I245 -> 無
C247: 福祉専門職員配置等加算 対象者 | E247: 勤続3年 | G247: 保有資格 | I247: =+I241+1 -> 39 | J247: 人目の従業者の情報を入力してください | K247: =+I245 -> 無
A248: =+A245+1 -> 90 | B248: =IF(I245="有",+I247&J248,J250) -> 入力不要 | C248: サービス 管理責任者 | D248: 世話人 | E248: 生活 支援員 | F248: 夜間 支援員 | G248: 日中 支援員 | H248: 加配要員 | J248: 人目の従業者が兼務する職種をすべて選択してください。 | K248: =+I245 -> 無 | L248: ↑ まだ押さない | M248: =IF(I251="有",L248,L250) -> ↑ 押してください
C250: FALSE | D250: FALSE | E250: FALSE | F250: FALSE | G250: FALSE | H250: FALSE | J250: 入力不要 | K250: =+I245 -> 無 | L250: ↑ 押してください
A251: =+A248+1 -> 91 | B251: =IF(I251="有",+I253&J253,J256) -> 入力不要 | C251: 名前 | F251: 勤務形態 | I251: =IF(I253<=$C$18,"有","無") -> 無 | K251: =+I251 -> 無
C253: 福祉専門職員配置等加算 対象者 | E253: 勤続3年 | G253: 保有資格 | I253: =+I247+1 -> 40 | J253: 人目の従業者の情報を入力してください | K253: =+I251 -> 無
A254: =+A251+1 -> 92 | B254: =IF(I251="有",+I253&J254,J256) -> 入力不要 | C254: サービス 管理責任者 | D254: 世話人 | E254: 生活 支援員 | F254: 夜間 支援員 | G254: 日中 支援員 | H254: 加配要員 | J254: 人目の従業者が兼務する職種をすべて選択してください。 | K254: =+I251 -> 無 | L254: ↑ まだ押さない | M254: =IF(I257="有",L254,L256) -> ↑ 押してください
C256: FALSE | D256: FALSE | E256: FALSE | F256: FALSE | G256: FALSE | H256: FALSE | J256: 入力不要 | K256: =+I251 -> 無 | L256: ↑ 押してください
A257: =+A254+1 -> 93 | B257: =IF(I257="有",+I259&J259,J262) -> 入力不要 | C257: 名前 | F257: 勤務形態 | I257: =IF(I259<=$C$18,"有","無") -> 無 | K257: =+I257 -> 無
C259: 福祉専門職員配置等加算 対象者 | E259: 勤続3年 | G259: 保有資格 | I259: =+I253+1 -> 41 | J259: 人目の従業者の情報を入力してください | K259: =+I257 -> 無
A260: =+A257+1 -> 94 | B260: =IF(I257="有",+I259&J260,J262) -> 入力不要 | C260: サービス 管理責任者 | D260: 世話人 | E260: 生活 支援員 | F260: 夜間 支援員 | G260: 日中 支援員 | H260: 加配要員 | J260: 人目の従業者が兼務する職種をすべて選択してください。 | K260: =+I257 -> 無 | L260: ↑ まだ押さない | M260: =IF(I263="有",L260,L262) -> ↑ 押してください
C262: FALSE | D262: FALSE | E262: FALSE | F262: FALSE | G262: FALSE | H262: FALSE | J262: 入力不要 | K262: =+I257 -> 無 | L262: ↑ 押してください
A263: =+A260+1 -> 95 | B263: =IF(I263="有",+I265&J265,J268) -> 入力不要 | C263: 名前 | F263: 勤務形態 | I263: =IF(I265<=$C$18,"有","無") -> 無 | K263: =+I263 -> 無
C265: 福祉専門職員配置等加算 対象者 | E265: 勤続3年 | G265: 保有資格 | I265: =+I259+1 -> 42 | J265: 人目の従業者の情報を入力してください | K265: =+I263 -> 無
A266: =+A263+1 -> 96 | B266: =IF(I263="有",+I265&J266,J268) -> 入力不要 | C266: サービス 管理責任者 | D266: 世話人 | E266: 生活 支援員 | F266: 夜間 支援員 | G266: 日中 支援員 | H266: 加配要員 | J266: 人目の従業者が兼務する職種をすべて選択してください。 | K266: =+I263 -> 無 | L266: ↑ まだ押さない | M266: =IF(I269="有",L266,L268) -> ↑ 押してください
C268: FALSE | D268: FALSE | E268: FALSE | F268: FALSE | G268: FALSE | H268: FALSE | J268: 入力不要 | K268: =+I263 -> 無 | L268: ↑ 押してください
A269: =+A266+1 -> 97 | B269: =IF(I269="有",+I271&J271,J274) -> 入力不要 | C269: 名前 | F269: 勤務形態 | I269: =IF(I271<=$C$18,"有","無") -> 無 | K269: =+I269 -> 無
C271: 福祉専門職員配置等加算 対象者 | E271: 勤続3年 | G271: 保有資格 | I271: =+I265+1 -> 43 | J271: 人目の従業者の情報を入力してください | K271: =+I269 -> 無
A272: =+A269+1 -> 98 | B272: =IF(I269="有",+I271&J272,J274) -> 入力不要 | C272: サービス 管理責任者 | D272: 世話人 | E272: 生活 支援員 | F272: 夜間 支援員 | G272: 日中 支援員 | H272: 加配要員 | J272: 人目の従業者が兼務する職種をすべて選択してください。 | K272: =+I269 -> 無 | L272: ↑ まだ押さない | M272: =IF(I275="有",L272,L274) -> ↑ 押してください
C274: FALSE | D274: FALSE | E274: FALSE | F274: FALSE | G274: FALSE | H274: FALSE | J274: 入力不要 | K274: =+I269 -> 無 | L274: ↑ 押してください
A275: =+A272+1 -> 99 | B275: =IF(I275="有",+I277&J277,J280) -> 入力不要 | C275: 名前 | F275: 勤務形態 | I275: =IF(I277<=$C$18,"有","無") -> 無 | K275: =+I275 -> 無
C277: 福祉専門職員配置等加算 対象者 | E277: 勤続3年 | G277: 保有資格 | I277: =+I271+1 -> 44 | J277: 人目の従業者の情報を入力してください | K277: =+I275 -> 無
A278: =+A275+1 -> 100 | B278: =IF(I275="有",+I277&J278,J280) -> 入力不要 | C278: サービス 管理責任者 | D278: 世話人 | E278: 生活 支援員 | F278: 夜間 支援員 | G278: 日中 支援員 | H278: 加配要員 | J278: 人目の従業者が兼務する職種をすべて選択してください。 | K278: =+I275 -> 無 | L278: ↑ まだ押さない | M278: =IF(I281="有",L278,L280) -> ↑ 押してください
C280: FALSE | D280: FALSE | E280: FALSE | F280: FALSE | G280: FALSE | H280: FALSE | J280: 入力不要 | K280: =+I275 -> 無 | L280: ↑ 押してください
A281: =+A278+1 -> 101 | B281: =IF(I281="有",+I283&J283,J286) -> 入力不要 | C281: 名前 | F281: 勤務形態 | I281: =IF(I283<=$C$18,"有","無") -> 無 | K281: =+I281 -> 無
C283: 福祉専門職員配置等加算 対象者 | E283: 勤続3年 | G283: 保有資格 | I283: =+I277+1 -> 45 | J283: 人目の従業者の情報を入力してください | K283: =+I281 -> 無
A284: =+A281+1 -> 102 | B284: =IF(I281="有",+I283&J284,J286) -> 入力不要 | C284: サービス 管理責任者 | D284: 世話人 | E284: 生活 支援員 | F284: 夜間 支援員 | G284: 日中 支援員 | H284: 加配要員 | J284: 人目の従業者が兼務する職種をすべて選択してください。 | K284: =+I281 -> 無 | L284: ↑ まだ押さない | M284: =IF(I287="有",L284,L286) -> ↑ 押してください
C286: FALSE | D286: FALSE | E286: FALSE | F286: FALSE | G286: FALSE | H286: FALSE | J286: 入力不要 | K286: =+I281 -> 無 | L286: ↑ 押してください
A287: =+A284+1 -> 103 | B287: =IF(I287="有",+I289&J289,J292) -> 入力不要 | C287: 名前 | F287: 勤務形態 | I287: =IF(I289<=$C$18,"有","無") -> 無 | K287: =+I287 -> 無
C289: 福祉専門職員配置等加算 対象者 | E289: 勤続3年 | G289: 保有資格 | I289: =+I283+1 -> 46 | J289: 人目の従業者の情報を入力してください | K289: =+I287 -> 無
A290: =+A287+1 -> 104 | B290: =IF(I287="有",+I289&J290,J292) -> 入力不要 | C290: サービス 管理責任者 | D290: 世話人 | E290: 生活 支援員 | F290: 夜間 支援員 | G290: 日中 支援員 | H290: 加配要員 | J290: 人目の従業者が兼務する職種をすべて選択してください。 | K290: =+I287 -> 無 | L290: ↑ まだ押さない | M290: =IF(I293="有",L290,L292) -> ↑ 押してください
... 137 more rows

Sheet ②参考様式７兼体制付表１－３
W1: ○ | BT1: （参考様式７兼体制付表１－３）
Y2: -1 | AO2: 令和 | AQ2: =+①はじめに!D3 -> 0 | AS2: 年 | AU2: 法人・事業所名 | BC2: =+①はじめに!C4 -> 0
AQ3: =+①はじめに!F3 -> 0 | AS3: 月 | AU3: 事業所番号 | BC3: =+①はじめに!C5 -> 0 | BK3: 定員 | BO3: =+①はじめに!C6 -> 0
D4: １ サービス類型 | Z4: ３ 利用者数
D5: =IF(①はじめに!C7="介護サービス包括型","○","") ->  | G5: 介護サービス包括型事業所 | AG5: 区分１以下 | AK5: 区分２ | AO5: 区分３ | AS5: 区分４ | AW5: 区分５ | BA5: 区分６ | BE5: 計
D6: =IF(①はじめに!C7="外部サービス利用型","○","") ->  | G6: 外部サービス利用型事業所 | Z6: 利用者数（平均） | AG6: =+③集計用!N18 -> 0 | AK6: =+③集計用!K18 -> 0 | AO6: =+③集計用!N17 -> 0 | AS6: =+③集計用!K17 -> 0 | AW6: =+③集計用!N16 -> 0 | BA6: =+③集計用!K16 -> 0 | BE6: =+③集計用!K15 -> 0 | BU6: =2018+$AQ$2 -> 2018 | BV6: / | BW6: =+$AQ$3 -> 0 | BX6: / | BY6: 1 | BZ6: =+BU6&BV6&BW6&BX6&BY6 -> 2018/0/1 | CA6: =WEEKDAY(BZ6,1) -> 
D7: =IF(①はじめに!C7="日中サービス支援型","○","") ->  | G7: 日中サービス支援型事業所 | AA7: 個人居宅介護利用者（再掲） | BE7: =SUM(AG7:BD7) -> 0
L8: =IF(COUNTIF(D5:F7,"○")>1,"いずれか１つを選択してください。","") ->  | Z8: 定員増人数 | BE8: =SUM(AG8:BD8) -> 0
Z9: 計 | AG9: =AG6+AG8 -> 0 | AK9: =AK6+AK8 -> 0 | AO9: =AO6+AO8 -> 0 | AS9: =AS6+AS8 -> 0 | AW9: =AW6+AW8 -> 0 | BA9: =BA6+BA8 -> 0 | BE9: =BE6+BE8 -> 0
D11: ２ 運営状況 | Z11: ４ 基準上置くべき従業者数 | AP11: ５ 当該事業所に基準上配置している従業者数 | BH11: ６ 加配している特定従業者数
F12: ①新設又は増改築等の時点から６か月未満 | AE12: 常勤換算数 | AL12: 特定従業者用の勤務延べ時間数 | AU12: 常勤換算数 | BB12: 特定従業者用の勤務延べ時間数 | BE12: 可否 | BM12: 特定従業者数換算数
F13: ②新設又は増改築等の時点から６か月以上１年未満 | AE13: 常勤換算に よる人数 | AI13: 勤務延べ 時間数/週 | AU13: 常勤換算に よる人数 | AY13: 勤務延べ 時間数/週 | BM13: 特定従業者数換算による人数 | BQ13: 勤務延べ 時間数
F14: ③新設又は増改築等の時点から１年以上 | Z14: 世話人６：１ | AE14: =IF((OR($D$5="○",$D$6="○")),ROUNDDOWN(((BE$6+BE$8*0.9))/6,1)) -> FALSE | AI14: =AE14*$BL$43 -> 0 | AL14: =AE14*40 -> 0 | AP14: 世話人６：１ | AU14: =IF((OR($D$5="○",$D$6="○")),$BD$549) -> FALSE | AY14: =AU14*$BL$43 -> 0 | BB14: =AU14*40 -> 0 | BE14: =IF((OR($D$5="○",$D$6="○")),IF(AE14<=AU14,"可","否")) -> FALSE | BH14: 世話人等 | BM14: =(ROUNDDOWN(BQ14/160,1)) -> 0 | BQ14: =$BL$548 -> 0
L15: =IF(COUNTIF(D12:E14,"○")>1,"いずれか１つを選択してください。","") ->  | Z15: 世話人５：１ | AE15: =IF((OR($D$7="○")),ROUNDDOWN((BE$6+BE$8*0.9)/5,1)) -> FALSE | AI15: =AE15*$BL$43 -> 0 | AL15: =AE15*40 -> 0 | AP15: 世話人５：１ | AU15: =IF(($D$7="○"),$BD$549) -> FALSE | AY15: =AU15*$BL$43 -> 0 | BB15: =AU15*40 -> 0 | BE15: =IF(($D$7="○"),IF(AE15<=AU15,"可","否")) -> FALSE | BH15: 合計 | BM15: =SUM(BM12:BP14) -> 0 | BQ15: =SUMIF(BQ12:BS14,"<>#VALUE!") -> 0
Z16: 生活支援員 | AE16: =IF($D$6="○","",ROUNDDOWN(($AO$6+$AO$8*0.9)/9,1)+ROUNDDOWN(($AS$6-$AS$7+$AS$8*0.9)/6,1)+ROUNDDOWN($AS$7/12,1)+ROUNDDOWN(($AW$6-$AW$7+$AW$8*0.9)/4,1)+ROUNDDOWN($AW$7/8,1)+ROUNDDOWN(($BA$6-$BA$7+$BA$8*0.9)/2.5,1)+ROUNDDOWN($BA$7/5,1)) -> 0 | AI16: =AE16*$BL$43 -> 0 | AL16: =AE16*40 -> 0 | AP16: 生活支援員 | AU16: =IF(($D$6="○"),"",$BH$549) ->  | AY16: =AU16*$BL$43 ->  | BB16: =AU16*40 ->  | BE16: =IF(($D$6="○"),"",IF(AE16<=AU16,"可","否")) -> 
Z17: 合計 | AE17: =SUM(AE14:AH16) -> 0 | AI17: =SUMIF(AI14:AK16,"<>#VALUE!") -> 0 | AL17: =SUMIF(AL14:AN16,"<>#VALUE!") -> 0 | AP17: 合計 | AU17: =SUM(AU14:AX16) ->  | AY17: =SUMIF(AY14:BA16,"<>#VALUE!") ->  | BB17: =SUMIF(BB14:BD16,"<>#VALUE!") -> 
D20: ７ 人員配置体制加算の算定における必要加配数 | Z20: 常勤換算方法による基準上おくべき従業者数において、当該事業所の常勤換算における所定労働時間が40時間未満であった場合に、特定従業者数換算方法により算出された場合の値との差分をいう。
W21: 調整数：
D24: 介護包括サービス型・外部サービス利用型 | AJ24: 日中サービス支援型 | CB24: 常勤・専従
D25: 12:1の場合 | I25: 特定従業者数 | M25: 勤務延べ時間 | T25: 30:1の場合 | Y25: 特定従業者数 | AC25: 勤務延べ時間 | AJ25: 7.5:1の場合 | AO25: 特定従業者数 | AS25: 勤務延べ時間 | AZ25: 20:1の場合 | BE25: 特定従業者数 | BI25: 勤務延べ時間 | CB25: 常勤・兼務
D26: 不足加配数 | I26: =(ROUNDDOWN(M26/40,1)) -> 0 | M26: =((((ROUNDDOWN($BE$9/12,1))*40)))*-1 -> 0 | T26: 不足加配数 | Y26: =(ROUNDDOWN(AC26/40,1)) -> 0 | AC26: =((((ROUNDDOWN($BE$9/30,1))*40)))*-1 -> 0 | AJ26: 不足加配数 | AO26: =(ROUNDDOWN(AS26/40,1)) -> 0 | AS26: =((((ROUNDDOWN($BE$9/7.5,1))*40)))*-1 -> 0 | AZ26: 不足加配数 | BE26: =(ROUNDDOWN(BI26/40,1)) -> 0 | BI26: =((((ROUNDDOWN($BE$9/20,1))*40)))*-1 -> 0 | CB26: 非常勤・専従
D27: 不足調整数 | I27: =(ROUNDDOWN(M27/40,1)) -> 0 | M27: =($AL$17-$AI$17)*-1 -> 0 | T27: 不足調整数 | Y27: =(ROUNDDOWN(AC27/40,1)) -> 0 | AC27: =($AL$17-$AI$17)*-1 -> 0 | AJ27: 不足調整数 | AO27: =(ROUNDDOWN(AS27/40,1)) -> 0 | AS27: =($AL$17-$AI$17)*-1 -> 0 | AZ27: 不足調整数 | BE27: =(ROUNDDOWN(BI27/40,1)) -> 0 | BI27: =($AL$17-$AI$17)*-1 -> 0 | CB27: 非常勤・兼務
D28: 基準人員余り | I28: =(ROUNDDOWN(M28/40,1)) ->  | M28: =+$AY$17-$AI$17 ->  | T28: 基準人員余り | Y28: =ROUNDDOWN(+AC28/40,2) ->  | AC28: =+$AY$17-$AI$17 ->  | AJ28: 基準人員余り | AO28: =ROUNDDOWN(+AS28/40,2) ->  | AS28: =+$AY$17-$AI$17 ->  | AZ28: 基準人員余り | BE28: =ROUNDDOWN(+BI28/40,2) ->  | BI28: =+$AY$17-$AI$17 -> 
D29: 加配状況 | I29: =(ROUNDDOWN(M29/40,1)) -> 0 | M29: =$BL$548/4 -> 0 | T29: 加配状況 | Y29: =(ROUNDDOWN(AC29/40,1)) -> 0 | AC29: =$BL$548/4 -> 0 | AJ29: 加配状況 | AO29: =(ROUNDDOWN(AS29/40,1)) -> 0 | AS29: =$BL$548/4 -> 0 | AZ29: 加配状況 | BE29: =(ROUNDDOWN(BI29/40,1)) -> 0 | BI29: =$BL$548/4 -> 0 | CB29: 介護福祉士
D30: 算定要件に対しての加配状況 | I30: =SUM(I26:L29) ->  | M30: =SUM(M26:P29) ->  | T30: 算定要件に対しての加配状況 | Y30: =SUM(Y26:AB29) ->  | AC30: =SUM(AC26:AF29) ->  | AJ30: 算定要件に対しての加配状況 | AO30: =SUM(AO26:AR29) ->  | AS30: =SUM(AS26:AV29) ->  | AZ30: 算定要件に対しての加配状況 | BE30: =SUM(BE26:BH29) ->  | BI30: =SUM(BI26:BL29) ->  | CB30: 社会福祉士
CB31: 精神保健福祉士
K32: 12:1 | N32: =IF(OR($BE$9>0,),IF(AND(OR($D$5="○",$D$6="○"),$I$30>=0),"可",IF(AND(OR($D$5="○",$D$6="○"),$I$30<0),"不可","")),"") ->  | AA32: 30:1 | AD32: =IF(OR($BE$9>0,),IF(AND(OR($D$5="○",$D$6="○"),$Y$30>=0),"可",IF(AND(OR($D$5="○",$D$6="○"),$Y$30<0),"不可","")),"") ->  | AQ32: 7.5:1 | AT32: =IF(OR($BE$9>0,),IF(AND(OR($D$7="○"),$AO$30>=0),"可",IF(AND(OR($D$7="○"),$AO$30<0),"不可","")),"") ->  | BG32: 20:1 | BJ32: =IF(OR($BE$9>0,),IF(AND(OR($D$7="○"),$BE$30>=0),"可",IF(AND(OR($D$7="○"),$BE$30<0),"不可","")),"") ->  | CB32: 公認心理師
CB33: 有
AT36: 従業者の職種・員数 | BD36: 世話人 | BH36: 生活支援員 | BL36: 加配要員
BD37: 専従 | BF37: 兼務 | BH37: 専従 | BJ37: 兼務 | BL37: 専従 | BN37: 兼務
AU38: 従業者数 | AX38: 常勤（人） | BD38: =+COUNTIFS($G$47:$G$539,BD36,$O$47:$O$539,"常勤・専従") -> 0 | BF38: =+COUNTIFS($G$47:$G$539,BD36,$O$47:$O$539,"常勤・兼務") -> 0 | BH38: =+COUNTIFS($G$47:$G$539,BH36,$O$47:$O$539,"常勤・専従") -> 0 | BJ38: =+COUNTIFS($G$47:$G$539,BH36,$O$47:$O$539,"常勤・兼務") -> 0 | BL38: =+COUNTIFS($G$47:$G$539,BL36,$O$47:$O$539,"常勤・専従") -> 0 | BN38: =+COUNTIFS($G$47:$G$539,BL36,$O$47:$O$539,"常勤・兼務") -> 0
AX39: 非常勤（人） | BD39: =+COUNTIFS($G$47:$G$539,BD36,$O$47:$O$539,"非常勤・専従") -> 0 | BF39: =+COUNTIFS($G$47:$G$539,BD36,$O$47:$O$539,"非常勤・兼務") -> 0 | BH39: =+COUNTIFS($G$47:$G$539,BH36,$O$47:$O$539,"非常勤・専従") -> 0 | BJ39: =+COUNTIFS($G$47:$G$539,BH36,$O$47:$O$539,"非常勤・兼務") -> 0 | BL39: =+COUNTIFS($G$47:$G$539,BL36,$O$47:$O$539,"非常勤・専従") -> 0 | BN39: =+COUNTIFS($G$47:$G$539,BL36,$O$47:$O$539,"非常勤・兼務") -> 0
AU40: 延べ勤務時間数 | BD40: =SUMIFS($BB47:$BB539,$G47:$G539,"世話人") -> 0 | BH40: =SUMIFS($BB47:$BB539,$G47:$G539,"生活支援員") -> 0 | BL40: =SUMIFS($BB47:$BB539,$G47:$G539,"加配要員") -> 0
AU41: 常勤換算数 | BD41: =ROUNDDOWN(+BD40/($BL$43*4),1) ->  | BH41: =ROUNDDOWN(+BH40/($BL$43*4),1) ->  | BL41: =ROUNDDOWN(+BL40/160,1) -> 0
B42: 従業者の勤務体制一覧表
B43: 氏名 | G43: 職種 | O43: 勤務形態 | R43: 福祉専門職員加算 対象者 | U43: 保有 資格 | X43: 勤続 3年 | Z43: 第１週 | AG43: 第２週 | AN43: 第３週 | AU43: 第４週 | BB43: 4週の合計 | BE43: 1週間に当該事業所における常勤職員の勤務すべき時間数（就業規則上に定める時間数） | BL43: =+①はじめに!C9 -> 0
Z44: 1 | AA44: 2 | AB44: 3 | AC44: 4 | AD44: 5 | AE44: 6 | AF44: 7 | AG44: 8 | AH44: 9 | AI44: 10 | AJ44: 11 | AK44: 12 | AL44: 13 | AM44: 14 | AN44: 15 | AO44: 16 | AP44: 17 | AQ44: 18 | AR44: 19 | AS44: 20 | AT44: 25 | AU44: 22 | AV44: 23 | AW44: 24 | AX44: 25 | AY44: 26 | AZ44: 27 | BA44: 28
Z45: =IF($AQ$3="","",+CA6) ->  | AA45: =IF($AQ$2="","",Z45+1) ->  | AB45: =IF($AQ$2="","",AA45+1) -> 
Z46: =COUNTIFS($G$47:$G$539,"夜間支援員",Z47:Z539,">=0") -> 0 | AA46: 0 | AB46: 0 | AC46: 0 | AD46: 0 | AE46: 0 | AF46: 0 | AG46: 0 | AH46: 0 | AI46: 0 | AJ46: 0 | AK46: 0 | AL46: 0 | AM46: 0 | AN46: 0 | AO46: 0 | AP46: 0 | AQ46: 0 | AR46: 0 | AS46: 0 | AT46: 0 | AU46: 0 | AV46: 0 | AW46: 0 | AX46: 0 | AY46: 0 | AZ46: 0 | BA46: 0 | BB46: =SUM(Z46:BA46) -> 0 | BE46: ←夜間支援員の合計
B47: =+①はじめに!D10 -> 0 | G47: 管理者 | O47: =+①はじめに!G10 -> 0 | R47: =+①はじめに!D11&"" ->  | U47: =+①はじめに!H11&"" ->  | X47: =+①はじめに!F11&"" ->  | BB47: =SUM(Z47:BA47) -> 0 | BE47: =BB47/4 -> 0 | CB47: 常勤・専従 | CC47: =COUNTIF($J$53:$L$60,CB47) -> 0
B48: =IF(①はじめに!C$13=TRUE,①はじめに!$D$10,"") ->  | G48: =IF(①はじめに!C13=TRUE,"サービス管理責任者","") ->  | O48: =IF(①はじめに!C$13=TRUE,①はじめに!$G$10,"") ->  | R48: =IF(①はじめに!C$13=TRUE,①はじめに!$D$11,"")&"" ->  | U48: =IF(①はじめに!C$13=TRUE,①はじめに!$H$11,"")&"" ->  | X48: =IF(①はじめに!C$13=TRUE,①はじめに!$F$11,"")&"" ->  | BB48: =SUM(Z48:BA48) -> 0 | BE48: 0 | CB48: 常勤・兼務 | CC48: =COUNTIF($J$53:$L$60,CB48) -> 0
B49: =IF(①はじめに!D$13=TRUE,①はじめに!$D$10,"") ->  | G49: =IF(①はじめに!$D$13=TRUE,"世話人","") ->  | O49: =IF(①はじめに!D$13=TRUE,①はじめに!$G$10,"") ->  | R49: =IF(①はじめに!D$13=TRUE,①はじめに!$D$11,"")&"" ->  | U49: =IF(①はじめに!D$13=TRUE,①はじめに!$H$11,"")&"" ->  | X49: =IF(①はじめに!D$13=TRUE,①はじめに!$F$11,"")&"" ->  | BB49: 0 | BE49: 0 | CB49: 非常勤・専従 | CC49: =COUNTIF($J$53:$L$60,CB49) -> 0
B50: =IF(①はじめに!E$13=TRUE,①はじめに!$D$10,"") ->  | G50: =IF(①はじめに!$E$13=TRUE,"生活支援員","") ->  | O50: =IF(①はじめに!E$13=TRUE,①はじめに!$G$10,"") ->  | R50: =IF(①はじめに!E$13=TRUE,①はじめに!$D$11,"")&"" ->  | U50: =IF(①はじめに!E$13=TRUE,①はじめに!$H$11,"")&"" ->  | X50: =IF(①はじめに!E$13=TRUE,①はじめに!$F$11,"")&"" ->  | BB50: 0 | BE50: 0 | CB50: 非常勤・兼務 | CC50: =COUNTIF($J$53:$L$60,CB50) -> 0
B51: =IF(①はじめに!F$13=TRUE,①はじめに!$D$10,"") ->  | G51: =IF(①はじめに!$F$13=TRUE,"夜間支援員","") ->  | O51: =IF(①はじめに!F$13=TRUE,①はじめに!$G$10,"") ->  | R51: =IF(①はじめに!F$13=TRUE,①はじめに!$D$11,"")&"" ->  | U51: =IF(①はじめに!F$13=TRUE,①はじめに!$H$11,"")&"" ->  | X51: =IF(①はじめに!F$13=TRUE,①はじめに!$F$11,"")&"" ->  | BB51: 0 | BE51: 0
B52: =IF(①はじめに!G$13=TRUE,①はじめに!$D$10,"") ->  | G52: =IF(①はじめに!$G$13=TRUE,"日中支援員","") ->  | O52: =IF(①はじめに!G$13=TRUE,①はじめに!$G$10,"") ->  | R52: =IF(①はじめに!G$13=TRUE,①はじめに!$D$11,"")&"" ->  | U52: =IF(①はじめに!G$13=TRUE,①はじめに!$H$11,"")&"" ->  | X52: =IF(①はじめに!G$13=TRUE,①はじめに!$F$11,"")&"" ->  | BB52: 0 | BE52: 0
B53: =IF(①はじめに!H$13=TRUE,①はじめに!$D$10,"") ->  | G53: =IF(①はじめに!$H$13=TRUE,"加配要員","") ->  | O53: =IF(①はじめに!H$13=TRUE,①はじめに!$G$10,"") ->  | R53: =IF(①はじめに!H$13=TRUE,①はじめに!$D$11,"")&"" ->  | U53: =IF(①はじめに!H$13=TRUE,①はじめに!$H$11,"")&"" ->  | X53: =IF(①はじめに!H$13=TRUE,①はじめに!$F$11,"")&"" ->  | BB53: 0 | BE53: =BB53/4 -> 0
B54: =IF(①はじめに!C$13=TRUE,"",①はじめに!D14) -> 0 | G54: =IF(①はじめに!C13=TRUE,"","サービス管理責任者") -> サービス管理責任者 | O54: =IF(①はじめに!C$13=TRUE,"",①はじめに!G$14) -> 0 | R54: =IF(①はじめに!C$13=TRUE,"",①はじめに!D15)&"" ->  | U54: =IF(①はじめに!C$13=TRUE,"",①はじめに!H15)&"" ->  | X54: =IF(①はじめに!C$13=TRUE,"",①はじめに!F15)&"" ->  | BB54: 0 | BE54: =BB54/4 -> 0
B55: =IF(AND(①はじめに!$C$13=FALSE,①はじめに!D$17=TRUE),①はじめに!$D$14,"") ->  | G55: =IF(AND(①はじめに!$C$13=FALSE,①はじめに!D$17=TRUE),"世話人","") ->  | O55: =IF(AND(①はじめに!$C$13=FALSE,①はじめに!D$17=TRUE),①はじめに!G14,"")&"" ->  | R55: =IF(AND(①はじめに!$C$13=FALSE,①はじめに!D$17=TRUE),①はじめに!D15,"")&"" ->  | U55: =IF(AND(①はじめに!$C$13=FALSE,①はじめに!D$17=TRUE),①はじめに!H15,"")&"" ->  | X55: =IF(AND(①はじめに!$C$13=FALSE,①はじめに!D$17=TRUE),①はじめに!F15,"")&"" ->  | BB55: 0 | BE55: 0 | CB55: 常勤・専従 | CC55: =COUNTIF($J$61:$L$83,CB55) -> 0
B56: =IF(AND(①はじめに!$C$13=FALSE,①はじめに!E$17=TRUE),①はじめに!$D$14,"") ->  | G56: =IF(AND(①はじめに!$C$13=FALSE,①はじめに!E$17=TRUE),"生活支援員","") ->  | O56: =IF(AND(①はじめに!$C$13=FALSE,①はじめに!E$17=TRUE),①はじめに!G14,"")&"" ->  | R56: =IF(AND(①はじめに!$C$13=FALSE,①はじめに!E$17=TRUE),①はじめに!D15,"")&"" ->  | U56: =IF(AND(①はじめに!$C$13=FALSE,①はじめに!E$17=TRUE),①はじめに!H15,"")&"" ->  | X56: =IF(AND(①はじめに!$C$13=FALSE,①はじめに!E$17=TRUE),①はじめに!F15,"")&"" ->  | BB56: 0 | BE56: 0 | CB56: 常勤・兼務 | CC56: =COUNTIF($J$61:$L$83,CB56) -> 0
B57: =IF(AND(①はじめに!$C$13=FALSE,①はじめに!F$17=TRUE),①はじめに!$D$14,"") ->  | G57: =IF(AND(①はじめに!$C$13=FALSE,①はじめに!F$17=TRUE),"夜間支援員","") ->  | O57: =IF(AND(①はじめに!$C$13=FALSE,①はじめに!F$17=TRUE),①はじめに!G14,"")&"" ->  | R57: =IF(AND(①はじめに!$C$13=FALSE,①はじめに!F$17=TRUE),①はじめに!D15,"")&"" ->  | U57: =IF(AND(①はじめに!$C$13=FALSE,①はじめに!F$17=TRUE),①はじめに!H15,"")&"" ->  | X57: =IF(AND(①はじめに!$C$13=FALSE,①はじめに!F$17=TRUE),①はじめに!F15,"")&"" ->  | BB57: 0 | BE57: 0 | CB57: 非常勤・専従 | CC57: =COUNTIF($J$61:$L$83,CB57) -> 0
B58: =IF(AND(①はじめに!$C$13=FALSE,①はじめに!G$17=TRUE),①はじめに!$D$14,"") ->  | G58: =IF(AND(①はじめに!$C$13=FALSE,①はじめに!G$17=TRUE),"日中支援員","") ->  | O58: =IF(AND(①はじめに!$C$13=FALSE,①はじめに!G$17=TRUE),①はじめに!G14,"")&"" ->  | R58: =IF(AND(①はじめに!$C$13=FALSE,①はじめに!G$17=TRUE),①はじめに!D15,"")&"" ->  | U58: =IF(AND(①はじめに!$C$13=FALSE,①はじめに!G$17=TRUE),①はじめに!H15,"")&"" ->  | X58: =IF(AND(①はじめに!$C$13=FALSE,①はじめに!G$17=TRUE),①はじめに!F15,"")&"" ->  | BB58: 0 | BE58: 0 | CB58: 非常勤・兼務 | CC58: =COUNTIF($J$61:$L$83,CB58) -> 0
B59: =IF(AND(①はじめに!$C$13=FALSE,①はじめに!H$17=TRUE),①はじめに!$D$14,"") ->  | G59: =IF(AND(①はじめに!$C$13=FALSE,①はじめに!H$17=TRUE),"加配要員","") ->  | O59: =IF(AND(①はじめに!$C$13=FALSE,①はじめに!H$17=TRUE),①はじめに!G14,"")&"" ->  | R59: =IF(AND(①はじめに!$C$13=FALSE,①はじめに!H$17=TRUE),①はじめに!D15,"")&"" ->  | U59: =IF(AND(①はじめに!$C$13=FALSE,①はじめに!H$17=TRUE),①はじめに!H15,"")&"" ->  | X59: =IF(AND(①はじめに!$C$13=FALSE,①はじめに!H$17=TRUE),①はじめに!F15,"")&"" ->  | BB59: 0 | BE59: 0
A60: 1 | B60: =IF(①はじめに!C$22=TRUE,①はじめに!$D$19,"") ->  | G60: =IF(①はじめに!C22=TRUE,"サービス管理責任者","") ->  | O60: =IF(①はじめに!C$22=TRUE,①はじめに!G$19,"") ->  | R60: =IF(①はじめに!C$22=TRUE,①はじめに!$D$20,"")&"" ->  | U60: =IF(①はじめに!C$22=TRUE,①はじめに!$H$20,"")&"" ->  | X60: =IF(①はじめに!$C22=TRUE,①はじめに!$F$20,"")&"" ->  | BB60: 0 | BE60: 0
A61: =+A60 -> 1 | B61: =IF(①はじめに!D$22=TRUE,①はじめに!$D$19,"") ->  | G61: =IF(①はじめに!$D$22=TRUE,"世話人","") ->  | O61: =IF(①はじめに!$D$22=TRUE,①はじめに!G$19,"") ->  | R61: =IF(①はじめに!$D$22=TRUE,①はじめに!$D$20,"")&"" ->  | U61: =IF(①はじめに!$D$22=TRUE,①はじめに!$H$20,"")&"" ->  | X61: =IF(①はじめに!$D22=TRUE,①はじめに!$F$20,"")&"" ->  | BB61: 0 | BE61: 0
A62: =+A60 -> 1 | B62: =IF(①はじめに!E$22=TRUE,①はじめに!$D$19,"") ->  | G62: =IF(①はじめに!$E$22=TRUE,"生活支援員","") ->  | O62: =IF(①はじめに!$E$22=TRUE,①はじめに!G$19,"") ->  | R62: =IF(①はじめに!$E$22=TRUE,①はじめに!$D$20,"")&"" ->  | U62: =IF(①はじめに!$E$22=TRUE,①はじめに!$H$20,"")&"" ->  | X62: =IF(①はじめに!$E22=TRUE,①はじめに!$F$20,"")&"" ->  | BB62: 0 | BE62: 0 | CB62: 常勤・専従 | CC62: =COUNTIF($J$61:$L$83,CB62) -> 0
A63: =+A60 -> 1 | B63: =IF(①はじめに!F$22=TRUE,①はじめに!$D$19,"") ->  | G63: =IF(①はじめに!$F$22=TRUE,"夜間支援員","") ->  | O63: =IF(①はじめに!$F$22=TRUE,①はじめに!G$19,"") ->  | R63: =IF(①はじめに!$F$22=TRUE,①はじめに!$D$20,"")&"" ->  | U63: =IF(①はじめに!$F$22=TRUE,①はじめに!$H$20,"")&"" ->  | X63: =IF(①はじめに!$F22=TRUE,①はじめに!$F$20,"")&"" ->  | BB63: 0 | BE63: 0 | CB63: 常勤・兼務 | CC63: =COUNTIF($J$61:$L$83,CB63) -> 0
A64: =+A60 -> 1 | B64: =IF(①はじめに!G$22=TRUE,①はじめに!$D$19,"") ->  | G64: =IF(①はじめに!$G$22=TRUE,"日中支援員","") ->  | O64: =IF(①はじめに!$G$22=TRUE,①はじめに!G$19,"") ->  | R64: =IF(①はじめに!$G$22=TRUE,①はじめに!$D$20,"")&"" ->  | U64: =IF(①はじめに!$G$22=TRUE,①はじめに!$H$20,"")&"" ->  | X64: =IF(①はじめに!$G22=TRUE,①はじめに!$F$20,"")&"" ->  | BB64: 0 | BE64: 0 | CB64: 非常勤・専従 | CC64: =COUNTIF($J$61:$L$83,CB64) -> 0
A65: =+A60 -> 1 | B65: =IF(①はじめに!H$22=TRUE,①はじめに!$D$19,"") ->  | G65: =IF(①はじめに!$H$22=TRUE,"加配要員","") ->  | O65: =IF(①はじめに!$H$22=TRUE,①はじめに!G$19,"") ->  | R65: =IF(①はじめに!$H$22=TRUE,①はじめに!$D$20,"")&"" ->  | U65: =IF(①はじめに!$H$22=TRUE,①はじめに!$H$20,"")&"" ->  | X65: =IF(①はじめに!$H22=TRUE,①はじめに!$F$20,"")&"" ->  | BB65: 0 | BE65: 0
A66: =+A60+1 -> 2 | B66: =IF(①はじめに!C28=TRUE,①はじめに!D23,"") ->  | G66: =IF(①はじめに!C28=TRUE,"サービス管理責任者","") ->  | O66: =IF(①はじめに!C28=TRUE,①はじめに!G23,"") ->  | R66: =IF(①はじめに!C28=TRUE,①はじめに!D25,"")&"" ->  | U66: =IF(①はじめに!C28=TRUE,①はじめに!H25,"")&"" ->  | X66: =IF(①はじめに!C28=TRUE,①はじめに!F25,"")&"" ->  | BB66: 0 | BE66: 0
A67: =+A66 -> 2 | B67: =IF(①はじめに!D28=TRUE,①はじめに!D23,"") ->  | G67: =IF(①はじめに!D28=TRUE,"世話人","") ->  | O67: =IF(①はじめに!D28=TRUE,①はじめに!G23,"") ->  | R67: =IF(①はじめに!D28=TRUE,①はじめに!D25,"")&"" ->  | U67: =IF(①はじめに!D28=TRUE,①はじめに!H25,"")&"" ->  | X67: =IF(①はじめに!D28=TRUE,①はじめに!F25,"")&"" ->  | BB67: 0 | BE67: 0
A68: =+A66 -> 2 | B68: =IF(①はじめに!E28=TRUE,①はじめに!D23,"") ->  | G68: =IF(①はじめに!E28=TRUE,"生活支援員","") ->  | O68: =IF(①はじめに!E28=TRUE,①はじめに!G23,"") ->  | R68: =IF(①はじめに!E28=TRUE,①はじめに!D25,"")&"" ->  | U68: =IF(①はじめに!E28=TRUE,①はじめに!H25,"")&"" ->  | X68: =IF(①はじめに!E28=TRUE,①はじめに!F25,"")&"" ->  | BB68: 0 | BE68: 0 | CB68: 常勤・専従 | CC68: =COUNTIF($J$61:$L$83,CB68) -> 0
A69: =+A66 -> 2 | B69: =IF(①はじめに!F28=TRUE,①はじめに!D23,"") ->  | G69: =IF(①はじめに!F28=TRUE,"夜間支援員","") ->  | O69: =IF(①はじめに!F28=TRUE,①はじめに!G23,"") ->  | R69: =IF(①はじめに!F28=TRUE,①はじめに!D25,"")&"" ->  | U69: =IF(①はじめに!F28=TRUE,①はじめに!H25,"")&"" ->  | X69: =IF(①はじめに!F28=TRUE,①はじめに!F25,"")&"" ->  | BB69: 0 | BE69: 0 | CB69: 常勤・兼務 | CC69: =COUNTIF($J$61:$L$83,CB69) -> 0
A70: =+A66 -> 2 | B70: =IF(①はじめに!G28=TRUE,①はじめに!D23,"") ->  | G70: =IF(①はじめに!G28=TRUE,"日中支援員","") ->  | O70: =IF(①はじめに!G28=TRUE,①はじめに!G23,"") ->  | R70: =IF(①はじめに!G28=TRUE,①はじめに!D25,"")&"" ->  | U70: =IF(①はじめに!G28=TRUE,①はじめに!H25,"")&"" ->  | X70: =IF(①はじめに!G28=TRUE,①はじめに!F25,"")&"" ->  | BB70: 0 | BE70: 0
A71: =+A66 -> 2 | B71: =IF(①はじめに!H28=TRUE,①はじめに!D23,"") ->  | G71: =IF(①はじめに!H28=TRUE,"加配要員","") ->  | O71: =IF(①はじめに!H28=TRUE,①はじめに!G23,"") ->  | R71: =IF(①はじめに!H28=TRUE,①はじめに!D25,"")&"" ->  | U71: =IF(①はじめに!H28=TRUE,①はじめに!H25,"")&"" ->  | X71: =IF(①はじめに!H28=TRUE,①はじめに!F25,"")&"" ->  | BB71: 0 | BE71: 0
A72: =+A66+1 -> 3 | B72: =IF(①はじめに!C34=TRUE,①はじめに!D29,"") ->  | G72: =IF(①はじめに!C34=TRUE,"サービス管理責任者","") ->  | O72: =IF(①はじめに!C34=TRUE,①はじめに!G29,"") ->  | R72: =IF(①はじめに!C34=TRUE,①はじめに!D31,"")&"" ->  | U72: =IF(①はじめに!C34=TRUE,①はじめに!H31,"")&"" ->  | X72: =IF(①はじめに!C34=TRUE,①はじめに!F31,"")&"" ->  | BB72: 0 | BE72: 0 | CB72: 常勤・専従 | CC72: =COUNTIF($J$61:$L$83,CB72) -> 0
A73: =+A72 -> 3 | B73: =IF(①はじめに!D34=TRUE,①はじめに!D29,"") ->  | G73: =IF(①はじめに!D34=TRUE,"世話人","") ->  | O73: =IF(①はじめに!D34=TRUE,①はじめに!G29,"") ->  | R73: =IF(①はじめに!D34=TRUE,①はじめに!D31,"")&"" ->  | U73: =IF(①はじめに!D34=TRUE,①はじめに!H31,"")&"" ->  | X73: =IF(①はじめに!D34=TRUE,①はじめに!F31,"")&"" ->  | BB73: 0 | BE73: 0 | CB73: 常勤・兼務 | CC73: =COUNTIF($J$61:$L$83,CB73) -> 0
A74: =+A72 -> 3 | B74: =IF(①はじめに!E34=TRUE,①はじめに!D29,"") ->  | G74: =IF(①はじめに!E34=TRUE,"生活支援員","") ->  | O74: =IF(①はじめに!E34=TRUE,①はじめに!G29,"") ->  | R74: =IF(①はじめに!E34=TRUE,①はじめに!D31,"")&"" ->  | U74: =IF(①はじめに!E34=TRUE,①はじめに!H31,"")&"" ->  | X74: =IF(①はじめに!E34=TRUE,①はじめに!F31,"")&"" ->  | BB74: 0 | BE74: 0 | CB74: 非常勤・専従 | CC74: =COUNTIF($J$61:$L$83,CB74) -> 0
A75: =+A72 -> 3 | B75: =IF(①はじめに!F34=TRUE,①はじめに!D29,"") ->  | G75: =IF(①はじめに!F34=TRUE,"夜間支援員","") ->  | O75: =IF(①はじめに!F34=TRUE,①はじめに!G29,"") ->  | R75: =IF(①はじめに!F34=TRUE,①はじめに!D31,"")&"" ->  | U75: =IF(①はじめに!F34=TRUE,①はじめに!H31,"")&"" ->  | X75: =IF(①はじめに!F34=TRUE,①はじめに!F31,"")&"" ->  | BB75: 0 | BE75: 0
A76: =+A72 -> 3 | B76: =IF(①はじめに!G34=TRUE,①はじめに!D29,"") ->  | G76: =IF(①はじめに!G34=TRUE,"日中支援員","") ->  | O76: =IF(①はじめに!G34=TRUE,①はじめに!G29,"") ->  | R76: =IF(①はじめに!G34=TRUE,①はじめに!D31,"")&"" ->  | U76: =IF(①はじめに!G34=TRUE,①はじめに!H31,"")&"" ->  | X76: =IF(①はじめに!G34=TRUE,①はじめに!F31,"")&"" ->  | BB76: 0 | BE76: 0
A77: =+A72 -> 3 | B77: =IF(①はじめに!H34=TRUE,①はじめに!D29,"") ->  | G77: =IF(①はじめに!H34=TRUE,"加配要員","") ->  | O77: =IF(①はじめに!H34=TRUE,①はじめに!G29,"") ->  | R77: =IF(①はじめに!H34=TRUE,①はじめに!D31,"")&"" ->  | U77: =IF(①はじめに!H34=TRUE,①はじめに!H31,"")&"" ->  | X77: =IF(①はじめに!H34=TRUE,①はじめに!F31,"")&"" ->  | BB77: 0 | BE77: 0
A78: =+A72+1 -> 4 | B78: =IF(①はじめに!C40=TRUE,①はじめに!D35,"") ->  | G78: =IF(①はじめに!C40=TRUE,"サービス管理責任者","") ->  | O78: =IF(①はじめに!C40=TRUE,①はじめに!G35,"") ->  | R78: =IF(①はじめに!C40=TRUE,①はじめに!D37,"")&"" ->  | U78: =IF(①はじめに!C40=TRUE,①はじめに!H37,"")&"" ->  | X78: =IF(①はじめに!C40=TRUE,①はじめに!F37,"")&"" ->  | BB78: 0 | BE78: 0
A79: =+A78 -> 4 | B79: =IF(①はじめに!D40=TRUE,①はじめに!D35,"") ->  | G79: =IF(①はじめに!D40=TRUE,"世話人","") ->  | O79: =IF(①はじめに!D40=TRUE,①はじめに!G35,"") ->  | R79: =IF(①はじめに!D40=TRUE,①はじめに!D37,"")&"" ->  | U79: =IF(①はじめに!D40=TRUE,①はじめに!H37,"")&"" ->  | X79: =IF(①はじめに!D40=TRUE,①はじめに!F37,"")&"" ->  | BB79: 0 | BE79: 0
A80: =+A78 -> 4 | B80: =IF(①はじめに!E40=TRUE,①はじめに!D35,"") ->  | G80: =IF(①はじめに!E40=TRUE,"生活支援員","") ->  | O80: =IF(①はじめに!E40=TRUE,①はじめに!G35,"") ->  | R80: =IF(①はじめに!E40=TRUE,①はじめに!D37,"")&"" ->  | U80: =IF(①はじめに!E40=TRUE,①はじめに!H37,"")&"" ->  | X80: =IF(①はじめに!E40=TRUE,①はじめに!F37,"")&"" ->  | BB80: 0 | BE80: 0 | CB80: 常勤・専従 | CC80: =COUNTIF($J$61:$L$83,CB80) -> 0
A81: =+A78 -> 4 | B81: =IF(①はじめに!F40=TRUE,①はじめに!D35,"") ->  | G81: =IF(①はじめに!F40=TRUE,"夜間支援員","") ->  | O81: =IF(①はじめに!F40=TRUE,①はじめに!G35,"") ->  | R81: =IF(①はじめに!F40=TRUE,①はじめに!D37,"")&"" ->  | U81: =IF(①はじめに!F40=TRUE,①はじめに!H37,"")&"" ->  | X81: =IF(①はじめに!F40=TRUE,①はじめに!F37,"")&"" ->  | BB81: 0 | BE81: 0 | CB81: 常勤・兼務 | CC81: =COUNTIF($J$61:$L$83,CB81) -> 0
A82: =+A78 -> 4 | B82: =IF(①はじめに!G40=TRUE,①はじめに!D35,"") ->  | G82: =IF(①はじめに!G40=TRUE,"日中支援員","") ->  | O82: =IF(①はじめに!G40=TRUE,①はじめに!G35,"") ->  | R82: =IF(①はじめに!G40=TRUE,①はじめに!D37,"")&"" ->  | U82: =IF(①はじめに!G40=TRUE,①はじめに!H37,"")&"" ->  | X82: =IF(①はじめに!G40=TRUE,①はじめに!F37,"")&"" ->  | BB82: 0 | BE82: 0
A83: =+A78 -> 4 | B83: =IF(①はじめに!H40=TRUE,①はじめに!D35,"") ->  | G83: =IF(①はじめに!H40=TRUE,"加配要員","") ->  | O83: =IF(①はじめに!H40=TRUE,①はじめに!G35,"") ->  | R83: =IF(①はじめに!H40=TRUE,①はじめに!D37,"")&"" ->  | U83: =IF(①はじめに!H40=TRUE,①はじめに!H37,"")&"" ->  | X83: =IF(①はじめに!H40=TRUE,①はじめに!F37,"")&"" ->  | BB83: 0 | BE83: 0
A84: =+A78+1 -> 5 | B84: =IF(①はじめに!C46=TRUE,①はじめに!D41,"") ->  | G84: =IF(①はじめに!C46=TRUE,"サービス管理責任者","") ->  | O84: =IF(①はじめに!C46=TRUE,①はじめに!G41,"") ->  | R84: =IF(①はじめに!C46=TRUE,①はじめに!D43,"")&"" ->  | U84: =IF(①はじめに!C46=TRUE,①はじめに!H43,"")&"" ->  | X84: =IF(①はじめに!C46=TRUE,①はじめに!F43,"")&"" ->  | BB84: =SUM(Z84:BA84) -> 0 | BE84: =BB84/4 -> 0 | CB84: 常勤・専従 | CC84: =COUNTIF($J$61:$L$83,CB84) -> 0
A85: =+A84 -> 5 | B85: =IF(①はじめに!D46=TRUE,①はじめに!D41,"") ->  | G85: =IF(①はじめに!D46=TRUE,"世話人","") ->  | O85: =IF(①はじめに!D46=TRUE,①はじめに!G41,"") ->  | R85: =IF(①はじめに!D46=TRUE,①はじめに!D43,"")&"" ->  | U85: =IF(①はじめに!D46=TRUE,①はじめに!H43,"")&"" ->  | X85: =IF(①はじめに!D46=TRUE,①はじめに!F43,"")&"" ->  | BB85: 0 | BE85: 0 | CB85: 常勤・兼務 | CC85: =COUNTIF($J$61:$L$83,CB85) -> 0
A86: =+A84 -> 5 | B86: =IF(①はじめに!E46=TRUE,①はじめに!D41,"") ->  | G86: =IF(①はじめに!E46=TRUE,"生活支援員","") ->  | O86: =IF(①はじめに!E46=TRUE,①はじめに!G41,"") ->  | R86: =IF(①はじめに!E46=TRUE,①はじめに!D43,"")&"" ->  | U86: =IF(①はじめに!E46=TRUE,①はじめに!H43,"")&"" ->  | X86: =IF(①はじめに!E46=TRUE,①はじめに!F43,"")&"" ->  | BB86: 0 | BE86: 0 | CB86: 非常勤・専従 | CC86: =COUNTIF($J$61:$L$83,CB86) -> 0
A87: =+A84 -> 5 | B87: =IF(①はじめに!F46=TRUE,①はじめに!D41,"") ->  | G87: =IF(①はじめに!F46=TRUE,"夜間支援員","") ->  | O87: =IF(①はじめに!F46=TRUE,①はじめに!G41,"") ->  | R87: =IF(①はじめに!F46=TRUE,①はじめに!D43,"")&"" ->  | U87: =IF(①はじめに!F46=TRUE,①はじめに!H43,"")&"" ->  | X87: =IF(①はじめに!F46=TRUE,①はじめに!F43,"")&"" ->  | BB87: 0 | BE87: 0
A88: =+A84 -> 5 | B88: =IF(①はじめに!G46=TRUE,①はじめに!D41,"") ->  | G88: =IF(①はじめに!G46=TRUE,"日中支援員","") ->  | O88: =IF(①はじめに!G46=TRUE,①はじめに!G41,"") ->  | R88: =IF(①はじめに!G46=TRUE,①はじめに!D43,"")&"" ->  | U88: =IF(①はじめに!G46=TRUE,①はじめに!H43,"")&"" ->  | X88: =IF(①はじめに!G46=TRUE,①はじめに!F43,"")&"" ->  | BB88: 0 | BE88: 0
A89: =+A84 -> 5 | B89: =IF(①はじめに!H46=TRUE,①はじめに!D41,"") ->  | G89: =IF(①はじめに!H46=TRUE,"加配要員","") ->  | O89: =IF(①はじめに!H46=TRUE,①はじめに!G41,"") ->  | R89: =IF(①はじめに!H46=TRUE,①はじめに!D43,"")&"" ->  | U89: =IF(①はじめに!H46=TRUE,①はじめに!H43,"")&"" ->  | X89: =IF(①はじめに!H46=TRUE,①はじめに!F43,"")&"" ->  | BB89: 0 | BE89: 0
A90: =+A84+1 -> 6 | B90: =IF(①はじめに!C52=TRUE,①はじめに!D47,"") ->  | G90: =IF(①はじめに!C52=TRUE,"サービス管理責任者","") ->  | O90: =IF(①はじめに!C52=TRUE,①はじめに!G47,"") ->  | R90: =IF(①はじめに!C52=TRUE,①はじめに!D49,"")&"" ->  | U90: =IF(①はじめに!C52=TRUE,①はじめに!H49,"")&"" ->  | X90: =IF(①はじめに!C52=TRUE,①はじめに!F49,"")&"" ->  | BB90: 0 | BE90: 0
A91: =+A90 -> 6 | B91: =IF(①はじめに!D52=TRUE,①はじめに!D47,"") ->  | G91: =IF(①はじめに!D52=TRUE,"世話人","") ->  | O91: =IF(①はじめに!D52=TRUE,①はじめに!G47,"") ->  | R91: =IF(①はじめに!D52=TRUE,①はじめに!D49,"")&"" ->  | U91: =IF(①はじめに!D52=TRUE,①はじめに!H49,"")&"" ->  | X91: =IF(①はじめに!D52=TRUE,①はじめに!F49,"")&"" ->  | BB91: 0 | BE91: 0
A92: =+A90 -> 6 | B92: =IF(①はじめに!E52=TRUE,①はじめに!D47,"") ->  | G92: =IF(①はじめに!E52=TRUE,"生活支援員","") ->  | O92: =IF(①はじめに!E52=TRUE,①はじめに!G47,"") ->  | R92: =IF(①はじめに!E52=TRUE,①はじめに!D49,"")&"" ->  | U92: =IF(①はじめに!E52=TRUE,①はじめに!H49,"")&"" ->  | X92: =IF(①はじめに!E52=TRUE,①はじめに!F49,"")&"" ->  | BB92: 0 | BE92: 0 | CB92: 常勤・専従 | CC92: =COUNTIF($J$61:$L$83,CB92) -> 0
A93: =+A90 -> 6 | B93: =IF(①はじめに!F52=TRUE,①はじめに!D47,"") ->  | G93: =IF(①はじめに!F52=TRUE,"夜間支援員","") ->  | O93: =IF(①はじめに!F52=TRUE,①はじめに!G47,"") ->  | R93: =IF(①はじめに!F52=TRUE,①はじめに!D49,"")&"" ->  | U93: =IF(①はじめに!F52=TRUE,①はじめに!H49,"")&"" ->  | X93: =IF(①はじめに!F52=TRUE,①はじめに!F49,"")&"" ->  | BB93: 0 | BE93: 0 | CB93: 常勤・兼務 | CC93: =COUNTIF($J$61:$L$83,CB93) -> 0
A94: =+A90 -> 6 | B94: =IF(①はじめに!G52=TRUE,①はじめに!D47,"") ->  | G94: =IF(①はじめに!G52=TRUE,"日中支援員","") ->  | O94: =IF(①はじめに!G52=TRUE,①はじめに!G47,"") ->  | R94: =IF(①はじめに!G52=TRUE,①はじめに!D49,"")&"" ->  | U94: =IF(①はじめに!G52=TRUE,①はじめに!H49,"")&"" ->  | X94: =IF(①はじめに!G52=TRUE,①はじめに!F49,"")&"" ->  | BB94: 0 | BE94: 0 | CB94: 非常勤・専従 | CC94: =COUNTIF($J$61:$L$83,CB94) -> 0
A95: =+A90 -> 6 | B95: =IF(①はじめに!H52=TRUE,①はじめに!D47,"") ->  | G95: =IF(①はじめに!H52=TRUE,"加配要員","") ->  | O95: =IF(①はじめに!H52=TRUE,①はじめに!G47,"") ->  | R95: =IF(①はじめに!H52=TRUE,①はじめに!D49,"")&"" ->  | U95: =IF(①はじめに!H52=TRUE,①はじめに!H49,"")&"" ->  | X95: =IF(①はじめに!H52=TRUE,①はじめに!F49,"")&"" ->  | BB95: 0 | BE95: 0
A96: =+A90+1 -> 7 | B96: =IF(①はじめに!C58=TRUE,①はじめに!D53,"") ->  | G96: =IF(①はじめに!C58=TRUE,"サービス管理責任者","") ->  | O96: =IF(①はじめに!C58=TRUE,①はじめに!G53,"") ->  | R96: =IF(①はじめに!C58=TRUE,①はじめに!D55,"")&"" ->  | U96: =IF(①はじめに!C58=TRUE,①はじめに!H55,"")&"" ->  | X96: =IF(①はじめに!C58=TRUE,①はじめに!F55,"")&"" ->  | BB96: 0 | BE96: 0
A97: =+A96 -> 7 | B97: =IF(①はじめに!D58=TRUE,①はじめに!D53,"") ->  | G97: =IF(①はじめに!D58=TRUE,"世話人","") ->  | O97: =IF(①はじめに!D58=TRUE,①はじめに!G53,"") ->  | R97: =IF(①はじめに!D58=TRUE,①はじめに!D55,"")&"" ->  | U97: =IF(①はじめに!D58=TRUE,①はじめに!H55,"")&"" ->  | X97: =IF(①はじめに!D58=TRUE,①はじめに!F55,"")&"" ->  | BB97: 0 | BE97: 0
A98: =+A96 -> 7 | B98: =IF(①はじめに!E58=TRUE,①はじめに!D53,"") ->  | G98: =IF(①はじめに!E58=TRUE,"生活支援員","") ->  | O98: =IF(①はじめに!E58=TRUE,①はじめに!G53,"") ->  | R98: =IF(①はじめに!E58=TRUE,①はじめに!D55,"")&"" ->  | U98: =IF(①はじめに!E58=TRUE,①はじめに!H55,"")&"" ->  | X98: =IF(①はじめに!E58=TRUE,①はじめに!F55,"")&"" ->  | BB98: 0 | BE98: 0 | CB98: 常勤・専従 | CC98: =COUNTIF($J$61:$L$83,CB98) -> 0
A99: =+A96 -> 7 | B99: =IF(①はじめに!F58=TRUE,①はじめに!D53,"") ->  | G99: =IF(①はじめに!F58=TRUE,"夜間支援員","") ->  | O99: =IF(①はじめに!F58=TRUE,①はじめに!G53,"") ->  | R99: =IF(①はじめに!F58=TRUE,①はじめに!D55,"")&"" ->  | U99: =IF(①はじめに!F58=TRUE,①はじめに!H55,"")&"" ->  | X99: =IF(①はじめに!F58=TRUE,①はじめに!F55,"")&"" ->  | BB99: 0 | BE99: 0 | CB99: 常勤・兼務 | CC99: =COUNTIF($J$61:$L$83,CB99) -> 0
A100: =+A96 -> 7 | B100: =IF(①はじめに!G58=TRUE,①はじめに!D53,"") ->  | G100: =IF(①はじめに!G58=TRUE,"日中支援員","") ->  | O100: =IF(①はじめに!G58=TRUE,①はじめに!G53,"") ->  | R100: =IF(①はじめに!G58=TRUE,①はじめに!D55,"")&"" ->  | U100: =IF(①はじめに!G58=TRUE,①はじめに!H55,"")&"" ->  | X100: =IF(①はじめに!G58=TRUE,①はじめに!F55,"")&"" ->  | BB100: 0 | BE100: 0
A101: =+A96 -> 7 | B101: =IF(①はじめに!H58=TRUE,①はじめに!D53,"") ->  | G101: =IF(①はじめに!H58=TRUE,"加配要員","") ->  | O101: =IF(①はじめに!H58=TRUE,①はじめに!G53,"") ->  | R101: =IF(①はじめに!H58=TRUE,①はじめに!D55,"")&"" ->  | U101: =IF(①はじめに!H58=TRUE,①はじめに!H55,"")&"" ->  | X101: =IF(①はじめに!H58=TRUE,①はじめに!F55,"")&"" ->  | BB101: 0 | BE101: 0
A102: =+A96+1 -> 8 | B102: =IF(①はじめに!C64=TRUE,①はじめに!D59,"") ->  | G102: =IF(①はじめに!C64=TRUE,"サービス管理責任者","") ->  | O102: =IF(①はじめに!C64=TRUE,①はじめに!G59,"") ->  | R102: =IF(①はじめに!C64=TRUE,①はじめに!D61,"")&"" ->  | U102: =IF(①はじめに!C64=TRUE,①はじめに!H61,"")&"" ->  | X102: =IF(①はじめに!C64=TRUE,①はじめに!F61,"")&"" ->  | BB102: 0 | BE102: 0 | CB102: 常勤・専従 | CC102: =COUNTIF($J$61:$L$83,CB102) -> 0
A103: =+A102 -> 8 | B103: =IF(①はじめに!D64=TRUE,①はじめに!D59,"") ->  | G103: =IF(①はじめに!D64=TRUE,"世話人","") ->  | O103: =IF(①はじめに!D64=TRUE,①はじめに!G59,"") ->  | R103: =IF(①はじめに!D64=TRUE,①はじめに!D61,"")&"" ->  | U103: =IF(①はじめに!D64=TRUE,①はじめに!H61,"")&"" ->  | X103: =IF(①はじめに!D64=TRUE,①はじめに!F61,"")&"" ->  | BB103: 0 | BE103: 0 | CB103: 常勤・兼務 | CC103: =COUNTIF($J$61:$L$83,CB103) -> 0
A104: =+A102 -> 8 | B104: =IF(①はじめに!E64=TRUE,①はじめに!D59,"") ->  | G104: =IF(①はじめに!E64=TRUE,"生活支援員","") ->  | O104: =IF(①はじめに!E64=TRUE,①はじめに!G59,"") ->  | R104: =IF(①はじめに!E64=TRUE,①はじめに!D61,"")&"" ->  | U104: =IF(①はじめに!E64=TRUE,①はじめに!H61,"")&"" ->  | X104: =IF(①はじめに!E64=TRUE,①はじめに!F61,"")&"" ->  | BB104: 0 | BE104: 0 | CB104: 非常勤・専従 | CC104: =COUNTIF($J$61:$L$83,CB104) -> 0
A105: =+A102 -> 8 | B105: =IF(①はじめに!F64=TRUE,①はじめに!D59,"") ->  | G105: =IF(①はじめに!F64=TRUE,"夜間支援員","") ->  | O105: =IF(①はじめに!F64=TRUE,①はじめに!G59,"") ->  | R105: =IF(①はじめに!F64=TRUE,①はじめに!D61,"")&"" ->  | U105: =IF(①はじめに!F64=TRUE,①はじめに!H61,"")&"" ->  | X105: =IF(①はじめに!F64=TRUE,①はじめに!F61,"")&"" ->  | BB105: 0 | BE105: 0
A106: =+A102 -> 8 | B106: =IF(①はじめに!G64=TRUE,①はじめに!D59,"") ->  | G106: =IF(①はじめに!G64=TRUE,"日中支援員","") ->  | O106: =IF(①はじめに!G64=TRUE,①はじめに!G59,"") ->  | R106: =IF(①はじめに!G64=TRUE,①はじめに!D61,"")&"" ->  | U106: =IF(①はじめに!G64=TRUE,①はじめに!H61,"")&"" ->  | X106: =IF(①はじめに!G64=TRUE,①はじめに!F61,"")&"" ->  | BB106: 0 | BE106: 0
A107: =+A102 -> 8 | B107: =IF(①はじめに!H64=TRUE,①はじめに!D59,"") ->  | G107: =IF(①はじめに!H64=TRUE,"加配要員","") ->  | O107: =IF(①はじめに!H64=TRUE,①はじめに!G59,"") ->  | R107: =IF(①はじめに!H64=TRUE,①はじめに!D61,"")&"" ->  | U107: =IF(①はじめに!H64=TRUE,①はじめに!H61,"")&"" ->  | X107: =IF(①はじめに!H64=TRUE,①はじめに!F61,"")&"" ->  | BB107: 0 | BE107: 0
A108: =+A102+1 -> 9 | B108: =IF(①はじめに!C70=TRUE,①はじめに!D65,"") ->  | G108: =IF(①はじめに!C70=TRUE,"サービス管理責任者","") ->  | O108: =IF(①はじめに!C70=TRUE,①はじめに!G65,"") ->  | R108: =IF(①はじめに!C70=TRUE,①はじめに!D67,"")&"" ->  | U108: =IF(①はじめに!C70=TRUE,①はじめに!H67,"")&"" ->  | X108: =IF(①はじめに!C70=TRUE,①はじめに!F67,"")&"" ->  | BB108: 0 | BE108: 0
A109: =+A108 -> 9 | B109: =IF(①はじめに!D70=TRUE,①はじめに!D65,"") ->  | G109: =IF(①はじめに!D70=TRUE,"世話人","") ->  | O109: =IF(①はじめに!D70=TRUE,①はじめに!G65,"") ->  | R109: =IF(①はじめに!D70=TRUE,①はじめに!D67,"")&"" ->  | U109: =IF(①はじめに!D70=TRUE,①はじめに!H67,"")&"" ->  | X109: =IF(①はじめに!D70=TRUE,①はじめに!F67,"")&"" ->  | BB109: 0 | BE109: 0
A110: =+A108 -> 9 | B110: =IF(①はじめに!E70=TRUE,①はじめに!D65,"") ->  | G110: =IF(①はじめに!E70=TRUE,"生活支援員","") ->  | O110: =IF(①はじめに!E70=TRUE,①はじめに!G65,"") ->  | R110: =IF(①はじめに!E70=TRUE,①はじめに!D67,"")&"" ->  | U110: =IF(①はじめに!E70=TRUE,①はじめに!H67,"")&"" ->  | X110: =IF(①はじめに!E70=TRUE,①はじめに!F67,"")&"" ->  | BB110: 0 | BE110: 0 | CB110: 常勤・専従 | CC110: =COUNTIF($J$61:$L$83,CB110) -> 0
A111: =+A108 -> 9 | B111: =IF(①はじめに!F70=TRUE,①はじめに!D65,"") ->  | G111: =IF(①はじめに!F70=TRUE,"夜間支援員","") ->  | O111: =IF(①はじめに!F70=TRUE,①はじめに!G65,"") ->  | R111: =IF(①はじめに!F70=TRUE,①はじめに!D67,"")&"" ->  | U111: =IF(①はじめに!F70=TRUE,①はじめに!H67,"")&"" ->  | X111: =IF(①はじめに!F70=TRUE,①はじめに!F67,"")&"" ->  | BB111: 0 | BE111: 0 | CB111: 常勤・兼務 | CC111: =COUNTIF($J$61:$L$83,CB111) -> 0
A112: =+A108 -> 9 | B112: =IF(①はじめに!G70=TRUE,①はじめに!D65,"") ->  | G112: =IF(①はじめに!G70=TRUE,"日中支援員","") ->  | O112: =IF(①はじめに!G70=TRUE,①はじめに!G65,"") ->  | R112: =IF(①はじめに!G70=TRUE,①はじめに!D67,"")&"" ->  | U112: =IF(①はじめに!G70=TRUE,①はじめに!H67,"")&"" ->  | X112: =IF(①はじめに!G70=TRUE,①はじめに!F67,"")&"" ->  | BB112: 0 | BE112: 0
A113: =+A108 -> 9 | B113: =IF(①はじめに!H70=TRUE,①はじめに!D65,"") ->  | G113: =IF(①はじめに!H70=TRUE,"加配要員","") ->  | O113: =IF(①はじめに!H70=TRUE,①はじめに!G65,"") ->  | R113: =IF(①はじめに!H70=TRUE,①はじめに!D67,"")&"" ->  | U113: =IF(①はじめに!H70=TRUE,①はじめに!H67,"")&"" ->  | X113: =IF(①はじめに!H70=TRUE,①はじめに!F67,"")&"" ->  | BB113: 0 | BE113: 0
A114: =+A108+1 -> 10 | B114: =IF(①はじめに!C76=TRUE,①はじめに!D71,"") ->  | G114: =IF(①はじめに!C76=TRUE,"サービス管理責任者","") ->  | O114: =IF(①はじめに!C76=TRUE,①はじめに!G71,"") ->  | R114: =IF(①はじめに!C76=TRUE,①はじめに!D73,"")&"" ->  | U114: =IF(①はじめに!C76=TRUE,①はじめに!H73,"")&"" ->  | X114: =IF(①はじめに!C76=TRUE,①はじめに!F73,"")&"" ->  | BB114: =SUM(Z114:BA114) -> 0 | BE114: =BB114/4 -> 0 | CB114: 常勤・専従 | CC114: =COUNTIF($J$61:$L$83,CB114) -> 0
A115: =+A114 -> 10 | B115: =IF(①はじめに!D76=TRUE,①はじめに!D71,"") ->  | G115: =IF(①はじめに!D76=TRUE,"世話人","") ->  | O115: =IF(①はじめに!D76=TRUE,①はじめに!G71,"") ->  | R115: =IF(①はじめに!D76=TRUE,①はじめに!D73,"")&"" ->  | U115: =IF(①はじめに!D76=TRUE,①はじめに!H73,"")&"" ->  | X115: =IF(①はじめに!D76=TRUE,①はじめに!F73,"")&"" ->  | BB115: 0 | BE115: 0 | CB115: 常勤・兼務 | CC115: =COUNTIF($J$61:$L$83,CB115) -> 0
A116: =+A114 -> 10 | B116: =IF(①はじめに!E76=TRUE,①はじめに!D71,"") ->  | G116: =IF(①はじめに!E76=TRUE,"生活支援員","") ->  | O116: =IF(①はじめに!E76=TRUE,①はじめに!G71,"") ->  | R116: =IF(①はじめに!E76=TRUE,①はじめに!D73,"")&"" ->  | U116: =IF(①はじめに!E76=TRUE,①はじめに!H73,"")&"" ->  | X116: =IF(①はじめに!E76=TRUE,①はじめに!F73,"")&"" ->  | BB116: 0 | BE116: 0 | CB116: 非常勤・専従 | CC116: =COUNTIF($J$61:$L$83,CB116) -> 0
A117: =+A114 -> 10 | B117: =IF(①はじめに!F76=TRUE,①はじめに!D71,"") ->  | G117: =IF(①はじめに!F76=TRUE,"夜間支援員","") ->  | O117: =IF(①はじめに!F76=TRUE,①はじめに!G71,"") ->  | R117: =IF(①はじめに!F76=TRUE,①はじめに!D73,"")&"" ->  | U117: =IF(①はじめに!F76=TRUE,①はじめに!H73,"")&"" ->  | X117: =IF(①はじめに!F76=TRUE,①はじめに!F73,"")&"" ->  | BB117: 0 | BE117: 0
A118: =+A114 -> 10 | B118: =IF(①はじめに!G76=TRUE,①はじめに!D71,"") ->  | G118: =IF(①はじめに!G76=TRUE,"日中支援員","") ->  | O118: =IF(①はじめに!G76=TRUE,①はじめに!G71,"") ->  | R118: =IF(①はじめに!G76=TRUE,①はじめに!D73,"")&"" ->  | U118: =IF(①はじめに!G76=TRUE,①はじめに!H73,"")&"" ->  | X118: =IF(①はじめに!G76=TRUE,①はじめに!F73,"")&"" ->  | BB118: 0 | BE118: 0
A119: =+A114 -> 10 | B119: =IF(①はじめに!H76=TRUE,①はじめに!D71,"") ->  | G119: =IF(①はじめに!H76=TRUE,"加配要員","") ->  | O119: =IF(①はじめに!H76=TRUE,①はじめに!G71,"") ->  | R119: =IF(①はじめに!H76=TRUE,①はじめに!D73,"")&"" ->  | U119: =IF(①はじめに!H76=TRUE,①はじめに!H73,"")&"" ->  | X119: =IF(①はじめに!H76=TRUE,①はじめに!F73,"")&"" ->  | BB119: 0 | BE119: 0
A120: =+A114+1 -> 11 | B120: =IF(①はじめに!C82=TRUE,①はじめに!D77,"") ->  | G120: =IF(①はじめに!C82=TRUE,"サービス管理責任者","") ->  | O120: =IF(①はじめに!C82=TRUE,①はじめに!G77,"") ->  | R120: =IF(①はじめに!C82=TRUE,①はじめに!D79,"")&"" ->  | U120: =IF(①はじめに!C82=TRUE,①はじめに!H79,"")&"" ->  | X120: =IF(①はじめに!C82=TRUE,①はじめに!F79,"")&"" ->  | BB120: 0 | BE120: 0
A121: =+A120 -> 11 | B121: =IF(①はじめに!D82=TRUE,①はじめに!D77,"") ->  | G121: =IF(①はじめに!D82=TRUE,"世話人","") ->  | O121: =IF(①はじめに!D82=TRUE,①はじめに!G77,"") ->  | R121: =IF(①はじめに!D82=TRUE,①はじめに!D79,"")&"" ->  | U121: =IF(①はじめに!D82=TRUE,①はじめに!H79,"")&"" ->  | X121: =IF(①はじめに!D82=TRUE,①はじめに!F79,"")&"" ->  | BB121: 0 | BE121: 0
A122: =+A120 -> 11 | B122: =IF(①はじめに!E82=TRUE,①はじめに!D77,"") ->  | G122: =IF(①はじめに!E82=TRUE,"生活支援員","") ->  | O122: =IF(①はじめに!E82=TRUE,①はじめに!G77,"") ->  | R122: =IF(①はじめに!E82=TRUE,①はじめに!D79,"")&"" ->  | U122: =IF(①はじめに!E82=TRUE,①はじめに!H79,"")&"" ->  | X122: =IF(①はじめに!E82=TRUE,①はじめに!F79,"")&"" ->  | BB122: 0 | BE122: 0 | CB122: 常勤・専従 | CC122: =COUNTIF($J$61:$L$83,CB122) -> 0
A123: =+A120 -> 11 | B123: =IF(①はじめに!F82=TRUE,①はじめに!D77,"") ->  | G123: =IF(①はじめに!F82=TRUE,"夜間支援員","") ->  | O123: =IF(①はじめに!F82=TRUE,①はじめに!G77,"") ->  | R123: =IF(①はじめに!F82=TRUE,①はじめに!D79,"")&"" ->  | U123: =IF(①はじめに!F82=TRUE,①はじめに!H79,"")&"" ->  | X123: =IF(①はじめに!F82=TRUE,①はじめに!F79,"")&"" ->  | BB123: 0 | BE123: 0 | CB123: 常勤・兼務 | CC123: =COUNTIF($J$61:$L$83,CB123) -> 0
A124: =+A120 -> 11 | B124: =IF(①はじめに!G82=TRUE,①はじめに!D77,"") ->  | G124: =IF(①はじめに!G82=TRUE,"日中支援員","") ->  | O124: =IF(①はじめに!G82=TRUE,①はじめに!G77,"") ->  | R124: =IF(①はじめに!G82=TRUE,①はじめに!D79,"")&"" ->  | U124: =IF(①はじめに!G82=TRUE,①はじめに!H79,"")&"" ->  | X124: =IF(①はじめに!G82=TRUE,①はじめに!F79,"")&"" ->  | BB124: 0 | BE124: 0 | CB124: 非常勤・専従 | CC124: =COUNTIF($J$61:$L$83,CB124) -> 0
A125: =+A120 -> 11 | B125: =IF(①はじめに!H82=TRUE,①はじめに!D77,"") ->  | G125: =IF(①はじめに!H82=TRUE,"加配要員","") ->  | O125: =IF(①はじめに!H82=TRUE,①はじめに!G77,"") ->  | R125: =IF(①はじめに!H82=TRUE,①はじめに!D79,"")&"" ->  | U125: =IF(①はじめに!H82=TRUE,①はじめに!H79,"")&"" ->  | X125: =IF(①はじめに!H82=TRUE,①はじめに!F79,"")&"" ->  | BB125: 0 | BE125: 0
A126: =+A120+1 -> 12 | B126: =IF(①はじめに!C88=TRUE,①はじめに!D83,"") ->  | G126: =IF(①はじめに!C88=TRUE,"サービス管理責任者","") ->  | O126: =IF(①はじめに!C88=TRUE,①はじめに!G83,"") ->  | R126: =IF(①はじめに!C88=TRUE,①はじめに!D85,"")&"" ->  | U126: =IF(①はじめに!C88=TRUE,①はじめに!H85,"")&"" ->  | X126: =IF(①はじめに!C88=TRUE,①はじめに!F85,"")&"" ->  | BB126: 0 | BE126: 0
A127: =+A126 -> 12 | B127: =IF(①はじめに!D88=TRUE,①はじめに!D83,"") ->  | G127: =IF(①はじめに!D88=TRUE,"世話人","") ->  | O127: =IF(①はじめに!D88=TRUE,①はじめに!G83,"") ->  | R127: =IF(①はじめに!D88=TRUE,①はじめに!D85,"")&"" ->  | U127: =IF(①はじめに!D88=TRUE,①はじめに!H85,"")&"" ->  | X127: =IF(①はじめに!D88=TRUE,①はじめに!F85,"")&"" ->  | BB127: 0 | BE127: 0
A128: =+A126 -> 12 | B128: =IF(①はじめに!E88=TRUE,①はじめに!D83,"") ->  | G128: =IF(①はじめに!E88=TRUE,"生活支援員","") ->  | O128: =IF(①はじめに!E88=TRUE,①はじめに!G83,"") ->  | R128: =IF(①はじめに!E88=TRUE,①はじめに!D85,"")&"" ->  | U128: =IF(①はじめに!E88=TRUE,①はじめに!H85,"")&"" ->  | X128: =IF(①はじめに!E88=TRUE,①はじめに!F85,"")&"" ->  | BB128: 0 | BE128: 0 | CB128: 常勤・専従 | CC128: =COUNTIF($J$61:$L$83,CB128) -> 0
A129: =+A126 -> 12 | B129: =IF(①はじめに!F88=TRUE,①はじめに!D83,"") ->  | G129: =IF(①はじめに!F88=TRUE,"夜間支援員","") ->  | O129: =IF(①はじめに!F88=TRUE,①はじめに!G83,"") ->  | R129: =IF(①はじめに!F88=TRUE,①はじめに!D85,"")&"" ->  | U129: =IF(①はじめに!F88=TRUE,①はじめに!H85,"")&"" ->  | X129: =IF(①はじめに!F88=TRUE,①はじめに!F85,"")&"" ->  | BB129: 0 | BE129: 0 | CB129: 常勤・兼務 | CC129: =COUNTIF($J$61:$L$83,CB129) -> 0
A130: =+A126 -> 12 | B130: =IF(①はじめに!G88=TRUE,①はじめに!D83,"") ->  | G130: =IF(①はじめに!G88=TRUE,"日中支援員","") ->  | O130: =IF(①はじめに!G88=TRUE,①はじめに!G83,"") ->  | R130: =IF(①はじめに!G88=TRUE,①はじめに!D85,"")&"" ->  | U130: =IF(①はじめに!G88=TRUE,①はじめに!H85,"")&"" ->  | X130: =IF(①はじめに!G88=TRUE,①はじめに!F85,"")&"" ->  | BB130: 0 | BE130: 0
A131: =+A126 -> 12 | B131: =IF(①はじめに!H88=TRUE,①はじめに!D83,"") ->  | G131: =IF(①はじめに!H88=TRUE,"加配要員","") ->  | O131: =IF(①はじめに!H88=TRUE,①はじめに!G83,"") ->  | R131: =IF(①はじめに!H88=TRUE,①はじめに!D85,"")&"" ->  | U131: =IF(①はじめに!H88=TRUE,①はじめに!H85,"")&"" ->  | X131: =IF(①はじめに!H88=TRUE,①はじめに!F85,"")&"" ->  | BB131: 0 | BE131: 0
A132: =+A126+1 -> 13 | B132: =IF(①はじめに!C94=TRUE,①はじめに!D89,"") ->  | G132: =IF(①はじめに!C94=TRUE,"サービス管理責任者","") ->  | O132: =IF(①はじめに!C94=TRUE,①はじめに!G89,"") ->  | R132: =IF(①はじめに!C94=TRUE,①はじめに!D91,"")&"" ->  | U132: =IF(①はじめに!C94=TRUE,①はじめに!H91,"")&"" ->  | X132: =IF(①はじめに!C94=TRUE,①はじめに!F91,"")&"" ->  | BB132: 0 | BE132: 0 | CB132: 常勤・専従 | CC132: =COUNTIF($J$61:$L$83,CB132) -> 0
A133: =+A132 -> 13 | B133: =IF(①はじめに!D94=TRUE,①はじめに!D89,"") ->  | G133: =IF(①はじめに!D94=TRUE,"世話人","") ->  | O133: =IF(①はじめに!D94=TRUE,①はじめに!G89,"") ->  | R133: =IF(①はじめに!D94=TRUE,①はじめに!D91,"")&"" ->  | U133: =IF(①はじめに!D94=TRUE,①はじめに!H91,"")&"" ->  | X133: =IF(①はじめに!D94=TRUE,①はじめに!F91,"")&"" ->  | BB133: 0 | BE133: 0 | CB133: 常勤・兼務 | CC133: =COUNTIF($J$61:$L$83,CB133) -> 0
A134: =+A132 -> 13 | B134: =IF(①はじめに!E94=TRUE,①はじめに!D89,"") ->  | G134: =IF(①はじめに!E94=TRUE,"生活支援員","") ->  | O134: =IF(①はじめに!E94=TRUE,①はじめに!G89,"") ->  | R134: =IF(①はじめに!E94=TRUE,①はじめに!D91,"")&"" ->  | U134: =IF(①はじめに!E94=TRUE,①はじめに!H91,"")&"" ->  | X134: =IF(①はじめに!E94=TRUE,①はじめに!F91,"")&"" ->  | BB134: 0 | BE134: 0 | CB134: 非常勤・専従 | CC134: =COUNTIF($J$61:$L$83,CB134) -> 0
A135: =+A132 -> 13 | B135: =IF(①はじめに!F94=TRUE,①はじめに!D89,"") ->  | G135: =IF(①はじめに!F94=TRUE,"夜間支援員","") ->  | O135: =IF(①はじめに!F94=TRUE,①はじめに!G89,"") ->  | R135: =IF(①はじめに!F94=TRUE,①はじめに!D91,"")&"" ->  | U135: =IF(①はじめに!F94=TRUE,①はじめに!H91,"")&"" ->  | X135: =IF(①はじめに!F94=TRUE,①はじめに!F91,"")&"" ->  | BB135: 0 | BE135: 0
A136: =+A132 -> 13 | B136: =IF(①はじめに!G94=TRUE,①はじめに!D89,"") ->  | G136: =IF(①はじめに!G94=TRUE,"日中支援員","") ->  | O136: =IF(①はじめに!G94=TRUE,①はじめに!G89,"") ->  | R136: =IF(①はじめに!G94=TRUE,①はじめに!D91,"")&"" ->  | U136: =IF(①はじめに!G94=TRUE,①はじめに!H91,"")&"" ->  | X136: =IF(①はじめに!G94=TRUE,①はじめに!F91,"")&"" ->  | BB136: 0 | BE136: 0
A137: =+A132 -> 13 | B137: =IF(①はじめに!H94=TRUE,①はじめに!D89,"") ->  | G137: =IF(①はじめに!H94=TRUE,"加配要員","") ->  | O137: =IF(①はじめに!H94=TRUE,①はじめに!G89,"") ->  | R137: =IF(①はじめに!H94=TRUE,①はじめに!D91,"")&"" ->  | U137: =IF(①はじめに!H94=TRUE,①はじめに!H91,"")&"" ->  | X137: =IF(①はじめに!H94=TRUE,①はじめに!F91,"")&"" ->  | BB137: 0 | BE137: 0
A138: =+A132+1 -> 14 | B138: =IF(①はじめに!C100=TRUE,①はじめに!D95,"") ->  | G138: =IF(①はじめに!C100=TRUE,"サービス管理責任者","") ->  | O138: =IF(①はじめに!C100=TRUE,①はじめに!G95,"") ->  | R138: =IF(①はじめに!C100=TRUE,①はじめに!D97,"")&"" ->  | U138: =IF(①はじめに!C100=TRUE,①はじめに!H97,"")&"" ->  | X138: =IF(①はじめに!C100=TRUE,①はじめに!F97,"")&"" ->  | BB138: 0 | BE138: 0
A139: =+A138 -> 14 | B139: =IF(①はじめに!D100=TRUE,①はじめに!D95,"") ->  | G139: =IF(①はじめに!D100=TRUE,"世話人","") ->  | O139: =IF(①はじめに!D100=TRUE,①はじめに!G95,"") ->  | R139: =IF(①はじめに!D100=TRUE,①はじめに!D97,"")&"" ->  | U139: =IF(①はじめに!D100=TRUE,①はじめに!H97,"")&"" ->  | X139: =IF(①はじめに!D100=TRUE,①はじめに!F97,"")&"" ->  | BB139: 0 | BE139: 0
A140: =+A138 -> 14 | B140: =IF(①はじめに!E100=TRUE,①はじめに!D95,"") ->  | G140: =IF(①はじめに!E100=TRUE,"生活支援員","") ->  | O140: =IF(①はじめに!E100=TRUE,①はじめに!G95,"") ->  | R140: =IF(①はじめに!E100=TRUE,①はじめに!D97,"")&"" ->  | U140: =IF(①はじめに!E100=TRUE,①はじめに!H97,"")&"" ->  | X140: =IF(①はじめに!E100=TRUE,①はじめに!F97,"")&"" ->  | BB140: 0 | BE140: 0 | CB140: 常勤・専従 | CC140: =COUNTIF($J$61:$L$83,CB140) -> 0
A141: =+A138 -> 14 | B141: =IF(①はじめに!F100=TRUE,①はじめに!D95,"") ->  | G141: =IF(①はじめに!F100=TRUE,"夜間支援員","") ->  | O141: =IF(①はじめに!F100=TRUE,①はじめに!G95,"") ->  | R141: =IF(①はじめに!F100=TRUE,①はじめに!D97,"")&"" ->  | U141: =IF(①はじめに!F100=TRUE,①はじめに!H97,"")&"" ->  | X141: =IF(①はじめに!F100=TRUE,①はじめに!F97,"")&"" ->  | BB141: 0 | BE141: 0 | CB141: 常勤・兼務 | CC141: =COUNTIF($J$61:$L$83,CB141) -> 0
A142: =+A138 -> 14 | B142: =IF(①はじめに!G100=TRUE,①はじめに!D95,"") ->  | G142: =IF(①はじめに!G100=TRUE,"日中支援員","") ->  | O142: =IF(①はじめに!G100=TRUE,①はじめに!G95,"") ->  | R142: =IF(①はじめに!G100=TRUE,①はじめに!D97,"")&"" ->  | U142: =IF(①はじめに!G100=TRUE,①はじめに!H97,"")&"" ->  | X142: =IF(①はじめに!G100=TRUE,①はじめに!F97,"")&"" ->  | BB142: 0 | BE142: 0
A143: =+A138 -> 14 | B143: =IF(①はじめに!H100=TRUE,①はじめに!D95,"") ->  | G143: =IF(①はじめに!H100=TRUE,"加配要員","") ->  | O143: =IF(①はじめに!H100=TRUE,①はじめに!G95,"") ->  | R143: =IF(①はじめに!H100=TRUE,①はじめに!D97,"")&"" ->  | U143: =IF(①はじめに!H100=TRUE,①はじめに!H97,"")&"" ->  | X143: =IF(①はじめに!H100=TRUE,①はじめに!F97,"")&"" ->  | BB143: 0 | BE143: 0
A144: =+A138+1 -> 15 | B144: =IF(①はじめに!C106=TRUE,①はじめに!D101,"") ->  | G144: =IF(①はじめに!C106=TRUE,"サービス管理責任者","") ->  | O144: =IF(①はじめに!C106=TRUE,①はじめに!G101,"") ->  | R144: =IF(①はじめに!C106=TRUE,①はじめに!D103,"")&"" ->  | U144: =IF(①はじめに!C106=TRUE,①はじめに!H103,"")&"" ->  | X144: =IF(①はじめに!C106=TRUE,①はじめに!F103,"")&"" ->  | BB144: 0 | BE144: 0 | CB144: 常勤・専従 | CC144: =COUNTIF($J$61:$L$83,CB144) -> 0
A145: =+A144 -> 15 | B145: =IF(①はじめに!D106=TRUE,①はじめに!D101,"") ->  | G145: =IF(①はじめに!D106=TRUE,"世話人","") ->  | O145: =IF(①はじめに!D106=TRUE,①はじめに!G101,"") ->  | R145: =IF(①はじめに!D106=TRUE,①はじめに!D103,"")&"" ->  | U145: =IF(①はじめに!D106=TRUE,①はじめに!H103,"")&"" ->  | X145: =IF(①はじめに!D106=TRUE,①はじめに!F103,"")&"" ->  | BB145: 0 | BE145: 0 | CB145: 常勤・兼務 | CC145: =COUNTIF($J$61:$L$83,CB145) -> 0
A146: =+A144 -> 15 | B146: =IF(①はじめに!E106=TRUE,①はじめに!D101,"") ->  | G146: =IF(①はじめに!E106=TRUE,"生活支援員","") ->  | O146: =IF(①はじめに!E106=TRUE,①はじめに!G101,"") ->  | R146: =IF(①はじめに!E106=TRUE,①はじめに!D103,"")&"" ->  | U146: =IF(①はじめに!E106=TRUE,①はじめに!H103,"")&"" ->  | X146: =IF(①はじめに!E106=TRUE,①はじめに!F103,"")&"" ->  | BB146: 0 | BE146: 0 | CB146: 非常勤・専従 | CC146: =COUNTIF($J$61:$L$83,CB146) -> 0
A147: =+A144 -> 15 | B147: =IF(①はじめに!F106=TRUE,①はじめに!D101,"") ->  | G147: =IF(①はじめに!F106=TRUE,"夜間支援員","") ->  | O147: =IF(①はじめに!F106=TRUE,①はじめに!G101,"") ->  | R147: =IF(①はじめに!F106=TRUE,①はじめに!D103,"")&"" ->  | U147: =IF(①はじめに!F106=TRUE,①はじめに!H103,"")&"" ->  | X147: =IF(①はじめに!F106=TRUE,①はじめに!F103,"")&"" ->  | BB147: 0 | BE147: 0
A148: =+A144 -> 15 | B148: =IF(①はじめに!G106=TRUE,①はじめに!D101,"") ->  | G148: =IF(①はじめに!G106=TRUE,"日中支援員","") ->  | O148: =IF(①はじめに!G106=TRUE,①はじめに!G101,"") ->  | R148: =IF(①はじめに!G106=TRUE,①はじめに!D103,"")&"" ->  | U148: =IF(①はじめに!G106=TRUE,①はじめに!H103,"")&"" ->  | X148: =IF(①はじめに!G106=TRUE,①はじめに!F103,"")&"" ->  | BB148: 0 | BE148: 0
A149: =+A144 -> 15 | B149: =IF(①はじめに!H106=TRUE,①はじめに!D101,"") ->  | G149: =IF(①はじめに!H106=TRUE,"加配要員","") ->  | O149: =IF(①はじめに!H106=TRUE,①はじめに!G101,"") ->  | R149: =IF(①はじめに!H106=TRUE,①はじめに!D103,"")&"" ->  | U149: =IF(①はじめに!H106=TRUE,①はじめに!H103,"")&"" ->  | X149: =IF(①はじめに!H106=TRUE,①はじめに!F103,"")&"" ->  | BB149: 0 | BE149: 0
A150: =+A144+1 -> 16 | B150: =IF(①はじめに!C112=TRUE,①はじめに!D107,"") ->  | G150: =IF(①はじめに!C112=TRUE,"サービス管理責任者","") ->  | O150: =IF(①はじめに!C112=TRUE,①はじめに!G107,"") ->  | R150: =IF(①はじめに!C112=TRUE,①はじめに!D109,"")&"" ->  | U150: =IF(①はじめに!C112=TRUE,①はじめに!H109,"")&"" ->  | X150: =IF(①はじめに!C112=TRUE,①はじめに!F109,"")&"" ->  | BB150: 0 | BE150: 0
A151: =+A150 -> 16 | B151: =IF(①はじめに!D112=TRUE,①はじめに!D107,"") ->  | G151: =IF(①はじめに!D112=TRUE,"世話人","") ->  | O151: =IF(①はじめに!D112=TRUE,①はじめに!G107,"") ->  | R151: =IF(①はじめに!D112=TRUE,①はじめに!D109,"")&"" ->  | U151: =IF(①はじめに!D112=TRUE,①はじめに!H109,"")&"" ->  | X151: =IF(①はじめに!D112=TRUE,①はじめに!F109,"")&"" ->  | BB151: 0 | BE151: 0
A152: =+A150 -> 16 | B152: =IF(①はじめに!E112=TRUE,①はじめに!D107,"") ->  | G152: =IF(①はじめに!E112=TRUE,"生活支援員","") ->  | O152: =IF(①はじめに!E112=TRUE,①はじめに!G107,"") ->  | R152: =IF(①はじめに!E112=TRUE,①はじめに!D109,"")&"" ->  | U152: =IF(①はじめに!E112=TRUE,①はじめに!H109,"")&"" ->  | X152: =IF(①はじめに!E112=TRUE,①はじめに!F109,"")&"" ->  | BB152: 0 | BE152: 0 | CB152: 常勤・専従 | CC152: =COUNTIF($J$61:$L$83,CB152) -> 0
A153: =+A150 -> 16 | B153: =IF(①はじめに!F112=TRUE,①はじめに!D107,"") ->  | G153: =IF(①はじめに!F112=TRUE,"夜間支援員","") ->  | O153: =IF(①はじめに!F112=TRUE,①はじめに!G107,"") ->  | R153: =IF(①はじめに!F112=TRUE,①はじめに!D109,"")&"" ->  | U153: =IF(①はじめに!F112=TRUE,①はじめに!H109,"")&"" ->  | X153: =IF(①はじめに!F112=TRUE,①はじめに!F109,"")&"" ->  | BB153: 0 | BE153: 0 | CB153: 常勤・兼務 | CC153: =COUNTIF($J$61:$L$83,CB153) -> 0
A154: =+A150 -> 16 | B154: =IF(①はじめに!G112=TRUE,①はじめに!D107,"") ->  | G154: =IF(①はじめに!G112=TRUE,"日中支援員","") ->  | O154: =IF(①はじめに!G112=TRUE,①はじめに!G107,"") ->  | R154: =IF(①はじめに!G112=TRUE,①はじめに!D109,"")&"" ->  | U154: =IF(①はじめに!G112=TRUE,①はじめに!H109,"")&"" ->  | X154: =IF(①はじめに!G112=TRUE,①はじめに!F109,"")&"" ->  | BB154: 0 | BE154: 0 | CB154: 非常勤・専従 | CC154: =COUNTIF($J$61:$L$83,CB154) -> 0
A155: =+A150 -> 16 | B155: =IF(①はじめに!H112=TRUE,①はじめに!D107,"") ->  | G155: =IF(①はじめに!H112=TRUE,"加配要員","") ->  | O155: =IF(①はじめに!H112=TRUE,①はじめに!G107,"") ->  | R155: =IF(①はじめに!H112=TRUE,①はじめに!D109,"")&"" ->  | U155: =IF(①はじめに!H112=TRUE,①はじめに!H109,"")&"" ->  | X155: =IF(①はじめに!H112=TRUE,①はじめに!F109,"")&"" ->  | BB155: 0 | BE155: 0
A156: =+A150+1 -> 17 | B156: =IF(①はじめに!C118=TRUE,①はじめに!D113,"") ->  | G156: =IF(①はじめに!C118=TRUE,"サービス管理責任者","") ->  | O156: =IF(①はじめに!C118=TRUE,①はじめに!G113,"") ->  | R156: =IF(①はじめに!C118=TRUE,①はじめに!D115,"")&"" ->  | U156: =IF(①はじめに!C118=TRUE,①はじめに!H115,"")&"" ->  | X156: =IF(①はじめに!C118=TRUE,①はじめに!F115,"")&"" ->  | BB156: 0 | BE156: 0
A157: =+A156 -> 17 | B157: =IF(①はじめに!D118=TRUE,①はじめに!D113,"") ->  | G157: =IF(①はじめに!D118=TRUE,"世話人","") ->  | O157: =IF(①はじめに!D118=TRUE,①はじめに!G113,"") ->  | R157: =IF(①はじめに!D118=TRUE,①はじめに!D115,"")&"" ->  | U157: =IF(①はじめに!D118=TRUE,①はじめに!H115,"")&"" ->  | X157: =IF(①はじめに!D118=TRUE,①はじめに!F115,"")&"" ->  | BB157: 0 | BE157: 0
A158: =+A156 -> 17 | B158: =IF(①はじめに!E118=TRUE,①はじめに!D113,"") ->  | G158: =IF(①はじめに!E118=TRUE,"生活支援員","") ->  | O158: =IF(①はじめに!E118=TRUE,①はじめに!G113,"") ->  | R158: =IF(①はじめに!E118=TRUE,①はじめに!D115,"")&"" ->  | U158: =IF(①はじめに!E118=TRUE,①はじめに!H115,"")&"" ->  | X158: =IF(①はじめに!E118=TRUE,①はじめに!F115,"")&"" ->  | BB158: 0 | BE158: 0 | CB158: 常勤・専従 | CC158: =COUNTIF($J$61:$L$83,CB158) -> 0
A159: =+A156 -> 17 | B159: =IF(①はじめに!F118=TRUE,①はじめに!D113,"") ->  | G159: =IF(①はじめに!F118=TRUE,"夜間支援員","") ->  | O159: =IF(①はじめに!F118=TRUE,①はじめに!G113,"") ->  | R159: =IF(①はじめに!F118=TRUE,①はじめに!D115,"")&"" ->  | U159: =IF(①はじめに!F118=TRUE,①はじめに!H115,"")&"" ->  | X159: =IF(①はじめに!F118=TRUE,①はじめに!F115,"")&"" ->  | BB159: 0 | BE159: 0 | CB159: 常勤・兼務 | CC159: =COUNTIF($J$61:$L$83,CB159) -> 0
A160: =+A156 -> 17 | B160: =IF(①はじめに!G118=TRUE,①はじめに!D113,"") ->  | G160: =IF(①はじめに!G118=TRUE,"日中支援員","") ->  | O160: =IF(①はじめに!G118=TRUE,①はじめに!G113,"") ->  | R160: =IF(①はじめに!G118=TRUE,①はじめに!D115,"")&"" ->  | U160: =IF(①はじめに!G118=TRUE,①はじめに!H115,"")&"" ->  | X160: =IF(①はじめに!G118=TRUE,①はじめに!F115,"")&"" ->  | BB160: 0 | BE160: 0
A161: =+A156 -> 17 | B161: =IF(①はじめに!H118=TRUE,①はじめに!D113,"") ->  | G161: =IF(①はじめに!H118=TRUE,"加配要員","") ->  | O161: =IF(①はじめに!H118=TRUE,①はじめに!G113,"") ->  | R161: =IF(①はじめに!H118=TRUE,①はじめに!D115,"")&"" ->  | U161: =IF(①はじめに!H118=TRUE,①はじめに!H115,"")&"" ->  | X161: =IF(①はじめに!H118=TRUE,①はじめに!F115,"")&"" ->  | BB161: 0 | BE161: 0
A162: =+A156+1 -> 18 | B162: =IF(①はじめに!C124=TRUE,①はじめに!D119,"") ->  | G162: =IF(①はじめに!C124=TRUE,"サービス管理責任者","") ->  | O162: =IF(①はじめに!C124=TRUE,①はじめに!G119,"") ->  | R162: =IF(①はじめに!C124=TRUE,①はじめに!D121,"")&"" ->  | U162: =IF(①はじめに!C124=TRUE,①はじめに!H121,"")&"" ->  | X162: =IF(①はじめに!C124=TRUE,①はじめに!F121,"")&"" ->  | BB162: 0 | BE162: 0 | CB162: 常勤・専従 | CC162: =COUNTIF($J$61:$L$83,CB162) -> 0
A163: =+A162 -> 18 | B163: =IF(①はじめに!D124=TRUE,①はじめに!D119,"") ->  | G163: =IF(①はじめに!D124=TRUE,"世話人","") ->  | O163: =IF(①はじめに!D124=TRUE,①はじめに!G119,"") ->  | R163: =IF(①はじめに!D124=TRUE,①はじめに!D121,"")&"" ->  | U163: =IF(①はじめに!D124=TRUE,①はじめに!H121,"")&"" ->  | X163: =IF(①はじめに!D124=TRUE,①はじめに!F121,"")&"" ->  | BB163: 0 | BE163: 0 | CB163: 常勤・兼務 | CC163: =COUNTIF($J$61:$L$83,CB163) -> 0
A164: =+A162 -> 18 | B164: =IF(①はじめに!E124=TRUE,①はじめに!D119,"") ->  | G164: =IF(①はじめに!E124=TRUE,"生活支援員","") ->  | O164: =IF(①はじめに!E124=TRUE,①はじめに!G119,"") ->  | R164: =IF(①はじめに!E124=TRUE,①はじめに!D121,"")&"" ->  | U164: =IF(①はじめに!E124=TRUE,①はじめに!H121,"")&"" ->  | X164: =IF(①はじめに!E124=TRUE,①はじめに!F121,"")&"" ->  | BB164: 0 | BE164: 0 | CB164: 非常勤・専従 | CC164: =COUNTIF($J$61:$L$83,CB164) -> 0
A165: =+A162 -> 18 | B165: =IF(①はじめに!F124=TRUE,①はじめに!D119,"") ->  | G165: =IF(①はじめに!F124=TRUE,"夜間支援員","") ->  | O165: =IF(①はじめに!F124=TRUE,①はじめに!G119,"") ->  | R165: =IF(①はじめに!F124=TRUE,①はじめに!D121,"")&"" ->  | U165: =IF(①はじめに!F124=TRUE,①はじめに!H121,"")&"" ->  | X165: =IF(①はじめに!F124=TRUE,①はじめに!F121,"")&"" ->  | BB165: 0 | BE165: 0
A166: =+A162 -> 18 | B166: =IF(①はじめに!G124=TRUE,①はじめに!D119,"") ->  | G166: =IF(①はじめに!G124=TRUE,"日中支援員","") ->  | O166: =IF(①はじめに!G124=TRUE,①はじめに!G119,"") ->  | R166: =IF(①はじめに!G124=TRUE,①はじめに!D121,"")&"" ->  | U166: =IF(①はじめに!G124=TRUE,①はじめに!H121,"")&"" ->  | X166: =IF(①はじめに!G124=TRUE,①はじめに!F121,"")&"" ->  | BB166: 0 | BE166: 0
A167: =+A162 -> 18 | B167: =IF(①はじめに!H124=TRUE,①はじめに!D119,"") ->  | G167: =IF(①はじめに!H124=TRUE,"加配要員","") ->  | O167: =IF(①はじめに!H124=TRUE,①はじめに!G119,"") ->  | R167: =IF(①はじめに!H124=TRUE,①はじめに!D121,"")&"" ->  | U167: =IF(①はじめに!H124=TRUE,①はじめに!H121,"")&"" ->  | X167: =IF(①はじめに!H124=TRUE,①はじめに!F121,"")&"" ->  | BB167: 0 | BE167: 0
A168: =+A162+1 -> 19 | B168: =IF(①はじめに!C130=TRUE,①はじめに!D125,"") ->  | G168: =IF(①はじめに!C130=TRUE,"サービス管理責任者","") ->  | O168: =IF(①はじめに!C130=TRUE,①はじめに!G125,"") ->  | R168: =IF(①はじめに!C130=TRUE,①はじめに!D127,"")&"" ->  | U168: =IF(①はじめに!C130=TRUE,①はじめに!H127,"")&"" ->  | X168: =IF(①はじめに!C130=TRUE,①はじめに!F127,"")&"" ->  | BB168: 0 | BE168: 0
A169: =+A168 -> 19 | B169: =IF(①はじめに!D130=TRUE,①はじめに!D125,"") ->  | G169: =IF(①はじめに!D130=TRUE,"世話人","") ->  | O169: =IF(①はじめに!D130=TRUE,①はじめに!G125,"") ->  | R169: =IF(①はじめに!D130=TRUE,①はじめに!D127,"")&"" ->  | U169: =IF(①はじめに!D130=TRUE,①はじめに!H127,"")&"" ->  | X169: =IF(①はじめに!D130=TRUE,①はじめに!F127,"")&"" ->  | BB169: 0 | BE169: 0
A170: =+A168 -> 19 | B170: =IF(①はじめに!E130=TRUE,①はじめに!D125,"") ->  | G170: =IF(①はじめに!E130=TRUE,"生活支援員","") ->  | O170: =IF(①はじめに!E130=TRUE,①はじめに!G125,"") ->  | R170: =IF(①はじめに!E130=TRUE,①はじめに!D127,"")&"" ->  | U170: =IF(①はじめに!E130=TRUE,①はじめに!H127,"")&"" ->  | X170: =IF(①はじめに!E130=TRUE,①はじめに!F127,"")&"" ->  | BB170: 0 | BE170: 0 | CB170: 常勤・専従 | CC170: =COUNTIF($J$61:$L$83,CB170) -> 0
A171: =+A168 -> 19 | B171: =IF(①はじめに!F130=TRUE,①はじめに!D125,"") ->  | G171: =IF(①はじめに!F130=TRUE,"夜間支援員","") ->  | O171: =IF(①はじめに!F130=TRUE,①はじめに!G125,"") ->  | R171: =IF(①はじめに!F130=TRUE,①はじめに!D127,"")&"" ->  | U171: =IF(①はじめに!F130=TRUE,①はじめに!H127,"")&"" ->  | X171: =IF(①はじめに!F130=TRUE,①はじめに!F127,"")&"" ->  | BB171: 0 | BE171: 0 | CB171: 常勤・兼務 | CC171: =COUNTIF($J$61:$L$83,CB171) -> 0
A172: =+A168 -> 19 | B172: =IF(①はじめに!G130=TRUE,①はじめに!D125,"") ->  | G172: =IF(①はじめに!G130=TRUE,"日中支援員","") ->  | O172: =IF(①はじめに!G130=TRUE,①はじめに!G125,"") ->  | R172: =IF(①はじめに!G130=TRUE,①はじめに!D127,"")&"" ->  | U172: =IF(①はじめに!G130=TRUE,①はじめに!H127,"")&"" ->  | X172: =IF(①はじめに!G130=TRUE,①はじめに!F127,"")&"" ->  | BB172: 0 | BE172: 0
A173: =+A168 -> 19 | B173: =IF(①はじめに!H130=TRUE,①はじめに!D125,"") ->  | G173: =IF(①はじめに!H130=TRUE,"加配要員","") ->  | O173: =IF(①はじめに!H130=TRUE,①はじめに!G125,"") ->  | R173: =IF(①はじめに!H130=TRUE,①はじめに!D127,"")&"" ->  | U173: =IF(①はじめに!H130=TRUE,①はじめに!H127,"")&"" ->  | X173: =IF(①はじめに!H130=TRUE,①はじめに!F127,"")&"" ->  | BB173: 0 | BE173: 0
A174: =+A168+1 -> 20 | B174: =IF(①はじめに!C136=TRUE,①はじめに!D131,"") ->  | G174: =IF(①はじめに!C136=TRUE,"サービス管理責任者","") ->  | O174: =IF(①はじめに!C136=TRUE,①はじめに!G131,"") ->  | R174: =IF(①はじめに!C136=TRUE,①はじめに!D133,"")&"" ->  | U174: =IF(①はじめに!C136=TRUE,①はじめに!H133,"")&"" ->  | X174: =IF(①はじめに!C136=TRUE,①はじめに!F133,"")&"" ->  | BB174: =SUM(Z174:BA174) -> 0 | BE174: =BB174/4 -> 0 | CB174: 常勤・専従 | CC174: =COUNTIF($J$61:$L$83,CB174) -> 0
A175: =+A174 -> 20 | B175: =IF(①はじめに!D136=TRUE,①はじめに!D131,"") ->  | G175: =IF(①はじめに!D136=TRUE,"世話人","") ->  | O175: =IF(①はじめに!D136=TRUE,①はじめに!G131,"") ->  | R175: =IF(①はじめに!D136=TRUE,①はじめに!D133,"")&"" ->  | U175: =IF(①はじめに!D136=TRUE,①はじめに!H133,"")&"" ->  | X175: =IF(①はじめに!D136=TRUE,①はじめに!F133,"")&"" ->  | BB175: 0 | BE175: 0 | CB175: 常勤・兼務 | CC175: =COUNTIF($J$61:$L$83,CB175) -> 0
A176: =+A174 -> 20 | B176: =IF(①はじめに!E136=TRUE,①はじめに!D131,"") ->  | G176: =IF(①はじめに!E136=TRUE,"生活支援員","") ->  | O176: =IF(①はじめに!E136=TRUE,①はじめに!G131,"") ->  | R176: =IF(①はじめに!E136=TRUE,①はじめに!D133,"")&"" ->  | U176: =IF(①はじめに!E136=TRUE,①はじめに!H133,"")&"" ->  | X176: =IF(①はじめに!E136=TRUE,①はじめに!F133,"")&"" ->  | BB176: 0 | BE176: 0 | CB176: 非常勤・専従 | CC176: =COUNTIF($J$61:$L$83,CB176) -> 0
A177: =+A174 -> 20 | B177: =IF(①はじめに!F136=TRUE,①はじめに!D131,"") ->  | G177: =IF(①はじめに!F136=TRUE,"夜間支援員","") ->  | O177: =IF(①はじめに!F136=TRUE,①はじめに!G131,"") ->  | R177: =IF(①はじめに!F136=TRUE,①はじめに!D133,"")&"" ->  | U177: =IF(①はじめに!F136=TRUE,①はじめに!H133,"")&"" ->  | X177: =IF(①はじめに!F136=TRUE,①はじめに!F133,"")&"" ->  | BB177: 0 | BE177: 0
A178: =+A174 -> 20 | B178: =IF(①はじめに!G136=TRUE,①はじめに!D131,"") ->  | G178: =IF(①はじめに!G136=TRUE,"日中支援員","") ->  | O178: =IF(①はじめに!G136=TRUE,①はじめに!G131,"") ->  | R178: =IF(①はじめに!G136=TRUE,①はじめに!D133,"")&"" ->  | U178: =IF(①はじめに!G136=TRUE,①はじめに!H133,"")&"" ->  | X178: =IF(①はじめに!G136=TRUE,①はじめに!F133,"")&"" ->  | BB178: 0 | BE178: 0
A179: =+A174 -> 20 | B179: =IF(①はじめに!H136=TRUE,①はじめに!D131,"") ->  | G179: =IF(①はじめに!H136=TRUE,"加配要員","") ->  | O179: =IF(①はじめに!H136=TRUE,①はじめに!G131,"") ->  | R179: =IF(①はじめに!H136=TRUE,①はじめに!D133,"")&"" ->  | U179: =IF(①はじめに!H136=TRUE,①はじめに!H133,"")&"" ->  | X179: =IF(①はじめに!H136=TRUE,①はじめに!F133,"")&"" ->  | BB179: 0 | BE179: 0
A180: =+A174+1 -> 21 | B180: =IF(①はじめに!C142=TRUE,①はじめに!D137,"") ->  | G180: =IF(①はじめに!C142=TRUE,"サービス管理責任者","") ->  | O180: =IF(①はじめに!C142=TRUE,①はじめに!G137,"") ->  | R180: =IF(①はじめに!C142=TRUE,①はじめに!D139,"")&"" ->  | U180: =IF(①はじめに!C142=TRUE,①はじめに!H139,"")&"" ->  | X180: =IF(①はじめに!C142=TRUE,①はじめに!F139,"")&"" ->  | BB180: 0 | BE180: 0
A181: =+A180 -> 21 | B181: =IF(①はじめに!D142=TRUE,①はじめに!D137,"") ->  | G181: =IF(①はじめに!D142=TRUE,"世話人","") ->  | O181: =IF(①はじめに!D142=TRUE,①はじめに!G137,"") ->  | R181: =IF(①はじめに!D142=TRUE,①はじめに!D139,"")&"" ->  | U181: =IF(①はじめに!D142=TRUE,①はじめに!H139,"")&"" ->  | X181: =IF(①はじめに!D142=TRUE,①はじめに!F139,"")&"" ->  | BB181: 0 | BE181: 0
A182: =+A180 -> 21 | B182: =IF(①はじめに!E142=TRUE,①はじめに!D137,"") ->  | G182: =IF(①はじめに!E142=TRUE,"生活支援員","") ->  | O182: =IF(①はじめに!E142=TRUE,①はじめに!G137,"") ->  | R182: =IF(①はじめに!E142=TRUE,①はじめに!D139,"")&"" ->  | U182: =IF(①はじめに!E142=TRUE,①はじめに!H139,"")&"" ->  | X182: =IF(①はじめに!E142=TRUE,①はじめに!F139,"")&"" ->  | BB182: 0 | BE182: 0 | CB182: 常勤・専従 | CC182: =COUNTIF($J$61:$L$83,CB182) -> 0
A183: =+A180 -> 21 | B183: =IF(①はじめに!F142=TRUE,①はじめに!D137,"") ->  | G183: =IF(①はじめに!F142=TRUE,"夜間支援員","") ->  | O183: =IF(①はじめに!F142=TRUE,①はじめに!G137,"") ->  | R183: =IF(①はじめに!F142=TRUE,①はじめに!D139,"")&"" ->  | U183: =IF(①はじめに!F142=TRUE,①はじめに!H139,"")&"" ->  | X183: =IF(①はじめに!F142=TRUE,①はじめに!F139,"")&"" ->  | BB183: 0 | BE183: 0 | CB183: 常勤・兼務 | CC183: =COUNTIF($J$61:$L$83,CB183) -> 0
A184: =+A180 -> 21 | B184: =IF(①はじめに!G142=TRUE,①はじめに!D137,"") ->  | G184: =IF(①はじめに!G142=TRUE,"日中支援員","") ->  | O184: =IF(①はじめに!G142=TRUE,①はじめに!G137,"") ->  | R184: =IF(①はじめに!G142=TRUE,①はじめに!D139,"")&"" ->  | U184: =IF(①はじめに!G142=TRUE,①はじめに!H139,"")&"" ->  | X184: =IF(①はじめに!G142=TRUE,①はじめに!F139,"")&"" ->  | BB184: 0 | BE184: 0 | CB184: 非常勤・専従 | CC184: =COUNTIF($J$61:$L$83,CB184) -> 0
A185: =+A180 -> 21 | B185: =IF(①はじめに!H142=TRUE,①はじめに!D137,"") ->  | G185: =IF(①はじめに!H142=TRUE,"加配要員","") ->  | O185: =IF(①はじめに!H142=TRUE,①はじめに!G137,"") ->  | R185: =IF(①はじめに!H142=TRUE,①はじめに!D139,"")&"" ->  | U185: =IF(①はじめに!H142=TRUE,①はじめに!H139,"")&"" ->  | X185: =IF(①はじめに!H142=TRUE,①はじめに!F139,"")&"" ->  | BB185: 0 | BE185: 0
A186: =+A180+1 -> 22 | B186: =IF(①はじめに!C148=TRUE,①はじめに!D143,"") ->  | G186: =IF(①はじめに!C148=TRUE,"サービス管理責任者","") ->  | O186: =IF(①はじめに!C148=TRUE,①はじめに!G143,"") ->  | R186: =IF(①はじめに!C148=TRUE,①はじめに!D145,"")&"" ->  | U186: =IF(①はじめに!C148=TRUE,①はじめに!H145,"")&"" ->  | X186: =IF(①はじめに!C148=TRUE,①はじめに!F145,"")&"" ->  | BB186: 0 | BE186: 0
A187: =+A186 -> 22 | B187: =IF(①はじめに!D148=TRUE,①はじめに!D143,"") ->  | G187: =IF(①はじめに!D148=TRUE,"世話人","") ->  | O187: =IF(①はじめに!D148=TRUE,①はじめに!G143,"") ->  | R187: =IF(①はじめに!D148=TRUE,①はじめに!D145,"")&"" ->  | U187: =IF(①はじめに!D148=TRUE,①はじめに!H145,"")&"" ->  | X187: =IF(①はじめに!D148=TRUE,①はじめに!F145,"")&"" ->  | BB187: 0 | BE187: 0
A188: =+A186 -> 22 | B188: =IF(①はじめに!E148=TRUE,①はじめに!D143,"") ->  | G188: =IF(①はじめに!E148=TRUE,"生活支援員","") ->  | O188: =IF(①はじめに!E148=TRUE,①はじめに!G143,"") ->  | R188: =IF(①はじめに!E148=TRUE,①はじめに!D145,"")&"" ->  | U188: =IF(①はじめに!E148=TRUE,①はじめに!H145,"")&"" ->  | X188: =IF(①はじめに!E148=TRUE,①はじめに!F145,"")&"" ->  | BB188: 0 | BE188: 0 | CB188: 常勤・専従 | CC188: =COUNTIF($J$61:$L$83,CB188) -> 0
A189: =+A186 -> 22 | B189: =IF(①はじめに!F148=TRUE,①はじめに!D143,"") ->  | G189: =IF(①はじめに!F148=TRUE,"夜間支援員","") ->  | O189: =IF(①はじめに!F148=TRUE,①はじめに!G143,"") ->  | R189: =IF(①はじめに!F148=TRUE,①はじめに!D145,"")&"" ->  | U189: =IF(①はじめに!F148=TRUE,①はじめに!H145,"")&"" ->  | X189: =IF(①はじめに!F148=TRUE,①はじめに!F145,"")&"" ->  | BB189: 0 | BE189: 0 | CB189: 常勤・兼務 | CC189: =COUNTIF($J$61:$L$83,CB189) -> 0
A190: =+A186 -> 22 | B190: =IF(①はじめに!G148=TRUE,①はじめに!D143,"") ->  | G190: =IF(①はじめに!G148=TRUE,"日中支援員","") ->  | O190: =IF(①はじめに!G148=TRUE,①はじめに!G143,"") ->  | R190: =IF(①はじめに!G148=TRUE,①はじめに!D145,"")&"" ->  | U190: =IF(①はじめに!G148=TRUE,①はじめに!H145,"")&"" ->  | X190: =IF(①はじめに!G148=TRUE,①はじめに!F145,"")&"" ->  | BB190: 0 | BE190: 0
A191: =+A186 -> 22 | B191: =IF(①はじめに!H148=TRUE,①はじめに!D143,"") ->  | G191: =IF(①はじめに!H148=TRUE,"加配要員","") ->  | O191: =IF(①はじめに!H148=TRUE,①はじめに!G143,"") ->  | R191: =IF(①はじめに!H148=TRUE,①はじめに!D145,"")&"" ->  | U191: =IF(①はじめに!H148=TRUE,①はじめに!H145,"")&"" ->  | X191: =IF(①はじめに!H148=TRUE,①はじめに!F145,"")&"" ->  | BB191: 0 | BE191: 0
A192: =+A186+1 -> 23 | B192: =IF(①はじめに!C154=TRUE,①はじめに!D149,"") ->  | G192: =IF(①はじめに!C154=TRUE,"サービス管理責任者","") ->  | O192: =IF(①はじめに!C154=TRUE,①はじめに!G149,"") ->  | R192: =IF(①はじめに!C154=TRUE,①はじめに!D151,"")&"" ->  | U192: =IF(①はじめに!C154=TRUE,①はじめに!H151,"")&"" ->  | X192: =IF(①はじめに!C154=TRUE,①はじめに!F151,"")&"" ->  | BB192: 0 | BE192: 0 | CB192: 常勤・専従 | CC192: =COUNTIF($J$61:$L$83,CB192) -> 0
A193: =+A192 -> 23 | B193: =IF(①はじめに!D154=TRUE,①はじめに!D149,"") ->  | G193: =IF(①はじめに!D154=TRUE,"世話人","") ->  | O193: =IF(①はじめに!D154=TRUE,①はじめに!G149,"") ->  | R193: =IF(①はじめに!D154=TRUE,①はじめに!D151,"")&"" ->  | U193: =IF(①はじめに!D154=TRUE,①はじめに!H151,"")&"" ->  | X193: =IF(①はじめに!D154=TRUE,①はじめに!F151,"")&"" ->  | BB193: 0 | BE193: 0 | CB193: 常勤・兼務 | CC193: =COUNTIF($J$61:$L$83,CB193) -> 0
A194: =+A192 -> 23 | B194: =IF(①はじめに!E154=TRUE,①はじめに!D149,"") ->  | G194: =IF(①はじめに!E154=TRUE,"生活支援員","") ->  | O194: =IF(①はじめに!E154=TRUE,①はじめに!G149,"") ->  | R194: =IF(①はじめに!E154=TRUE,①はじめに!D151,"")&"" ->  | U194: =IF(①はじめに!E154=TRUE,①はじめに!H151,"")&"" ->  | X194: =IF(①はじめに!E154=TRUE,①はじめに!F151,"")&"" ->  | BB194: 0 | BE194: 0 | CB194: 非常勤・専従 | CC194: =COUNTIF($J$61:$L$83,CB194) -> 0
A195: =+A192 -> 23 | B195: =IF(①はじめに!F154=TRUE,①はじめに!D149,"") ->  | G195: =IF(①はじめに!F154=TRUE,"夜間支援員","") ->  | O195: =IF(①はじめに!F154=TRUE,①はじめに!G149,"") ->  | R195: =IF(①はじめに!F154=TRUE,①はじめに!D151,"")&"" ->  | U195: =IF(①はじめに!F154=TRUE,①はじめに!H151,"")&"" ->  | X195: =IF(①はじめに!F154=TRUE,①はじめに!F151,"")&"" ->  | BB195: 0 | BE195: 0
A196: =+A192 -> 23 | B196: =IF(①はじめに!G154=TRUE,①はじめに!D149,"") ->  | G196: =IF(①はじめに!G154=TRUE,"日中支援員","") ->  | O196: =IF(①はじめに!G154=TRUE,①はじめに!G149,"") ->  | R196: =IF(①はじめに!G154=TRUE,①はじめに!D151,"")&"" ->  | U196: =IF(①はじめに!G154=TRUE,①はじめに!H151,"")&"" ->  | X196: =IF(①はじめに!G154=TRUE,①はじめに!F151,"")&"" ->  | BB196: 0 | BE196: 0
A197: =+A192 -> 23 | B197: =IF(①はじめに!H154=TRUE,①はじめに!D149,"") ->  | G197: =IF(①はじめに!H154=TRUE,"加配要員","") ->  | O197: =IF(①はじめに!H154=TRUE,①はじめに!G149,"") ->  | R197: =IF(①はじめに!H154=TRUE,①はじめに!D151,"")&"" ->  | U197: =IF(①はじめに!H154=TRUE,①はじめに!H151,"")&"" ->  | X197: =IF(①はじめに!H154=TRUE,①はじめに!F151,"")&"" ->  | BB197: 0 | BE197: 0
A198: =+A192+1 -> 24 | B198: =IF(①はじめに!C160=TRUE,①はじめに!D155,"") ->  | G198: =IF(①はじめに!C160=TRUE,"サービス管理責任者","") ->  | O198: =IF(①はじめに!C160=TRUE,①はじめに!G155,"") ->  | R198: =IF(①はじめに!C160=TRUE,①はじめに!D157,"")&"" ->  | U198: =IF(①はじめに!C160=TRUE,①はじめに!H157,"")&"" ->  | X198: =IF(①はじめに!C160=TRUE,①はじめに!F157,"")&"" ->  | BB198: 0 | BE198: 0
A199: =+A198 -> 24 | B199: =IF(①はじめに!D160=TRUE,①はじめに!D155,"") ->  | G199: =IF(①はじめに!D160=TRUE,"世話人","") ->  | O199: =IF(①はじめに!D160=TRUE,①はじめに!G155,"") ->  | R199: =IF(①はじめに!D160=TRUE,①はじめに!D157,"")&"" ->  | U199: =IF(①はじめに!D160=TRUE,①はじめに!H157,"")&"" ->  | X199: =IF(①はじめに!D160=TRUE,①はじめに!F157,"")&"" ->  | BB199: 0 | BE199: 0
A200: =+A198 -> 24 | B200: =IF(①はじめに!E160=TRUE,①はじめに!D155,"") ->  | G200: =IF(①はじめに!E160=TRUE,"生活支援員","") ->  | O200: =IF(①はじめに!E160=TRUE,①はじめに!G155,"") ->  | R200: =IF(①はじめに!E160=TRUE,①はじめに!D157,"")&"" ->  | U200: =IF(①はじめに!E160=TRUE,①はじめに!H157,"")&"" ->  | X200: =IF(①はじめに!E160=TRUE,①はじめに!F157,"")&"" ->  | BB200: 0 | BE200: 0 | CB200: 常勤・専従 | CC200: =COUNTIF($J$61:$L$83,CB200) -> 0
A201: =+A198 -> 24 | B201: =IF(①はじめに!F160=TRUE,①はじめに!D155,"") ->  | G201: =IF(①はじめに!F160=TRUE,"夜間支援員","") ->  | O201: =IF(①はじめに!F160=TRUE,①はじめに!G155,"") ->  | R201: =IF(①はじめに!F160=TRUE,①はじめに!D157,"")&"" ->  | U201: =IF(①はじめに!F160=TRUE,①はじめに!H157,"")&"" ->  | X201: =IF(①はじめに!F160=TRUE,①はじめに!F157,"")&"" ->  | BB201: 0 | BE201: 0 | CB201: 常勤・兼務 | CC201: =COUNTIF($J$61:$L$83,CB201) -> 0
A202: =+A198 -> 24 | B202: =IF(①はじめに!G160=TRUE,①はじめに!D155,"") ->  | G202: =IF(①はじめに!G160=TRUE,"日中支援員","") ->  | O202: =IF(①はじめに!G160=TRUE,①はじめに!G155,"") ->  | R202: =IF(①はじめに!G160=TRUE,①はじめに!D157,"")&"" ->  | U202: =IF(①はじめに!G160=TRUE,①はじめに!H157,"")&"" ->  | X202: =IF(①はじめに!G160=TRUE,①はじめに!F157,"")&"" ->  | BB202: 0 | BE202: 0
A203: =+A198 -> 24 | B203: =IF(①はじめに!H160=TRUE,①はじめに!D155,"") ->  | G203: =IF(①はじめに!H160=TRUE,"加配要員","") ->  | O203: =IF(①はじめに!H160=TRUE,①はじめに!G155,"") ->  | R203: =IF(①はじめに!H160=TRUE,①はじめに!D157,"")&"" ->  | U203: =IF(①はじめに!H160=TRUE,①はじめに!H157,"")&"" ->  | X203: =IF(①はじめに!H160=TRUE,①はじめに!F157,"")&"" ->  | BB203: 0 | BE203: 0
A204: =+A198+1 -> 25 | B204: =IF(①はじめに!C166=TRUE,①はじめに!D161,"") ->  | G204: =IF(①はじめに!C166=TRUE,"サービス管理責任者","") ->  | O204: =IF(①はじめに!C166=TRUE,①はじめに!G161,"") ->  | R204: =IF(①はじめに!C166=TRUE,①はじめに!D163,"")&"" ->  | U204: =IF(①はじめに!C166=TRUE,①はじめに!H163,"")&"" ->  | X204: =IF(①はじめに!C166=TRUE,①はじめに!F163,"")&"" ->  | BB204: 0 | BE204: 0 | CB204: 常勤・専従 | CC204: =COUNTIF($J$61:$L$83,CB204) -> 0
A205: =+A204 -> 25 | B205: =IF(①はじめに!D166=TRUE,①はじめに!D161,"") ->  | G205: =IF(①はじめに!D166=TRUE,"世話人","") ->  | O205: =IF(①はじめに!D166=TRUE,①はじめに!G161,"") ->  | R205: =IF(①はじめに!D166=TRUE,①はじめに!D163,"")&"" ->  | U205: =IF(①はじめに!D166=TRUE,①はじめに!H163,"")&"" ->  | X205: =IF(①はじめに!D166=TRUE,①はじめに!F163,"")&"" ->  | BB205: 0 | BE205: 0 | CB205: 常勤・兼務 | CC205: =COUNTIF($J$61:$L$83,CB205) -> 0
A206: =+A204 -> 25 | B206: =IF(①はじめに!E166=TRUE,①はじめに!D161,"") ->  | G206: =IF(①はじめに!E166=TRUE,"生活支援員","") ->  | O206: =IF(①はじめに!E166=TRUE,①はじめに!G161,"") ->  | R206: =IF(①はじめに!E166=TRUE,①はじめに!D163,"")&"" ->  | U206: =IF(①はじめに!E166=TRUE,①はじめに!H163,"")&"" ->  | X206: =IF(①はじめに!E166=TRUE,①はじめに!F163,"")&"" ->  | BB206: 0 | BE206: 0 | CB206: 非常勤・専従 | CC206: =COUNTIF($J$61:$L$83,CB206) -> 0
A207: =+A204 -> 25 | B207: =IF(①はじめに!F166=TRUE,①はじめに!D161,"") ->  | G207: =IF(①はじめに!F166=TRUE,"夜間支援員","") ->  | O207: =IF(①はじめに!F166=TRUE,①はじめに!G161,"") ->  | R207: =IF(①はじめに!F166=TRUE,①はじめに!D163,"")&"" ->  | U207: =IF(①はじめに!F166=TRUE,①はじめに!H163,"")&"" ->  | X207: =IF(①はじめに!F166=TRUE,①はじめに!F163,"")&"" ->  | BB207: 0 | BE207: 0
... 338 more rows

Sheet ③集計用
O1: （体制付表５－１９）
A2: 共同生活援助事業所における前年度平均利用者数等の算定資料 （兼夜間支援対象者数の根拠資料）
A4: 0.作成要領
A5: ・このシートは1住居に1シート作成してください。緑色のセルは選択、ピンク色のセルは入力が必要なセルです。
A6: ・全て入力が終わったら、「集計用シート」を確認し、当該数値を「体制付表5-25」へ転記してください。
A7: ・複数の住居がある場合、シートのコピーは行わず、予め用意したシートに入力してください。（数式が壊れ、うまく集計ができなくなります）
A9: 1.はじめに
A10: この住居は指定（住居追加）時点から６か月未満ですか？ | I10: =IF(G10="はい","区分毎の平均利用者数は推定値で入力してください。","") -> 
A11: =IF(G10="","",VLOOKUP(G10,P11:R12,3,0)&"") ->  | I11: =IF(G11="","",VLOOKUP(G11,P11:S12,4,0)&"") ->  | P11: はい | S11: 直近6か月の利用状況を「3.利用状況」に入力してください。
A12: =IF(G11="","",VLOOKUP(G11,P11:Q12,2,0)&"") ->  | I12: 直近1年の利用状況を下表に入力してください | P12: いいえ | Q12: この住居は指定（住居追加）時点から1年以上経過していますか？ | R12: この住居は指定（住居追加）時点から6か月以上1年未満ですか？ | S12: 直近1年又は前年度の利用状況を下表に入力してください
A14: 2.事業所情報
A15: 事業所名 | D15: =+[1]①はじめに!C4 -> 0 | I15: 平均利用者数合計 （自動計算） | K15: =SUM('④○○ホーム:○○ホーム (32)'!L15) -> 0 | L15: 夜間支援対象者数 （自動計算） | N15: =SUM('④○○ホーム:○○ホーム (32)'!O15) -> 0
I16: 区分6 | K16: =SUM('④○○ホーム:○○ホーム (32)'!L16) -> 0 | L16: 区分5 | N16: =SUM('④○○ホーム:○○ホーム (32)'!O16) -> 0
I17: 区分4 | K17: =SUM('④○○ホーム:○○ホーム (32)'!L17) -> 0 | L17: 区分3 | N17: =SUM('④○○ホーム:○○ホーム (32)'!O17) -> 0
I18: 区分2 | K18: =SUM('④○○ホーム:○○ホーム (32)'!L18) -> 0 | L18: 区分1以下 | N18: =SUM('④○○ホーム:○○ホーム (32)'!O18) -> 0
K19: .
A21: 3.利用状況 | H21: 令和 | J21: 年度
A22: 月 | B22: 区分 | C22: 4月 | D22: 5月 | E22: 6月 | F22: 7月 | G22: 8月 | H22: 9月 | I22: 10月 | J22: 11月 | K22: 12月 | L22: 1月 | M22: 2月 | N22: 3月 | O22: 合計
A23: 利用者①（氏名を記入） | B23: 1以下 | C23: 29 | D23: 30 | E23: 29 | F23: 30 | G23: 25 | H23: 29 | I23: 30 | J23: 29 | K23: 27 | L23: 29 | M23: 28 | N23: 30 | O23: =SUM(C23:N23) -> 345
A24: 利用者②（氏名を記入） | B24: 5 | C24: 20 | D24: 20 | E24: 20 | F24: 20 | G24: 20 | H24: 20 | I24: 20 | J24: 20 | K24: 20 | L24: 20 | M24: 20 | N24: 20 | O24: =SUM(C24:N24) -> 240
A25: 利用者③（氏名を記入） | B25: 1以下 | C25: 22 | D25: 22 | E25: 20 | F25: 10 | O25: 74
A26: 利用者④（氏名を記入） | B26: 6 | E26: 23 | F26: 22 | G26: 25 | H26: 20 | I26: 22 | J26: 22 | K26: 20 | L26: 21 | M26: 22 | N26: 23 | O26: 220
A27: 利用者⑤（氏名を記入） | O27: 0 | P27: 6
A28: 利用者⑥（氏名を記入） | O28: 0 | P28: 5
A29: 利用者⑦（氏名を記入） | O29: 0 | P29: 4
A30: 利用者⑧（氏名を記入） | O30: 0 | P30: 3
A31: 利用者⑨（氏名を記入） | O31: 0 | P31: 2
A32: 利用者⑩（氏名を記入） | O32: 0 | P32: 1以下
A33: 月の延べ利用者数 （自動計算） | C33: =SUM(C23:C32) -> 71 | D33: =SUM(D23:D32) -> 72 | E33: 92 | F33: 82 | G33: 70 | H33: 69 | I33: 72 | J33: 71 | K33: 67 | L33: 70 | M33: 70 | N33: 73 | O33: =SUM(C33:N33) -> 879
A34: 月の開所日数 (直接入力) | C34: 30 | D34: 31 | E34: 30 | F34: 31 | G34: 31 | H34: 30 | I34: 31 | J34: 30 | K34: 31 | L34: 31 | M34: 28 | N34: 31 | O34: =SUM(C34:N34) -> 365 | P34: =+O33/O34 -> 2.408219178
A37: ※新規指定又は住居追加から6月以上１年未満の間は、直近の6月における全利用者の延べ数を6月間の開所日数で除して得た数以上とする。
A38: 例）令和5年4月に住居追加した場合、9月末を以て、6月間の実績が出ることから、10月から新たな対象者数での算定が可能となる。
A39: ※新規指定又は住居追加から1年以上経過している場合は、直近1年間における全利用者の延べ数を1年間の開所日数で除して得た数以上とする。

Sheet ④記載例
P1: （体制付表５－１９）
A2: 共同生活援助事業所における前年度平均利用者数等の算定資料 （兼夜間支援対象者数の根拠資料）
A4: 0.作成要領
A5: ・このシートは1住居に1シート作成してください。緑色のセルは選択、ピンク色のセルは入力が必要なセルです。
A6: ・全て入力が終わったら、「集計用シート」を確認し、当該数値を「体制付表5-25」へ転記してください。
A7: ・複数の住居がある場合、シートのコピーは行わず、予め用意したシートに入力してください。（数式が壊れ、うまく集計ができなくなります）
A9: 1.はじめに
A10: この住居は指定（住居追加）時点から６か月未満ですか？ | J10: =IF(H10="はい","区分毎の平均利用者数は推定値で入力してください。","") -> 
A11: =IF(H10="","",VLOOKUP(H10,Q11:S12,3,0)&"") ->  | J11: =IF(H11="","",VLOOKUP(H11,Q11:T12,4,0)&"") ->  | Q11: はい | T11: 直近6か月の利用状況を「3.利用状況」に入力してください。
A12: =IF(H11="","",VLOOKUP(H11,Q11:R12,2,0)&"") ->  | J12: 直近1年の利用状況を下表に入力してください | Q12: いいえ | R12: この住居は指定（住居追加）時点から1年以上経過していますか？ | S12: この住居は指定（住居追加）時点から6か月以上1年未満ですか？ | T12: 直近1年又は前年度の利用状況を下表に入力してください
A14: 2.事業所情報
A15: 事業所名 | E15: 船橋グループホーム | J15: 平均利用者数合計 （自動計算） | L15: =IF(H10="はい",E17*0.9,+ROUNDUP(Q35,1)) -> 2.6 | M15: 夜間支援対象者数 （自動計算） | O15: =IF(H10="はい",E17*0.9,ROUND(Q37,0)) -> 3
A16: 住居名 | E16: 湊町ホーム | J16: 区分6 | L16: =ROUNDUP(SUMIFS($P:$P,$C:$C,6)/P35,1) -> 0.7 | M16: 区分5 | O16: =ROUNDUP(SUMIFS($P:$P,$C:$C,5)/P35,1) -> 0.7
A17: 住居定員 | E17: 5 | J17: 区分4 | L17: =ROUNDUP(SUMIFS($P:$P,$C:$C,4)/P35,1) -> 0.2 | M17: 区分3 | O17: =ROUNDUP(SUMIFS($P:$P,$C:$C,3)/P35,1) -> 0.1
A18: 住居追加日 | E18: 2023-10-01 | J18: 区分2 | L18: =ROUNDUP(SUMIFS($P:$P,$C:$C,2)/P35,1) -> 0 | M18: 区分1以下 | O18: =ROUNDUP(SUMIFS($P:$P,$C:$C,"1以下")/P35,1) -> 1.2
L19: .
A21: 3.利用状況 | I21: 令和 | J21: 5 | K21: 年度
A22: 月 | B22: サービス | C22: 区分 | D22: 4月 | E22: 5月 | F22: 6月 | G22: 7月 | H22: 8月 | I22: 9月 | J22: 10月 | K22: 11月 | L22: 12月 | M22: 1月 | N22: 2月 | O22: 3月 | P22: 合計
A23: 利用者①（氏名を記入） | B23: GH | C23: 1以下 | D23: 29 | E23: 30 | F23: 29 | G23: 30 | H23: 25 | I23: 29 | J23: 30 | K23: 29 | L23: 27 | M23: 29 | N23: 28 | O23: 30 | P23: =SUM(D23:O23) -> 345
A24: 利用者②（氏名を記入） | B24: GH | C24: 5 | D24: 20 | E24: 20 | F24: 20 | G24: 20 | H24: 20 | I24: 20 | J24: 20 | K24: 20 | L24: 20 | M24: 20 | N24: 20 | O24: 20 | P24: =SUM(D24:O24) -> 240
A25: 利用者③（氏名を記入） | B25: GH | C25: 1以下 | D25: 22 | E25: 22 | F25: 20 | G25: 10 | P25: =SUM(D25:O25) -> 74
A26: 利用者④（氏名を記入） | B26: GH | C26: 6 | F26: 23 | G26: 22 | H26: 25 | I26: 20 | J26: 22 | K26: 22 | L26: 20 | M26: 21 | N26: 22 | O26: 23 | P26: =SUM(D26:O26) -> 220
A27: 利用者⑤（氏名を記入） | B27: 短期入所 | C27: 3 | D27: 3 | F27: 2 | H27: 5 | J27: 2 | N27: 5 | P27: =SUM(D27:O27) -> 17 | Q27: 6
A28: 利用者⑥（氏名を記入） | B28: 短期入所 | C28: 4 | D28: 5 | F28: 20 | H28: 10 | J28: 2 | L28: 6 | N28: 5 | P28: =SUM(D28:O28) -> 48 | Q28: 5
A29: 利用者⑦（氏名を記入） | P29: 0 | Q29: 4
A30: 利用者⑧（氏名を記入） | P30: 0 | Q30: 3
A31: 利用者⑨（氏名を記入） | P31: 0 | Q31: 2
A32: 利用者⑩（氏名を記入） | P32: 0 | Q32: 1以下
A33: 月の延べ利用者数 （自動計算） | D33: =SUM(D23:D32) -> 79 | E33: =SUM(E23:E32) -> 72 | F33: 114 | G33: 82 | H33: 85 | I33: 69 | J33: 76 | K33: 71 | L33: 73 | M33: 70 | N33: 80 | O33: 73 | P33: =SUM(D33:O33) -> 944
A34: 月の延べ利用者数（GH） （自動計算） | D34: =SUMIFS(D23:D32,$B$23:$B$32,"GH") -> 71 | E34: =SUMIFS(E23:E32,$B$23:$B$32,"GH") -> 72 | F34: 92 | G34: 82 | H34: 70 | I34: 69 | J34: 72 | K34: 71 | L34: 67 | M34: 70 | N34: 70 | O34: 73 | P34: =SUM(D34:O34) -> 879
A35: 月の開所日数 (直接入力) | D35: 30 | E35: 31 | F35: 30 | G35: 31 | H35: 31 | I35: 30 | J35: 31 | K35: 30 | L35: 31 | M35: 31 | N35: 28 | O35: 31 | P35: =SUM(D35:O35) -> 365 | Q35: =+P33/P35 -> 2.58630137
Q36: =+P34/P35 -> 2.408219178
Q37: =+ROUNDUP(Q36,1) -> 2.5
A38: ※新規指定又は住居追加から6月以上１年未満の間は、直近の6月における全利用者の延べ数を6月間の開所日数で除して得た数以上とする。
A39: 例）令和5年4月に住居追加した場合、9月末を以て、6月間の実績が出ることから、10月から新たな対象者数での算定が可能となる。
A40: ※新規指定又は住居追加から1年以上経過している場合は、直近1年間における全利用者の延べ数を1年間の開所日数で除して得た数以上とする。

Sheet ④○○ホーム
P1: （体制付表５－１９）
A2: 共同生活援助事業所における前年度平均利用者数等の算定資料 （兼夜間支援対象者数の根拠資料）
A4: 0.作成要領
A5: ・このシートは1住居に1シート作成してください。緑色のセルは選択、ピンク色のセルは入力が必要なセルです。
A6: ・全て入力が終わったら、「集計用シート」を確認し、当該数値を「体制付表5-25」へ転記してください。
A7: ・複数の住居がある場合、シートのコピーは行わず、予め用意したシートに入力してください。（数式が壊れ、うまく集計ができなくなります）
A9: 1.はじめに
A10: この住居は指定（住居追加）時点から６か月未満ですか？ | J10: =IF(H10="はい","区分毎の平均利用者数は推定値で入力してください。","") -> 
A11: =IF(H10="","",VLOOKUP(H10,Q11:S12,3,0)&"") ->  | J11: =IF(H11="","",VLOOKUP(H11,Q11:T12,4,0)&"") ->  | Q11: はい | T11: 直近6か月の利用状況を「3.利用状況」に入力してください。
A12: =IF(H11="","",VLOOKUP(H11,Q11:R12,2,0)&"") ->  | J12: 直近1年の利用状況を下表に入力してください | Q12: いいえ | R12: この住居は指定（住居追加）時点から1年以上経過していますか？ | S12: この住居は指定（住居追加）時点から6か月以上1年未満ですか？ | T12: 直近1年又は前年度の利用状況を下表に入力してください
A14: 2.事業所情報
A15: 事業所名 | J15: 平均利用者数合計 （自動計算） | L15: =IF(H10="はい",E17*0.9,+ROUNDUP(Q35,1)) -> 0 | M15: 夜間支援対象者数 （自動計算） | O15: =IF(H10="はい",E17*0.9,ROUND(Q37,0)) -> 0
A16: 住居名 | J16: 区分6 | L16: =ROUNDUP(SUMIFS($P:$P,$C:$C,6)/P35,1) -> 0 | M16: 区分5 | O16: =ROUNDUP(SUMIFS($P:$P,$C:$C,5)/P35,1) -> 0
A17: 住居定員 | J17: 区分4 | L17: =ROUNDUP(SUMIFS($P:$P,$C:$C,4)/P35,1) -> 0 | M17: 区分3 | O17: =ROUNDUP(SUMIFS($P:$P,$C:$C,3)/P35,1) -> 0
A18: 住居追加日 | J18: 区分2 | L18: =ROUNDUP(SUMIFS($P:$P,$C:$C,2)/P35,1) -> 0 | M18: 区分1以下 | O18: =ROUNDUP(SUMIFS($P:$P,$C:$C,"1以下")/P35,1) -> 0
L19: .
A21: 3.利用状況 | I21: 令和 | K21: 年度
A22: 月 | B22: サービス | C22: 区分 | D22: 4月 | E22: 5月 | F22: 6月 | G22: 7月 | H22: 8月 | I22: 9月 | J22: 10月 | K22: 11月 | L22: 12月 | M22: 1月 | N22: 2月 | O22: 3月 | P22: 合計
A23: 利用者①（氏名を記入） | P23: =SUM(D23:O23) -> 0
A24: 利用者②（氏名を記入） | P24: =SUM(D24:O24) -> 0
A25: 利用者③（氏名を記入） | P25: 0
A26: 利用者④（氏名を記入） | P26: 0
A27: 利用者⑤（氏名を記入） | P27: 0 | Q27: 6
A28: 利用者⑥（氏名を記入） | P28: 0 | Q28: 5
A29: 利用者⑦（氏名を記入） | P29: 0 | Q29: 4
A30: 利用者⑧（氏名を記入） | P30: 0 | Q30: 3
A31: 利用者⑨（氏名を記入） | P31: 0 | Q31: 2
A32: 利用者⑩（氏名を記入） | P32: 0 | Q32: 1以下
A33: 月の延べ利用者数 （自動計算） | D33: =SUM(D23:D32) -> 0 | E33: =SUM(E23:E32) -> 0 | F33: 0 | G33: 0 | H33: 0 | I33: 0 | J33: 0 | K33: 0 | L33: 0 | M33: 0 | N33: 0 | O33: 0 | P33: =SUM(D33:O33) -> 0
A34: 月の延べ利用者数（GH） （自動計算） | D34: =SUMIFS(D23:D32,$B$23:$B$32,"GH") -> 0 | E34: =SUMIFS(E23:E32,$B$23:$B$32,"GH") -> 0 | F34: 0 | G34: 0 | H34: 0 | I34: 0 | J34: 0 | K34: 0 | L34: 0 | M34: 0 | N34: 0 | O34: 0 | P34: =SUM(D34:O34) -> 0
A35: 月の開所日数 (直接入力) | D35: 30 | E35: 31 | F35: 30 | G35: 31 | H35: 31 | I35: 30 | J35: 31 | K35: 30 | L35: 31 | M35: 31 | N35: 28 | O35: 31 | P35: =SUM(D35:O35) -> 365 | Q35: =+P33/P35 -> 0
Q36: =+P34/P35 -> 0
Q37: =+ROUNDUP(Q36,1) -> 0
A38: ※新規指定又は住居追加から6月以上１年未満の間は、直近の6月における全利用者の延べ数を6月間の開所日数で除して得た数以上とする。
A39: 例）令和5年4月に住居追加した場合、9月末を以て、6月間の実績が出ることから、10月から新たな対象者数での算定が可能となる。
A40: ※新規指定又は住居追加から1年以上経過している場合は、直近1年間における全利用者の延べ数を1年間の開所日数で除して得た数以上とする。

Sheet ○○ホーム (2)
P1: （体制付表５－１９）
A2: 共同生活援助事業所における前年度平均利用者数等の算定資料 （兼夜間支援対象者数の根拠資料）
A4: 0.作成要領
A5: ・このシートは1住居に1シート作成してください。緑色のセルは選択、ピンク色のセルは入力が必要なセルです。
A6: ・全て入力が終わったら、「集計用シート」を確認し、当該数値を「体制付表5-25」へ転記してください。
A7: ・複数の住居がある場合、シートのコピーは行わず、予め用意したシートに入力してください。（数式が壊れ、うまく集計ができなくなります）
A9: 1.はじめに
A10: この住居は指定（住居追加）時点から６か月未満ですか？ | J10: =IF(H10="はい","区分毎の平均利用者数は推定値で入力してください。","") -> 
A11: =IF(H10="","",VLOOKUP(H10,Q11:S12,3,0)&"") ->  | J11: =IF(H11="","",VLOOKUP(H11,Q11:T12,4,0)&"") ->  | Q11: はい | T11: 直近6か月の利用状況を「3.利用状況」に入力してください。
A12: =IF(H11="","",VLOOKUP(H11,Q11:R12,2,0)&"") ->  | J12: 直近1年の利用状況を下表に入力してください | Q12: いいえ | R12: この住居は指定（住居追加）時点から1年以上経過していますか？ | S12: この住居は指定（住居追加）時点から6か月以上1年未満ですか？ | T12: 直近1年又は前年度の利用状況を下表に入力してください
A14: 2.事業所情報
A15: 事業所名 | J15: 平均利用者数合計 （自動計算） | L15: =IF(H10="はい",E17*0.9,+ROUNDUP(Q35,1)) -> 0 | M15: 夜間支援対象者数 （自動計算） | O15: =IF(H10="はい",E17*0.9,ROUND(Q37,0)) -> 0
A16: 住居名 | J16: 区分6 | L16: =ROUNDUP(SUMIFS($P:$P,$C:$C,6)/P35,1) -> 0 | M16: 区分5 | O16: =ROUNDUP(SUMIFS($P:$P,$C:$C,5)/P35,1) -> 0
A17: 住居定員 | J17: 区分4 | L17: =ROUNDUP(SUMIFS($P:$P,$C:$C,4)/P35,1) -> 0 | M17: 区分3 | O17: =ROUNDUP(SUMIFS($P:$P,$C:$C,3)/P35,1) -> 0
A18: 住居追加日 | J18: 区分2 | L18: =ROUNDUP(SUMIFS($P:$P,$C:$C,2)/P35,1) -> 0 | M18: 区分1以下 | O18: =ROUNDUP(SUMIFS($P:$P,$C:$C,"1以下")/P35,1) -> 0
L19: .
A21: 3.利用状況 | I21: 令和 | K21: 年度
A22: 月 | B22: サービス | C22: 区分 | D22: 4月 | E22: 5月 | F22: 6月 | G22: 7月 | H22: 8月 | I22: 9月 | J22: 10月 | K22: 11月 | L22: 12月 | M22: 1月 | N22: 2月 | O22: 3月 | P22: 合計
A23: 利用者①（氏名を記入） | P23: =SUM(D23:O23) -> 0
A24: 利用者②（氏名を記入） | P24: =SUM(D24:O24) -> 0
A25: 利用者③（氏名を記入） | P25: 0
A26: 利用者④（氏名を記入） | P26: 0
A27: 利用者⑤（氏名を記入） | P27: 0 | Q27: 6
A28: 利用者⑥（氏名を記入） | P28: 0 | Q28: 5
A29: 利用者⑦（氏名を記入） | P29: 0 | Q29: 4
A30: 利用者⑧（氏名を記入） | P30: 0 | Q30: 3
A31: 利用者⑨（氏名を記入） | P31: 0 | Q31: 2
A32: 利用者⑩（氏名を記入） | P32: 0 | Q32: 1以下
A33: 月の延べ利用者数 （自動計算） | D33: =SUM(D23:D32) -> 0 | E33: =SUM(E23:E32) -> 0 | F33: 0 | G33: 0 | H33: 0 | I33: 0 | J33: 0 | K33: 0 | L33: 0 | M33: 0 | N33: 0 | O33: 0 | P33: =SUM(D33:O33) -> 0
A34: 月の延べ利用者数（GH） （自動計算） | D34: =SUMIFS(D23:D32,$B$23:$B$32,"GH") -> 0 | E34: =SUMIFS(E23:E32,$B$23:$B$32,"GH") -> 0 | F34: 0 | G34: 0 | H34: 0 | I34: 0 | J34: 0 | K34: 0 | L34: 0 | M34: 0 | N34: 0 | O34: 0 | P34: =SUM(D34:O34) -> 0
A35: 月の開所日数 (直接入力) | D35: 30 | E35: 31 | F35: 30 | G35: 31 | H35: 31 | I35: 30 | J35: 31 | K35: 30 | L35: 31 | M35: 31 | N35: 28 | O35: 31 | P35: =SUM(D35:O35) -> 365 | Q35: =+P33/P35 -> 0
Q36: =+P34/P35 -> 0
Q37: =+ROUNDUP(Q36,1) -> 0
A38: ※新規指定又は住居追加から6月以上１年未満の間は、直近の6月における全利用者の延べ数を6月間の開所日数で除して得た数以上とする。
A39: 例）令和5年4月に住居追加した場合、9月末を以て、6月間の実績が出ることから、10月から新たな対象者数での算定が可能となる。
A40: ※新規指定又は住居追加から1年以上経過している場合は、直近1年間における全利用者の延べ数を1年間の開所日数で除して得た数以上とする。

Sheet ○○ホーム (3)
P1: （体制付表５－１９）
A2: 共同生活援助事業所における前年度平均利用者数等の算定資料 （兼夜間支援対象者数の根拠資料）
A4: 0.作成要領
A5: ・このシートは1住居に1シート作成してください。緑色のセルは選択、ピンク色のセルは入力が必要なセルです。
A6: ・全て入力が終わったら、「集計用シート」を確認し、当該数値を「体制付表5-25」へ転記してください。
A7: ・複数の住居がある場合、シートのコピーは行わず、予め用意したシートに入力してください。（数式が壊れ、うまく集計ができなくなります）
A9: 1.はじめに
A10: この住居は指定（住居追加）時点から６か月未満ですか？ | J10: =IF(H10="はい","区分毎の平均利用者数は推定値で入力してください。","") -> 
A11: =IF(H10="","",VLOOKUP(H10,Q11:S12,3,0)&"") ->  | J11: =IF(H11="","",VLOOKUP(H11,Q11:T12,4,0)&"") ->  | Q11: はい | T11: 直近6か月の利用状況を「3.利用状況」に入力してください。
A12: =IF(H11="","",VLOOKUP(H11,Q11:R12,2,0)&"") ->  | J12: 直近1年の利用状況を下表に入力してください | Q12: いいえ | R12: この住居は指定（住居追加）時点から1年以上経過していますか？ | S12: この住居は指定（住居追加）時点から6か月以上1年未満ですか？ | T12: 直近1年又は前年度の利用状況を下表に入力してください
A14: 2.事業所情報
A15: 事業所名 | J15: 平均利用者数合計 （自動計算） | L15: =IF(H10="はい",E17*0.9,+ROUNDUP(Q35,1)) -> 0 | M15: 夜間支援対象者数 （自動計算） | O15: =IF(H10="はい",E17*0.9,ROUND(Q37,0)) -> 0
A16: 住居名 | J16: 区分6 | L16: =ROUNDUP(SUMIFS($P:$P,$C:$C,6)/P35,1) -> 0 | M16: 区分5 | O16: =ROUNDUP(SUMIFS($P:$P,$C:$C,5)/P35,1) -> 0
A17: 住居定員 | J17: 区分4 | L17: =ROUNDUP(SUMIFS($P:$P,$C:$C,4)/P35,1) -> 0 | M17: 区分3 | O17: =ROUNDUP(SUMIFS($P:$P,$C:$C,3)/P35,1) -> 0
A18: 住居追加日 | J18: 区分2 | L18: =ROUNDUP(SUMIFS($P:$P,$C:$C,2)/P35,1) -> 0 | M18: 区分1以下 | O18: =ROUNDUP(SUMIFS($P:$P,$C:$C,"1以下")/P35,1) -> 0
L19: .
A21: 3.利用状況 | I21: 令和 | K21: 年度
A22: 月 | B22: サービス | C22: 区分 | D22: 4月 | E22: 5月 | F22: 6月 | G22: 7月 | H22: 8月 | I22: 9月 | J22: 10月 | K22: 11月 | L22: 12月 | M22: 1月 | N22: 2月 | O22: 3月 | P22: 合計
A23: 利用者①（氏名を記入） | P23: =SUM(D23:O23) -> 0
A24: 利用者②（氏名を記入） | P24: =SUM(D24:O24) -> 0
A25: 利用者③（氏名を記入） | P25: 0
A26: 利用者④（氏名を記入） | P26: 0
A27: 利用者⑤（氏名を記入） | P27: 0 | Q27: 6
A28: 利用者⑥（氏名を記入） | P28: 0 | Q28: 5
A29: 利用者⑦（氏名を記入） | P29: 0 | Q29: 4
A30: 利用者⑧（氏名を記入） | P30: 0 | Q30: 3
A31: 利用者⑨（氏名を記入） | P31: 0 | Q31: 2
A32: 利用者⑩（氏名を記入） | P32: 0 | Q32: 1以下
A33: 月の延べ利用者数 （自動計算） | D33: =SUM(D23:D32) -> 0 | E33: =SUM(E23:E32) -> 0 | F33: 0 | G33: 0 | H33: 0 | I33: 0 | J33: 0 | K33: 0 | L33: 0 | M33: 0 | N33: 0 | O33: 0 | P33: =SUM(D33:O33) -> 0
A34: 月の延べ利用者数（GH） （自動計算） | D34: =SUMIFS(D23:D32,$B$23:$B$32,"GH") -> 0 | E34: =SUMIFS(E23:E32,$B$23:$B$32,"GH") -> 0 | F34: 0 | G34: 0 | H34: 0 | I34: 0 | J34: 0 | K34: 0 | L34: 0 | M34: 0 | N34: 0 | O34: 0 | P34: =SUM(D34:O34) -> 0
A35: 月の開所日数 (直接入力) | D35: 30 | E35: 31 | F35: 30 | G35: 31 | H35: 31 | I35: 30 | J35: 31 | K35: 30 | L35: 31 | M35: 31 | N35: 28 | O35: 31 | P35: =SUM(D35:O35) -> 365 | Q35: =+P33/P35 -> 0
Q36: =+P34/P35 -> 0
Q37: =+ROUNDUP(Q36,1) -> 0
A38: ※新規指定又は住居追加から6月以上１年未満の間は、直近の6月における全利用者の延べ数を6月間の開所日数で除して得た数以上とする。
A39: 例）令和5年4月に住居追加した場合、9月末を以て、6月間の実績が出ることから、10月から新たな対象者数での算定が可能となる。
A40: ※新規指定又は住居追加から1年以上経過している場合は、直近1年間における全利用者の延べ数を1年間の開所日数で除して得た数以上とする。

Sheet ○○ホーム (4)
P1: （体制付表５－１９）
A2: 共同生活援助事業所における前年度平均利用者数等の算定資料 （兼夜間支援対象者数の根拠資料）
A4: 0.作成要領
A5: ・このシートは1住居に1シート作成してください。緑色のセルは選択、ピンク色のセルは入力が必要なセルです。
A6: ・全て入力が終わったら、「集計用シート」を確認し、当該数値を「体制付表5-25」へ転記してください。
A7: ・複数の住居がある場合、シートのコピーは行わず、予め用意したシートに入力してください。（数式が壊れ、うまく集計ができなくなります）
A9: 1.はじめに
A10: この住居は指定（住居追加）時点から６か月未満ですか？ | J10: =IF(H10="はい","区分毎の平均利用者数は推定値で入力してください。","") -> 
A11: =IF(H10="","",VLOOKUP(H10,Q11:S12,3,0)&"") ->  | J11: =IF(H11="","",VLOOKUP(H11,Q11:T12,4,0)&"") ->  | Q11: はい | T11: 直近6か月の利用状況を「3.利用状況」に入力してください。
A12: =IF(H11="","",VLOOKUP(H11,Q11:R12,2,0)&"") ->  | J12: 直近1年の利用状況を下表に入力してください | Q12: いいえ | R12: この住居は指定（住居追加）時点から1年以上経過していますか？ | S12: この住居は指定（住居追加）時点から6か月以上1年未満ですか？ | T12: 直近1年又は前年度の利用状況を下表に入力してください
A14: 2.事業所情報
A15: 事業所名 | J15: 平均利用者数合計 （自動計算） | L15: =IF(H10="はい",E17*0.9,+ROUNDUP(Q35,1)) -> 0 | M15: 夜間支援対象者数 （自動計算） | O15: =IF(H10="はい",E17*0.9,ROUND(Q37,0)) -> 0
A16: 住居名 | J16: 区分6 | L16: =ROUNDUP(SUMIFS($P:$P,$C:$C,6)/P35,1) -> 0 | M16: 区分5 | O16: =ROUNDUP(SUMIFS($P:$P,$C:$C,5)/P35,1) -> 0
A17: 住居定員 | J17: 区分4 | L17: =ROUNDUP(SUMIFS($P:$P,$C:$C,4)/P35,1) -> 0 | M17: 区分3 | O17: =ROUNDUP(SUMIFS($P:$P,$C:$C,3)/P35,1) -> 0
A18: 住居追加日 | J18: 区分2 | L18: =ROUNDUP(SUMIFS($P:$P,$C:$C,2)/P35,1) -> 0 | M18: 区分1以下 | O18: =ROUNDUP(SUMIFS($P:$P,$C:$C,"1以下")/P35,1) -> 0
L19: .
A21: 3.利用状況 | I21: 令和 | K21: 年度
A22: 月 | B22: サービス | C22: 区分 | D22: 4月 | E22: 5月 | F22: 6月 | G22: 7月 | H22: 8月 | I22: 9月 | J22: 10月 | K22: 11月 | L22: 12月 | M22: 1月 | N22: 2月 | O22: 3月 | P22: 合計
A23: 利用者①（氏名を記入） | P23: =SUM(D23:O23) -> 0
A24: 利用者②（氏名を記入） | P24: =SUM(D24:O24) -> 0
A25: 利用者③（氏名を記入） | P25: 0
A26: 利用者④（氏名を記入） | P26: 0
A27: 利用者⑤（氏名を記入） | P27: 0 | Q27: 6
A28: 利用者⑥（氏名を記入） | P28: 0 | Q28: 5
A29: 利用者⑦（氏名を記入） | P29: 0 | Q29: 4
A30: 利用者⑧（氏名を記入） | P30: 0 | Q30: 3
A31: 利用者⑨（氏名を記入） | P31: 0 | Q31: 2
A32: 利用者⑩（氏名を記入） | P32: 0 | Q32: 1以下
A33: 月の延べ利用者数 （自動計算） | D33: =SUM(D23:D32) -> 0 | E33: =SUM(E23:E32) -> 0 | F33: 0 | G33: 0 | H33: 0 | I33: 0 | J33: 0 | K33: 0 | L33: 0 | M33: 0 | N33: 0 | O33: 0 | P33: =SUM(D33:O33) -> 0
A34: 月の延べ利用者数（GH） （自動計算） | D34: =SUMIFS(D23:D32,$B$23:$B$32,"GH") -> 0 | E34: =SUMIFS(E23:E32,$B$23:$B$32,"GH") -> 0 | F34: 0 | G34: 0 | H34: 0 | I34: 0 | J34: 0 | K34: 0 | L34: 0 | M34: 0 | N34: 0 | O34: 0 | P34: =SUM(D34:O34) -> 0
A35: 月の開所日数 (直接入力) | D35: 30 | E35: 31 | F35: 30 | G35: 31 | H35: 31 | I35: 30 | J35: 31 | K35: 30 | L35: 31 | M35: 31 | N35: 28 | O35: 31 | P35: =SUM(D35:O35) -> 365 | Q35: =+P33/P35 -> 0
Q36: =+P34/P35 -> 0
Q37: =+ROUNDUP(Q36,1) -> 0
A38: ※新規指定又は住居追加から6月以上１年未満の間は、直近の6月における全利用者の延べ数を6月間の開所日数で除して得た数以上とする。
A39: 例）令和5年4月に住居追加した場合、9月末を以て、6月間の実績が出ることから、10月から新たな対象者数での算定が可能となる。
A40: ※新規指定又は住居追加から1年以上経過している場合は、直近1年間における全利用者の延べ数を1年間の開所日数で除して得た数以上とする。

Sheet ○○ホーム (5)
P1: （体制付表５－１９）
A2: 共同生活援助事業所における前年度平均利用者数等の算定資料 （兼夜間支援対象者数の根拠資料）
A4: 0.作成要領
A5: ・このシートは1住居に1シート作成してください。緑色のセルは選択、ピンク色のセルは入力が必要なセルです。
A6: ・全て入力が終わったら、「集計用シート」を確認し、当該数値を「体制付表5-25」へ転記してください。
A7: ・複数の住居がある場合、シートのコピーは行わず、予め用意したシートに入力してください。（数式が壊れ、うまく集計ができなくなります）
A9: 1.はじめに
A10: この住居は指定（住居追加）時点から６か月未満ですか？ | J10: =IF(H10="はい","区分毎の平均利用者数は推定値で入力してください。","") -> 
A11: =IF(H10="","",VLOOKUP(H10,Q11:S12,3,0)&"") ->  | J11: =IF(H11="","",VLOOKUP(H11,Q11:T12,4,0)&"") ->  | Q11: はい | T11: 直近6か月の利用状況を「3.利用状況」に入力してください。
A12: =IF(H11="","",VLOOKUP(H11,Q11:R12,2,0)&"") ->  | J12: 直近1年の利用状況を下表に入力してください | Q12: いいえ | R12: この住居は指定（住居追加）時点から1年以上経過していますか？ | S12: この住居は指定（住居追加）時点から6か月以上1年未満ですか？ | T12: 直近1年又は前年度の利用状況を下表に入力してください
A14: 2.事業所情報
A15: 事業所名 | J15: 平均利用者数合計 （自動計算） | L15: =IF(H10="はい",E17*0.9,+ROUNDUP(Q35,1)) -> 0 | M15: 夜間支援対象者数 （自動計算） | O15: =IF(H10="はい",E17*0.9,ROUND(Q37,0)) -> 0
A16: 住居名 | J16: 区分6 | L16: =ROUNDUP(SUMIFS($P:$P,$C:$C,6)/P35,1) -> 0 | M16: 区分5 | O16: =ROUNDUP(SUMIFS($P:$P,$C:$C,5)/P35,1) -> 0
A17: 住居定員 | J17: 区分4 | L17: =ROUNDUP(SUMIFS($P:$P,$C:$C,4)/P35,1) -> 0 | M17: 区分3 | O17: =ROUNDUP(SUMIFS($P:$P,$C:$C,3)/P35,1) -> 0
A18: 住居追加日 | J18: 区分2 | L18: =ROUNDUP(SUMIFS($P:$P,$C:$C,2)/P35,1) -> 0 | M18: 区分1以下 | O18: =ROUNDUP(SUMIFS($P:$P,$C:$C,"1以下")/P35,1) -> 0
L19: .
A21: 3.利用状況 | I21: 令和 | K21: 年度
A22: 月 | B22: サービス | C22: 区分 | D22: 4月 | E22: 5月 | F22: 6月 | G22: 7月 | H22: 8月 | I22: 9月 | J22: 10月 | K22: 11月 | L22: 12月 | M22: 1月 | N22: 2月 | O22: 3月 | P22: 合計
A23: 利用者①（氏名を記入） | P23: =SUM(D23:O23) -> 0
A24: 利用者②（氏名を記入） | P24: =SUM(D24:O24) -> 0
A25: 利用者③（氏名を記入） | P25: 0
A26: 利用者④（氏名を記入） | P26: 0
A27: 利用者⑤（氏名を記入） | P27: 0 | Q27: 6
A28: 利用者⑥（氏名を記入） | P28: 0 | Q28: 5
A29: 利用者⑦（氏名を記入） | P29: 0 | Q29: 4
A30: 利用者⑧（氏名を記入） | P30: 0 | Q30: 3
A31: 利用者⑨（氏名を記入） | P31: 0 | Q31: 2
A32: 利用者⑩（氏名を記入） | P32: 0 | Q32: 1以下
A33: 月の延べ利用者数 （自動計算） | D33: =SUM(D23:D32) -> 0 | E33: =SUM(E23:E32) -> 0 | F33: 0 | G33: 0 | H33: 0 | I33: 0 | J33: 0 | K33: 0 | L33: 0 | M33: 0 | N33: 0 | O33: 0 | P33: =SUM(D33:O33) -> 0
A34: 月の延べ利用者数（GH） （自動計算） | D34: =SUMIFS(D23:D32,$B$23:$B$32,"GH") -> 0 | E34: =SUMIFS(E23:E32,$B$23:$B$32,"GH") -> 0 | F34: 0 | G34: 0 | H34: 0 | I34: 0 | J34: 0 | K34: 0 | L34: 0 | M34: 0 | N34: 0 | O34: 0 | P34: =SUM(D34:O34) -> 0
A35: 月の開所日数 (直接入力) | D35: 30 | E35: 31 | F35: 30 | G35: 31 | H35: 31 | I35: 30 | J35: 31 | K35: 30 | L35: 31 | M35: 31 | N35: 28 | O35: 31 | P35: =SUM(D35:O35) -> 365 | Q35: =+P33/P35 -> 0
Q36: =+P34/P35 -> 0
Q37: =+ROUNDUP(Q36,1) -> 0
A38: ※新規指定又は住居追加から6月以上１年未満の間は、直近の6月における全利用者の延べ数を6月間の開所日数で除して得た数以上とする。
A39: 例）令和5年4月に住居追加した場合、9月末を以て、6月間の実績が出ることから、10月から新たな対象者数での算定が可能となる。
A40: ※新規指定又は住居追加から1年以上経過している場合は、直近1年間における全利用者の延べ数を1年間の開所日数で除して得た数以上とする。

Sheet ○○ホーム (6)
P1: （体制付表５－１９）
A2: 共同生活援助事業所における前年度平均利用者数等の算定資料 （兼夜間支援対象者数の根拠資料）
A4: 0.作成要領
A5: ・このシートは1住居に1シート作成してください。緑色のセルは選択、ピンク色のセルは入力が必要なセルです。
A6: ・全て入力が終わったら、「集計用シート」を確認し、当該数値を「体制付表5-25」へ転記してください。
A7: ・複数の住居がある場合、シートのコピーは行わず、予め用意したシートに入力してください。（数式が壊れ、うまく集計ができなくなります）
A9: 1.はじめに
A10: この住居は指定（住居追加）時点から６か月未満ですか？ | J10: =IF(H10="はい","区分毎の平均利用者数は推定値で入力してください。","") -> 
A11: =IF(H10="","",VLOOKUP(H10,Q11:S12,3,0)&"") ->  | J11: =IF(H11="","",VLOOKUP(H11,Q11:T12,4,0)&"") ->  | Q11: はい | T11: 直近6か月の利用状況を「3.利用状況」に入力してください。
A12: =IF(H11="","",VLOOKUP(H11,Q11:R12,2,0)&"") ->  | J12: 直近1年の利用状況を下表に入力してください | Q12: いいえ | R12: この住居は指定（住居追加）時点から1年以上経過していますか？ | S12: この住居は指定（住居追加）時点から6か月以上1年未満ですか？ | T12: 直近1年又は前年度の利用状況を下表に入力してください
A14: 2.事業所情報
A15: 事業所名 | J15: 平均利用者数合計 （自動計算） | L15: =IF(H10="はい",E17*0.9,+ROUNDUP(Q35,1)) -> 0 | M15: 夜間支援対象者数 （自動計算） | O15: =IF(H10="はい",E17*0.9,ROUND(Q37,0)) -> 0
A16: 住居名 | J16: 区分6 | L16: =ROUNDUP(SUMIFS($P:$P,$C:$C,6)/P35,1) -> 0 | M16: 区分5 | O16: =ROUNDUP(SUMIFS($P:$P,$C:$C,5)/P35,1) -> 0
A17: 住居定員 | J17: 区分4 | L17: =ROUNDUP(SUMIFS($P:$P,$C:$C,4)/P35,1) -> 0 | M17: 区分3 | O17: =ROUNDUP(SUMIFS($P:$P,$C:$C,3)/P35,1) -> 0
A18: 住居追加日 | J18: 区分2 | L18: =ROUNDUP(SUMIFS($P:$P,$C:$C,2)/P35,1) -> 0 | M18: 区分1以下 | O18: =ROUNDUP(SUMIFS($P:$P,$C:$C,"1以下")/P35,1) -> 0
L19: .
A21: 3.利用状況 | I21: 令和 | K21: 年度
A22: 月 | B22: サービス | C22: 区分 | D22: 4月 | E22: 5月 | F22: 6月 | G22: 7月 | H22: 8月 | I22: 9月 | J22: 10月 | K22: 11月 | L22: 12月 | M22: 1月 | N22: 2月 | O22: 3月 | P22: 合計
A23: 利用者①（氏名を記入） | P23: =SUM(D23:O23) -> 0
A24: 利用者②（氏名を記入） | P24: =SUM(D24:O24) -> 0
A25: 利用者③（氏名を記入） | P25: 0
A26: 利用者④（氏名を記入） | P26: 0
A27: 利用者⑤（氏名を記入） | P27: 0 | Q27: 6
A28: 利用者⑥（氏名を記入） | P28: 0 | Q28: 5
A29: 利用者⑦（氏名を記入） | P29: 0 | Q29: 4
A30: 利用者⑧（氏名を記入） | P30: 0 | Q30: 3
A31: 利用者⑨（氏名を記入） | P31: 0 | Q31: 2
A32: 利用者⑩（氏名を記入） | P32: 0 | Q32: 1以下
A33: 月の延べ利用者数 （自動計算） | D33: =SUM(D23:D32) -> 0 | E33: =SUM(E23:E32) -> 0 | F33: 0 | G33: 0 | H33: 0 | I33: 0 | J33: 0 | K33: 0 | L33: 0 | M33: 0 | N33: 0 | O33: 0 | P33: =SUM(D33:O33) -> 0
A34: 月の延べ利用者数（GH） （自動計算） | D34: =SUMIFS(D23:D32,$B$23:$B$32,"GH") -> 0 | E34: =SUMIFS(E23:E32,$B$23:$B$32,"GH") -> 0 | F34: 0 | G34: 0 | H34: 0 | I34: 0 | J34: 0 | K34: 0 | L34: 0 | M34: 0 | N34: 0 | O34: 0 | P34: =SUM(D34:O34) -> 0
A35: 月の開所日数 (直接入力) | D35: 30 | E35: 31 | F35: 30 | G35: 31 | H35: 31 | I35: 30 | J35: 31 | K35: 30 | L35: 31 | M35: 31 | N35: 28 | O35: 31 | P35: =SUM(D35:O35) -> 365 | Q35: =+P33/P35 -> 0
Q36: =+P34/P35 -> 0
Q37: =+ROUNDUP(Q36,1) -> 0
A38: ※新規指定又は住居追加から6月以上１年未満の間は、直近の6月における全利用者の延べ数を6月間の開所日数で除して得た数以上とする。
A39: 例）令和5年4月に住居追加した場合、9月末を以て、6月間の実績が出ることから、10月から新たな対象者数での算定が可能となる。
A40: ※新規指定又は住居追加から1年以上経過している場合は、直近1年間における全利用者の延べ数を1年間の開所日数で除して得た数以上とする。

Sheet ○○ホーム (7)
P1: （体制付表５－１９）
A2: 共同生活援助事業所における前年度平均利用者数等の算定資料 （兼夜間支援対象者数の根拠資料）
A4: 0.作成要領
A5: ・このシートは1住居に1シート作成してください。緑色のセルは選択、ピンク色のセルは入力が必要なセルです。
A6: ・全て入力が終わったら、「集計用シート」を確認し、当該数値を「体制付表5-25」へ転記してください。
A7: ・複数の住居がある場合、シートのコピーは行わず、予め用意したシートに入力してください。（数式が壊れ、うまく集計ができなくなります）
A9: 1.はじめに
A10: この住居は指定（住居追加）時点から６か月未満ですか？ | J10: =IF(H10="はい","区分毎の平均利用者数は推定値で入力してください。","") -> 
A11: =IF(H10="","",VLOOKUP(H10,Q11:S12,3,0)&"") ->  | J11: =IF(H11="","",VLOOKUP(H11,Q11:T12,4,0)&"") ->  | Q11: はい | T11: 直近6か月の利用状況を「3.利用状況」に入力してください。
A12: =IF(H11="","",VLOOKUP(H11,Q11:R12,2,0)&"") ->  | J12: 直近1年の利用状況を下表に入力してください | Q12: いいえ | R12: この住居は指定（住居追加）時点から1年以上経過していますか？ | S12: この住居は指定（住居追加）時点から6か月以上1年未満ですか？ | T12: 直近1年又は前年度の利用状況を下表に入力してください
A14: 2.事業所情報
A15: 事業所名 | J15: 平均利用者数合計 （自動計算） | L15: =IF(H10="はい",E17*0.9,+ROUNDUP(Q35,1)) -> 0 | M15: 夜間支援対象者数 （自動計算） | O15: =IF(H10="はい",E17*0.9,ROUND(Q37,0)) -> 0
A16: 住居名 | J16: 区分6 | L16: =ROUNDUP(SUMIFS($P:$P,$C:$C,6)/P35,1) -> 0 | M16: 区分5 | O16: =ROUNDUP(SUMIFS($P:$P,$C:$C,5)/P35,1) -> 0
A17: 住居定員 | J17: 区分4 | L17: =ROUNDUP(SUMIFS($P:$P,$C:$C,4)/P35,1) -> 0 | M17: 区分3 | O17: =ROUNDUP(SUMIFS($P:$P,$C:$C,3)/P35,1) -> 0
A18: 住居追加日 | J18: 区分2 | L18: =ROUNDUP(SUMIFS($P:$P,$C:$C,2)/P35,1) -> 0 | M18: 区分1以下 | O18: =ROUNDUP(SUMIFS($P:$P,$C:$C,"1以下")/P35,1) -> 0
L19: .
A21: 3.利用状況 | I21: 令和 | K21: 年度
A22: 月 | B22: サービス | C22: 区分 | D22: 4月 | E22: 5月 | F22: 6月 | G22: 7月 | H22: 8月 | I22: 9月 | J22: 10月 | K22: 11月 | L22: 12月 | M22: 1月 | N22: 2月 | O22: 3月 | P22: 合計
A23: 利用者①（氏名を記入） | P23: =SUM(D23:O23) -> 0
A24: 利用者②（氏名を記入） | P24: =SUM(D24:O24) -> 0
A25: 利用者③（氏名を記入） | P25: 0
A26: 利用者④（氏名を記入） | P26: 0
A27: 利用者⑤（氏名を記入） | P27: 0 | Q27: 6
A28: 利用者⑥（氏名を記入） | P28: 0 | Q28: 5
A29: 利用者⑦（氏名を記入） | P29: 0 | Q29: 4
A30: 利用者⑧（氏名を記入） | P30: 0 | Q30: 3
A31: 利用者⑨（氏名を記入） | P31: 0 | Q31: 2
A32: 利用者⑩（氏名を記入） | P32: 0 | Q32: 1以下
A33: 月の延べ利用者数 （自動計算） | D33: =SUM(D23:D32) -> 0 | E33: =SUM(E23:E32) -> 0 | F33: 0 | G33: 0 | H33: 0 | I33: 0 | J33: 0 | K33: 0 | L33: 0 | M33: 0 | N33: 0 | O33: 0 | P33: =SUM(D33:O33) -> 0
A34: 月の延べ利用者数（GH） （自動計算） | D34: =SUMIFS(D23:D32,$B$23:$B$32,"GH") -> 0 | E34: =SUMIFS(E23:E32,$B$23:$B$32,"GH") -> 0 | F34: 0 | G34: 0 | H34: 0 | I34: 0 | J34: 0 | K34: 0 | L34: 0 | M34: 0 | N34: 0 | O34: 0 | P34: =SUM(D34:O34) -> 0
A35: 月の開所日数 (直接入力) | D35: 30 | E35: 31 | F35: 30 | G35: 31 | H35: 31 | I35: 30 | J35: 31 | K35: 30 | L35: 31 | M35: 31 | N35: 28 | O35: 31 | P35: =SUM(D35:O35) -> 365 | Q35: =+P33/P35 -> 0
Q36: =+P34/P35 -> 0
Q37: =+ROUNDUP(Q36,1) -> 0
A38: ※新規指定又は住居追加から6月以上１年未満の間は、直近の6月における全利用者の延べ数を6月間の開所日数で除して得た数以上とする。
A39: 例）令和5年4月に住居追加した場合、9月末を以て、6月間の実績が出ることから、10月から新たな対象者数での算定が可能となる。
A40: ※新規指定又は住居追加から1年以上経過している場合は、直近1年間における全利用者の延べ数を1年間の開所日数で除して得た数以上とする。

Sheet ○○ホーム (8)
P1: （体制付表５－１９）
A2: 共同生活援助事業所における前年度平均利用者数等の算定資料 （兼夜間支援対象者数の根拠資料）
A4: 0.作成要領
A5: ・このシートは1住居に1シート作成してください。緑色のセルは選択、ピンク色のセルは入力が必要なセルです。
A6: ・全て入力が終わったら、「集計用シート」を確認し、当該数値を「体制付表5-25」へ転記してください。
A7: ・複数の住居がある場合、シートのコピーは行わず、予め用意したシートに入力してください。（数式が壊れ、うまく集計ができなくなります）
A9: 1.はじめに
A10: この住居は指定（住居追加）時点から６か月未満ですか？ | J10: =IF(H10="はい","区分毎の平均利用者数は推定値で入力してください。","") -> 
A11: =IF(H10="","",VLOOKUP(H10,Q11:S12,3,0)&"") ->  | J11: =IF(H11="","",VLOOKUP(H11,Q11:T12,4,0)&"") ->  | Q11: はい | T11: 直近6か月の利用状況を「3.利用状況」に入力してください。
A12: =IF(H11="","",VLOOKUP(H11,Q11:R12,2,0)&"") ->  | J12: 直近1年の利用状況を下表に入力してください | Q12: いいえ | R12: この住居は指定（住居追加）時点から1年以上経過していますか？ | S12: この住居は指定（住居追加）時点から6か月以上1年未満ですか？ | T12: 直近1年又は前年度の利用状況を下表に入力してください
A14: 2.事業所情報
A15: 事業所名 | J15: 平均利用者数合計 （自動計算） | L15: =IF(H10="はい",E17*0.9,+ROUNDUP(Q35,1)) -> 0 | M15: 夜間支援対象者数 （自動計算） | O15: =IF(H10="はい",E17*0.9,ROUND(Q37,0)) -> 0
A16: 住居名 | J16: 区分6 | L16: =ROUNDUP(SUMIFS($P:$P,$C:$C,6)/P35,1) -> 0 | M16: 区分5 | O16: =ROUNDUP(SUMIFS($P:$P,$C:$C,5)/P35,1) -> 0
A17: 住居定員 | J17: 区分4 | L17: =ROUNDUP(SUMIFS($P:$P,$C:$C,4)/P35,1) -> 0 | M17: 区分3 | O17: =ROUNDUP(SUMIFS($P:$P,$C:$C,3)/P35,1) -> 0
A18: 住居追加日 | J18: 区分2 | L18: =ROUNDUP(SUMIFS($P:$P,$C:$C,2)/P35,1) -> 0 | M18: 区分1以下 | O18: =ROUNDUP(SUMIFS($P:$P,$C:$C,"1以下")/P35,1) -> 0
L19: .
A21: 3.利用状況 | I21: 令和 | K21: 年度
A22: 月 | B22: サービス | C22: 区分 | D22: 4月 | E22: 5月 | F22: 6月 | G22: 7月 | H22: 8月 | I22: 9月 | J22: 10月 | K22: 11月 | L22: 12月 | M22: 1月 | N22: 2月 | O22: 3月 | P22: 合計
A23: 利用者①（氏名を記入） | P23: =SUM(D23:O23) -> 0
A24: 利用者②（氏名を記入） | P24: =SUM(D24:O24) -> 0
A25: 利用者③（氏名を記入） | P25: 0
A26: 利用者④（氏名を記入） | P26: 0
A27: 利用者⑤（氏名を記入） | P27: 0 | Q27: 6
A28: 利用者⑥（氏名を記入） | P28: 0 | Q28: 5
A29: 利用者⑦（氏名を記入） | P29: 0 | Q29: 4
A30: 利用者⑧（氏名を記入） | P30: 0 | Q30: 3
A31: 利用者⑨（氏名を記入） | P31: 0 | Q31: 2
A32: 利用者⑩（氏名を記入） | P32: 0 | Q32: 1以下
A33: 月の延べ利用者数 （自動計算） | D33: =SUM(D23:D32) -> 0 | E33: =SUM(E23:E32) -> 0 | F33: 0 | G33: 0 | H33: 0 | I33: 0 | J33: 0 | K33: 0 | L33: 0 | M33: 0 | N33: 0 | O33: 0 | P33: =SUM(D33:O33) -> 0
A34: 月の延べ利用者数（GH） （自動計算） | D34: =SUMIFS(D23:D32,$B$23:$B$32,"GH") -> 0 | E34: =SUMIFS(E23:E32,$B$23:$B$32,"GH") -> 0 | F34: 0 | G34: 0 | H34: 0 | I34: 0 | J34: 0 | K34: 0 | L34: 0 | M34: 0 | N34: 0 | O34: 0 | P34: =SUM(D34:O34) -> 0
A35: 月の開所日数 (直接入力) | D35: 30 | E35: 31 | F35: 30 | G35: 31 | H35: 31 | I35: 30 | J35: 31 | K35: 30 | L35: 31 | M35: 31 | N35: 28 | O35: 31 | P35: =SUM(D35:O35) -> 365 | Q35: =+P33/P35 -> 0
Q36: =+P34/P35 -> 0
Q37: =+ROUNDUP(Q36,1) -> 0
A38: ※新規指定又は住居追加から6月以上１年未満の間は、直近の6月における全利用者の延べ数を6月間の開所日数で除して得た数以上とする。
A39: 例）令和5年4月に住居追加した場合、9月末を以て、6月間の実績が出ることから、10月から新たな対象者数での算定が可能となる。
A40: ※新規指定又は住居追加から1年以上経過している場合は、直近1年間における全利用者の延べ数を1年間の開所日数で除して得た数以上とする。

Sheet ○○ホーム (9)
P1: （体制付表５－１９）
A2: 共同生活援助事業所における前年度平均利用者数等の算定資料 （兼夜間支援対象者数の根拠資料）
A4: 0.作成要領
A5: ・このシートは1住居に1シート作成してください。緑色のセルは選択、ピンク色のセルは入力が必要なセルです。
A6: ・全て入力が終わったら、「集計用シート」を確認し、当該数値を「体制付表5-25」へ転記してください。
A7: ・複数の住居がある場合、シートのコピーは行わず、予め用意したシートに入力してください。（数式が壊れ、うまく集計ができなくなります）
A9: 1.はじめに
A10: この住居は指定（住居追加）時点から６か月未満ですか？ | J10: =IF(H10="はい","区分毎の平均利用者数は推定値で入力してください。","") -> 
A11: =IF(H10="","",VLOOKUP(H10,Q11:S12,3,0)&"") ->  | J11: =IF(H11="","",VLOOKUP(H11,Q11:T12,4,0)&"") ->  | Q11: はい | T11: 直近6か月の利用状況を「3.利用状況」に入力してください。
A12: =IF(H11="","",VLOOKUP(H11,Q11:R12,2,0)&"") ->  | J12: 直近1年の利用状況を下表に入力してください | Q12: いいえ | R12: この住居は指定（住居追加）時点から1年以上経過していますか？ | S12: この住居は指定（住居追加）時点から6か月以上1年未満ですか？ | T12: 直近1年又は前年度の利用状況を下表に入力してください
A14: 2.事業所情報
A15: 事業所名 | J15: 平均利用者数合計 （自動計算） | L15: =IF(H10="はい",E17*0.9,+ROUNDUP(Q35,1)) -> 0 | M15: 夜間支援対象者数 （自動計算） | O15: =IF(H10="はい",E17*0.9,ROUND(Q37,0)) -> 0
A16: 住居名 | J16: 区分6 | L16: =ROUNDUP(SUMIFS($P:$P,$C:$C,6)/P35,1) -> 0 | M16: 区分5 | O16: =ROUNDUP(SUMIFS($P:$P,$C:$C,5)/P35,1) -> 0
A17: 住居定員 | J17: 区分4 | L17: =ROUNDUP(SUMIFS($P:$P,$C:$C,4)/P35,1) -> 0 | M17: 区分3 | O17: =ROUNDUP(SUMIFS($P:$P,$C:$C,3)/P35,1) -> 0
A18: 住居追加日 | J18: 区分2 | L18: =ROUNDUP(SUMIFS($P:$P,$C:$C,2)/P35,1) -> 0 | M18: 区分1以下 | O18: =ROUNDUP(SUMIFS($P:$P,$C:$C,"1以下")/P35,1) -> 0
L19: .
A21: 3.利用状況 | I21: 令和 | K21: 年度
A22: 月 | B22: サービス | C22: 区分 | D22: 4月 | E22: 5月 | F22: 6月 | G22: 7月 | H22: 8月 | I22: 9月 | J22: 10月 | K22: 11月 | L22: 12月 | M22: 1月 | N22: 2月 | O22: 3月 | P22: 合計
A23: 利用者①（氏名を記入） | P23: =SUM(D23:O23) -> 0
A24: 利用者②（氏名を記入） | P24: =SUM(D24:O24) -> 0
A25: 利用者③（氏名を記入） | P25: 0
A26: 利用者④（氏名を記入） | P26: 0
A27: 利用者⑤（氏名を記入） | P27: 0 | Q27: 6
A28: 利用者⑥（氏名を記入） | P28: 0 | Q28: 5
A29: 利用者⑦（氏名を記入） | P29: 0 | Q29: 4
A30: 利用者⑧（氏名を記入） | P30: 0 | Q30: 3
A31: 利用者⑨（氏名を記入） | P31: 0 | Q31: 2
A32: 利用者⑩（氏名を記入） | P32: 0 | Q32: 1以下
A33: 月の延べ利用者数 （自動計算） | D33: =SUM(D23:D32) -> 0 | E33: =SUM(E23:E32) -> 0 | F33: 0 | G33: 0 | H33: 0 | I33: 0 | J33: 0 | K33: 0 | L33: 0 | M33: 0 | N33: 0 | O33: 0 | P33: =SUM(D33:O33) -> 0
A34: 月の延べ利用者数（GH） （自動計算） | D34: =SUMIFS(D23:D32,$B$23:$B$32,"GH") -> 0 | E34: =SUMIFS(E23:E32,$B$23:$B$32,"GH") -> 0 | F34: 0 | G34: 0 | H34: 0 | I34: 0 | J34: 0 | K34: 0 | L34: 0 | M34: 0 | N34: 0 | O34: 0 | P34: =SUM(D34:O34) -> 0
A35: 月の開所日数 (直接入力) | D35: 30 | E35: 31 | F35: 30 | G35: 31 | H35: 31 | I35: 30 | J35: 31 | K35: 30 | L35: 31 | M35: 31 | N35: 28 | O35: 31 | P35: =SUM(D35:O35) -> 365 | Q35: =+P33/P35 -> 0
Q36: =+P34/P35 -> 0
Q37: =+ROUNDUP(Q36,1) -> 0
A38: ※新規指定又は住居追加から6月以上１年未満の間は、直近の6月における全利用者の延べ数を6月間の開所日数で除して得た数以上とする。
A39: 例）令和5年4月に住居追加した場合、9月末を以て、6月間の実績が出ることから、10月から新たな対象者数での算定が可能となる。
A40: ※新規指定又は住居追加から1年以上経過している場合は、直近1年間における全利用者の延べ数を1年間の開所日数で除して得た数以上とする。

Sheet ○○ホーム (10)
P1: （体制付表５－１９）
A2: 共同生活援助事業所における前年度平均利用者数等の算定資料 （兼夜間支援対象者数の根拠資料）
A4: 0.作成要領
A5: ・このシートは1住居に1シート作成してください。緑色のセルは選択、ピンク色のセルは入力が必要なセルです。
A6: ・全て入力が終わったら、「集計用シート」を確認し、当該数値を「体制付表5-25」へ転記してください。
A7: ・複数の住居がある場合、シートのコピーは行わず、予め用意したシートに入力してください。（数式が壊れ、うまく集計ができなくなります）
A9: 1.はじめに
A10: この住居は指定（住居追加）時点から６か月未満ですか？ | J10: =IF(H10="はい","区分毎の平均利用者数は推定値で入力してください。","") -> 
A11: =IF(H10="","",VLOOKUP(H10,Q11:S12,3,0)&"") ->  | J11: =IF(H11="","",VLOOKUP(H11,Q11:T12,4,0)&"") ->  | Q11: はい | T11: 直近6か月の利用状況を「3.利用状況」に入力してください。
A12: =IF(H11="","",VLOOKUP(H11,Q11:R12,2,0)&"") ->  | J12: 直近1年の利用状況を下表に入力してください | Q12: いいえ | R12: この住居は指定（住居追加）時点から1年以上経過していますか？ | S12: この住居は指定（住居追加）時点から6か月以上1年未満ですか？ | T12: 直近1年又は前年度の利用状況を下表に入力してください
A14: 2.事業所情報
A15: 事業所名 | J15: 平均利用者数合計 （自動計算） | L15: =IF(H10="はい",E17*0.9,+ROUNDUP(Q35,1)) -> 0 | M15: 夜間支援対象者数 （自動計算） | O15: =IF(H10="はい",E17*0.9,ROUND(Q37,0)) -> 0
A16: 住居名 | J16: 区分6 | L16: =ROUNDUP(SUMIFS($P:$P,$C:$C,6)/P35,1) -> 0 | M16: 区分5 | O16: =ROUNDUP(SUMIFS($P:$P,$C:$C,5)/P35,1) -> 0
A17: 住居定員 | J17: 区分4 | L17: =ROUNDUP(SUMIFS($P:$P,$C:$C,4)/P35,1) -> 0 | M17: 区分3 | O17: =ROUNDUP(SUMIFS($P:$P,$C:$C,3)/P35,1) -> 0
A18: 住居追加日 | J18: 区分2 | L18: =ROUNDUP(SUMIFS($P:$P,$C:$C,2)/P35,1) -> 0 | M18: 区分1以下 | O18: =ROUNDUP(SUMIFS($P:$P,$C:$C,"1以下")/P35,1) -> 0
L19: .
A21: 3.利用状況 | I21: 令和 | K21: 年度
A22: 月 | B22: サービス | C22: 区分 | D22: 4月 | E22: 5月 | F22: 6月 | G22: 7月 | H22: 8月 | I22: 9月 | J22: 10月 | K22: 11月 | L22: 12月 | M22: 1月 | N22: 2月 | O22: 3月 | P22: 合計
A23: 利用者①（氏名を記入） | P23: =SUM(D23:O23) -> 0
A24: 利用者②（氏名を記入） | P24: =SUM(D24:O24) -> 0
A25: 利用者③（氏名を記入） | P25: 0
A26: 利用者④（氏名を記入） | P26: 0
A27: 利用者⑤（氏名を記入） | P27: 0 | Q27: 6
A28: 利用者⑥（氏名を記入） | P28: 0 | Q28: 5
A29: 利用者⑦（氏名を記入） | P29: 0 | Q29: 4
A30: 利用者⑧（氏名を記入） | P30: 0 | Q30: 3
A31: 利用者⑨（氏名を記入） | P31: 0 | Q31: 2
A32: 利用者⑩（氏名を記入） | P32: 0 | Q32: 1以下
A33: 月の延べ利用者数 （自動計算） | D33: =SUM(D23:D32) -> 0 | E33: =SUM(E23:E32) -> 0 | F33: 0 | G33: 0 | H33: 0 | I33: 0 | J33: 0 | K33: 0 | L33: 0 | M33: 0 | N33: 0 | O33: 0 | P33: =SUM(D33:O33) -> 0
A34: 月の延べ利用者数（GH） （自動計算） | D34: =SUMIFS(D23:D32,$B$23:$B$32,"GH") -> 0 | E34: =SUMIFS(E23:E32,$B$23:$B$32,"GH") -> 0 | F34: 0 | G34: 0 | H34: 0 | I34: 0 | J34: 0 | K34: 0 | L34: 0 | M34: 0 | N34: 0 | O34: 0 | P34: =SUM(D34:O34) -> 0
A35: 月の開所日数 (直接入力) | D35: 30 | E35: 31 | F35: 30 | G35: 31 | H35: 31 | I35: 30 | J35: 31 | K35: 30 | L35: 31 | M35: 31 | N35: 28 | O35: 31 | P35: =SUM(D35:O35) -> 365 | Q35: =+P33/P35 -> 0
Q36: =+P34/P35 -> 0
Q37: =+ROUNDUP(Q36,1) -> 0
A38: ※新規指定又は住居追加から6月以上１年未満の間は、直近の6月における全利用者の延べ数を6月間の開所日数で除して得た数以上とする。
A39: 例）令和5年4月に住居追加した場合、9月末を以て、6月間の実績が出ることから、10月から新たな対象者数での算定が可能となる。
A40: ※新規指定又は住居追加から1年以上経過している場合は、直近1年間における全利用者の延べ数を1年間の開所日数で除して得た数以上とする。

Sheet ○○ホーム (11)
P1: （体制付表５－１９）
A2: 共同生活援助事業所における前年度平均利用者数等の算定資料 （兼夜間支援対象者数の根拠資料）
A4: 0.作成要領
A5: ・このシートは1住居に1シート作成してください。緑色のセルは選択、ピンク色のセルは入力が必要なセルです。
A6: ・全て入力が終わったら、「集計用シート」を確認し、当該数値を「体制付表5-25」へ転記してください。
A7: ・複数の住居がある場合、シートのコピーは行わず、予め用意したシートに入力してください。（数式が壊れ、うまく集計ができなくなります）
A9: 1.はじめに
A10: この住居は指定（住居追加）時点から６か月未満ですか？ | J10: =IF(H10="はい","区分毎の平均利用者数は推定値で入力してください。","") -> 
A11: =IF(H10="","",VLOOKUP(H10,Q11:S12,3,0)&"") ->  | J11: =IF(H11="","",VLOOKUP(H11,Q11:T12,4,0)&"") ->  | Q11: はい | T11: 直近6か月の利用状況を「3.利用状況」に入力してください。
A12: =IF(H11="","",VLOOKUP(H11,Q11:R12,2,0)&"") ->  | J12: 直近1年の利用状況を下表に入力してください | Q12: いいえ | R12: この住居は指定（住居追加）時点から1年以上経過していますか？ | S12: この住居は指定（住居追加）時点から6か月以上1年未満ですか？ | T12: 直近1年又は前年度の利用状況を下表に入力してください
A14: 2.事業所情報
A15: 事業所名 | J15: 平均利用者数合計 （自動計算） | L15: =IF(H10="はい",E17*0.9,+ROUNDUP(Q35,1)) -> 0 | M15: 夜間支援対象者数 （自動計算） | O15: =IF(H10="はい",E17*0.9,ROUND(Q37,0)) -> 0
A16: 住居名 | J16: 区分6 | L16: =ROUNDUP(SUMIFS($P:$P,$C:$C,6)/P35,1) -> 0 | M16: 区分5 | O16: =ROUNDUP(SUMIFS($P:$P,$C:$C,5)/P35,1) -> 0
A17: 住居定員 | J17: 区分4 | L17: =ROUNDUP(SUMIFS($P:$P,$C:$C,4)/P35,1) -> 0 | M17: 区分3 | O17: =ROUNDUP(SUMIFS($P:$P,$C:$C,3)/P35,1) -> 0
A18: 住居追加日 | J18: 区分2 | L18: =ROUNDUP(SUMIFS($P:$P,$C:$C,2)/P35,1) -> 0 | M18: 区分1以下 | O18: =ROUNDUP(SUMIFS($P:$P,$C:$C,"1以下")/P35,1) -> 0
L19: .
A21: 3.利用状況 | I21: 令和 | K21: 年度
A22: 月 | B22: サービス | C22: 区分 | D22: 4月 | E22: 5月 | F22: 6月 | G22: 7月 | H22: 8月 | I22: 9月 | J22: 10月 | K22: 11月 | L22: 12月 | M22: 1月 | N22: 2月 | O22: 3月 | P22: 合計
A23: 利用者①（氏名を記入） | P23: =SUM(D23:O23) -> 0
A24: 利用者②（氏名を記入） | P24: =SUM(D24:O24) -> 0
A25: 利用者③（氏名を記入） | P25: 0
A26: 利用者④（氏名を記入） | P26: 0
A27: 利用者⑤（氏名を記入） | P27: 0 | Q27: 6
A28: 利用者⑥（氏名を記入） | P28: 0 | Q28: 5
A29: 利用者⑦（氏名を記入） | P29: 0 | Q29: 4
A30: 利用者⑧（氏名を記入） | P30: 0 | Q30: 3
A31: 利用者⑨（氏名を記入） | P31: 0 | Q31: 2
A32: 利用者⑩（氏名を記入） | P32: 0 | Q32: 1以下
A33: 月の延べ利用者数 （自動計算） | D33: =SUM(D23:D32) -> 0 | E33: =SUM(E23:E32) -> 0 | F33: 0 | G33: 0 | H33: 0 | I33: 0 | J33: 0 | K33: 0 | L33: 0 | M33: 0 | N33: 0 | O33: 0 | P33: =SUM(D33:O33) -> 0
A34: 月の延べ利用者数（GH） （自動計算） | D34: =SUMIFS(D23:D32,$B$23:$B$32,"GH") -> 0 | E34: =SUMIFS(E23:E32,$B$23:$B$32,"GH") -> 0 | F34: 0 | G34: 0 | H34: 0 | I34: 0 | J34: 0 | K34: 0 | L34: 0 | M34: 0 | N34: 0 | O34: 0 | P34: =SUM(D34:O34) -> 0
A35: 月の開所日数 (直接入力) | D35: 30 | E35: 31 | F35: 30 | G35: 31 | H35: 31 | I35: 30 | J35: 31 | K35: 30 | L35: 31 | M35: 31 | N35: 28 | O35: 31 | P35: =SUM(D35:O35) -> 365 | Q35: =+P33/P35 -> 0
Q36: =+P34/P35 -> 0
Q37: =+ROUNDUP(Q36,1) -> 0
A38: ※新規指定又は住居追加から6月以上１年未満の間は、直近の6月における全利用者の延べ数を6月間の開所日数で除して得た数以上とする。
A39: 例）令和5年4月に住居追加した場合、9月末を以て、6月間の実績が出ることから、10月から新たな対象者数での算定が可能となる。
A40: ※新規指定又は住居追加から1年以上経過している場合は、直近1年間における全利用者の延べ数を1年間の開所日数で除して得た数以上とする。

Sheet ○○ホーム (12)
P1: （体制付表５－１９）
A2: 共同生活援助事業所における前年度平均利用者数等の算定資料 （兼夜間支援対象者数の根拠資料）
A4: 0.作成要領
A5: ・このシートは1住居に1シート作成してください。緑色のセルは選択、ピンク色のセルは入力が必要なセルです。
A6: ・全て入力が終わったら、「集計用シート」を確認し、当該数値を「体制付表5-25」へ転記してください。
A7: ・複数の住居がある場合、シートのコピーは行わず、予め用意したシートに入力してください。（数式が壊れ、うまく集計ができなくなります）
A9: 1.はじめに
A10: この住居は指定（住居追加）時点から６か月未満ですか？ | J10: =IF(H10="はい","区分毎の平均利用者数は推定値で入力してください。","") -> 
A11: =IF(H10="","",VLOOKUP(H10,Q11:S12,3,0)&"") ->  | J11: =IF(H11="","",VLOOKUP(H11,Q11:T12,4,0)&"") ->  | Q11: はい | T11: 直近6か月の利用状況を「3.利用状況」に入力してください。
A12: =IF(H11="","",VLOOKUP(H11,Q11:R12,2,0)&"") ->  | J12: 直近1年の利用状況を下表に入力してください | Q12: いいえ | R12: この住居は指定（住居追加）時点から1年以上経過していますか？ | S12: この住居は指定（住居追加）時点から6か月以上1年未満ですか？ | T12: 直近1年又は前年度の利用状況を下表に入力してください
A14: 2.事業所情報
A15: 事業所名 | J15: 平均利用者数合計 （自動計算） | L15: =IF(H10="はい",E17*0.9,+ROUNDUP(Q35,1)) -> 0 | M15: 夜間支援対象者数 （自動計算） | O15: =IF(H10="はい",E17*0.9,ROUND(Q37,0)) -> 0
A16: 住居名 | J16: 区分6 | L16: =ROUNDUP(SUMIFS($P:$P,$C:$C,6)/P35,1) -> 0 | M16: 区分5 | O16: =ROUNDUP(SUMIFS($P:$P,$C:$C,5)/P35,1) -> 0
A17: 住居定員 | J17: 区分4 | L17: =ROUNDUP(SUMIFS($P:$P,$C:$C,4)/P35,1) -> 0 | M17: 区分3 | O17: =ROUNDUP(SUMIFS($P:$P,$C:$C,3)/P35,1) -> 0
A18: 住居追加日 | J18: 区分2 | L18: =ROUNDUP(SUMIFS($P:$P,$C:$C,2)/P35,1) -> 0 | M18: 区分1以下 | O18: =ROUNDUP(SUMIFS($P:$P,$C:$C,"1以下")/P35,1) -> 0
L19: .
A21: 3.利用状況 | I21: 令和 | K21: 年度
A22: 月 | B22: サービス | C22: 区分 | D22: 4月 | E22: 5月 | F22: 6月 | G22: 7月 | H22: 8月 | I22: 9月 | J22: 10月 | K22: 11月 | L22: 12月 | M22: 1月 | N22: 2月 | O22: 3月 | P22: 合計
A23: 利用者①（氏名を記入） | P23: =SUM(D23:O23) -> 0
A24: 利用者②（氏名を記入） | P24: =SUM(D24:O24) -> 0
A25: 利用者③（氏名を記入） | P25: 0
A26: 利用者④（氏名を記入） | P26: 0
A27: 利用者⑤（氏名を記入） | P27: 0 | Q27: 6
A28: 利用者⑥（氏名を記入） | P28: 0 | Q28: 5
A29: 利用者⑦（氏名を記入） | P29: 0 | Q29: 4
A30: 利用者⑧（氏名を記入） | P30: 0 | Q30: 3
A31: 利用者⑨（氏名を記入） | P31: 0 | Q31: 2
A32: 利用者⑩（氏名を記入） | P32: 0 | Q32: 1以下
A33: 月の延べ利用者数 （自動計算） | D33: =SUM(D23:D32) -> 0 | E33: =SUM(E23:E32) -> 0 | F33: 0 | G33: 0 | H33: 0 | I33: 0 | J33: 0 | K33: 0 | L33: 0 | M33: 0 | N33: 0 | O33: 0 | P33: =SUM(D33:O33) -> 0
A34: 月の延べ利用者数（GH） （自動計算） | D34: =SUMIFS(D23:D32,$B$23:$B$32,"GH") -> 0 | E34: =SUMIFS(E23:E32,$B$23:$B$32,"GH") -> 0 | F34: 0 | G34: 0 | H34: 0 | I34: 0 | J34: 0 | K34: 0 | L34: 0 | M34: 0 | N34: 0 | O34: 0 | P34: =SUM(D34:O34) -> 0
A35: 月の開所日数 (直接入力) | D35: 30 | E35: 31 | F35: 30 | G35: 31 | H35: 31 | I35: 30 | J35: 31 | K35: 30 | L35: 31 | M35: 31 | N35: 28 | O35: 31 | P35: =SUM(D35:O35) -> 365 | Q35: =+P33/P35 -> 0
Q36: =+P34/P35 -> 0
Q37: =+ROUNDUP(Q36,1) -> 0
A38: ※新規指定又は住居追加から6月以上１年未満の間は、直近の6月における全利用者の延べ数を6月間の開所日数で除して得た数以上とする。
A39: 例）令和5年4月に住居追加した場合、9月末を以て、6月間の実績が出ることから、10月から新たな対象者数での算定が可能となる。
A40: ※新規指定又は住居追加から1年以上経過している場合は、直近1年間における全利用者の延べ数を1年間の開所日数で除して得た数以上とする。

Sheet ○○ホーム (13)
P1: （体制付表５－１９）
A2: 共同生活援助事業所における前年度平均利用者数等の算定資料 （兼夜間支援対象者数の根拠資料）
A4: 0.作成要領
A5: ・このシートは1住居に1シート作成してください。緑色のセルは選択、ピンク色のセルは入力が必要なセルです。
A6: ・全て入力が終わったら、「集計用シート」を確認し、当該数値を「体制付表5-25」へ転記してください。
A7: ・複数の住居がある場合、シートのコピーは行わず、予め用意したシートに入力してください。（数式が壊れ、うまく集計ができなくなります）
A9: 1.はじめに
A10: この住居は指定（住居追加）時点から６か月未満ですか？ | J10: =IF(H10="はい","区分毎の平均利用者数は推定値で入力してください。","") -> 
A11: =IF(H10="","",VLOOKUP(H10,Q11:S12,3,0)&"") ->  | J11: =IF(H11="","",VLOOKUP(H11,Q11:T12,4,0)&"") ->  | Q11: はい | T11: 直近6か月の利用状況を「3.利用状況」に入力してください。
A12: =IF(H11="","",VLOOKUP(H11,Q11:R12,2,0)&"") ->  | J12: 直近1年の利用状況を下表に入力してください | Q12: いいえ | R12: この住居は指定（住居追加）時点から1年以上経過していますか？ | S12: この住居は指定（住居追加）時点から6か月以上1年未満ですか？ | T12: 直近1年又は前年度の利用状況を下表に入力してください
A14: 2.事業所情報
A15: 事業所名 | J15: 平均利用者数合計 （自動計算） | L15: =IF(H10="はい",E17*0.9,+ROUNDUP(Q35,1)) -> 0 | M15: 夜間支援対象者数 （自動計算） | O15: =IF(H10="はい",E17*0.9,ROUND(Q37,0)) -> 0
A16: 住居名 | J16: 区分6 | L16: =ROUNDUP(SUMIFS($P:$P,$C:$C,6)/P35,1) -> 0 | M16: 区分5 | O16: =ROUNDUP(SUMIFS($P:$P,$C:$C,5)/P35,1) -> 0
A17: 住居定員 | J17: 区分4 | L17: =ROUNDUP(SUMIFS($P:$P,$C:$C,4)/P35,1) -> 0 | M17: 区分3 | O17: =ROUNDUP(SUMIFS($P:$P,$C:$C,3)/P35,1) -> 0
A18: 住居追加日 | J18: 区分2 | L18: =ROUNDUP(SUMIFS($P:$P,$C:$C,2)/P35,1) -> 0 | M18: 区分1以下 | O18: =ROUNDUP(SUMIFS($P:$P,$C:$C,"1以下")/P35,1) -> 0
L19: .
A21: 3.利用状況 | I21: 令和 | K21: 年度
A22: 月 | B22: サービス | C22: 区分 | D22: 4月 | E22: 5月 | F22: 6月 | G22: 7月 | H22: 8月 | I22: 9月 | J22: 10月 | K22: 11月 | L22: 12月 | M22: 1月 | N22: 2月 | O22: 3月 | P22: 合計
A23: 利用者①（氏名を記入） | P23: =SUM(D23:O23) -> 0
A24: 利用者②（氏名を記入） | P24: =SUM(D24:O24) -> 0
A25: 利用者③（氏名を記入） | P25: 0
A26: 利用者④（氏名を記入） | P26: 0
A27: 利用者⑤（氏名を記入） | P27: 0 | Q27: 6
A28: 利用者⑥（氏名を記入） | P28: 0 | Q28: 5
A29: 利用者⑦（氏名を記入） | P29: 0 | Q29: 4
A30: 利用者⑧（氏名を記入） | P30: 0 | Q30: 3
A31: 利用者⑨（氏名を記入） | P31: 0 | Q31: 2
A32: 利用者⑩（氏名を記入） | P32: 0 | Q32: 1以下
A33: 月の延べ利用者数 （自動計算） | D33: =SUM(D23:D32) -> 0 | E33: =SUM(E23:E32) -> 0 | F33: 0 | G33: 0 | H33: 0 | I33: 0 | J33: 0 | K33: 0 | L33: 0 | M33: 0 | N33: 0 | O33: 0 | P33: =SUM(D33:O33) -> 0
A34: 月の延べ利用者数（GH） （自動計算） | D34: =SUMIFS(D23:D32,$B$23:$B$32,"GH") -> 0 | E34: =SUMIFS(E23:E32,$B$23:$B$32,"GH") -> 0 | F34: 0 | G34: 0 | H34: 0 | I34: 0 | J34: 0 | K34: 0 | L34: 0 | M34: 0 | N34: 0 | O34: 0 | P34: =SUM(D34:O34) -> 0
A35: 月の開所日数 (直接入力) | D35: 30 | E35: 31 | F35: 30 | G35: 31 | H35: 31 | I35: 30 | J35: 31 | K35: 30 | L35: 31 | M35: 31 | N35: 28 | O35: 31 | P35: =SUM(D35:O35) -> 365 | Q35: =+P33/P35 -> 0
Q36: =+P34/P35 -> 0
Q37: =+ROUNDUP(Q36,1) -> 0
A38: ※新規指定又は住居追加から6月以上１年未満の間は、直近の6月における全利用者の延べ数を6月間の開所日数で除して得た数以上とする。
A39: 例）令和5年4月に住居追加した場合、9月末を以て、6月間の実績が出ることから、10月から新たな対象者数での算定が可能となる。
A40: ※新規指定又は住居追加から1年以上経過している場合は、直近1年間における全利用者の延べ数を1年間の開所日数で除して得た数以上とする。

Sheet ○○ホーム (14)
P1: （体制付表５－１９）
A2: 共同生活援助事業所における前年度平均利用者数等の算定資料 （兼夜間支援対象者数の根拠資料）
A4: 0.作成要領
A5: ・このシートは1住居に1シート作成してください。緑色のセルは選択、ピンク色のセルは入力が必要なセルです。
A6: ・全て入力が終わったら、「集計用シート」を確認し、当該数値を「体制付表5-25」へ転記してください。
A7: ・複数の住居がある場合、シートのコピーは行わず、予め用意したシートに入力してください。（数式が壊れ、うまく集計ができなくなります）
A9: 1.はじめに
A10: この住居は指定（住居追加）時点から６か月未満ですか？ | J10: =IF(H10="はい","区分毎の平均利用者数は推定値で入力してください。","") -> 
A11: =IF(H10="","",VLOOKUP(H10,Q11:S12,3,0)&"") ->  | J11: =IF(H11="","",VLOOKUP(H11,Q11:T12,4,0)&"") ->  | Q11: はい | T11: 直近6か月の利用状況を「3.利用状況」に入力してください。
A12: =IF(H11="","",VLOOKUP(H11,Q11:R12,2,0)&"") ->  | J12: 直近1年の利用状況を下表に入力してください | Q12: いいえ | R12: この住居は指定（住居追加）時点から1年以上経過していますか？ | S12: この住居は指定（住居追加）時点から6か月以上1年未満ですか？ | T12: 直近1年又は前年度の利用状況を下表に入力してください
A14: 2.事業所情報
A15: 事業所名 | J15: 平均利用者数合計 （自動計算） | L15: =IF(H10="はい",E17*0.9,+ROUNDUP(Q35,1)) -> 0 | M15: 夜間支援対象者数 （自動計算） | O15: =IF(H10="はい",E17*0.9,ROUND(Q37,0)) -> 0
A16: 住居名 | J16: 区分6 | L16: =ROUNDUP(SUMIFS($P:$P,$C:$C,6)/P35,1) -> 0 | M16: 区分5 | O16: =ROUNDUP(SUMIFS($P:$P,$C:$C,5)/P35,1) -> 0
A17: 住居定員 | J17: 区分4 | L17: =ROUNDUP(SUMIFS($P:$P,$C:$C,4)/P35,1) -> 0 | M17: 区分3 | O17: =ROUNDUP(SUMIFS($P:$P,$C:$C,3)/P35,1) -> 0
A18: 住居追加日 | J18: 区分2 | L18: =ROUNDUP(SUMIFS($P:$P,$C:$C,2)/P35,1) -> 0 | M18: 区分1以下 | O18: =ROUNDUP(SUMIFS($P:$P,$C:$C,"1以下")/P35,1) -> 0
L19: .
A21: 3.利用状況 | I21: 令和 | K21: 年度
A22: 月 | B22: サービス | C22: 区分 | D22: 4月 | E22: 5月 | F22: 6月 | G22: 7月 | H22: 8月 | I22: 9月 | J22: 10月 | K22: 11月 | L22: 12月 | M22: 1月 | N22: 2月 | O22: 3月 | P22: 合計
A23: 利用者①（氏名を記入） | P23: =SUM(D23:O23) -> 0
A24: 利用者②（氏名を記入） | P24: =SUM(D24:O24) -> 0
A25: 利用者③（氏名を記入） | P25: 0
A26: 利用者④（氏名を記入） | P26: 0
A27: 利用者⑤（氏名を記入） | P27: 0 | Q27: 6
A28: 利用者⑥（氏名を記入） | P28: 0 | Q28: 5
A29: 利用者⑦（氏名を記入） | P29: 0 | Q29: 4
A30: 利用者⑧（氏名を記入） | P30: 0 | Q30: 3
A31: 利用者⑨（氏名を記入） | P31: 0 | Q31: 2
A32: 利用者⑩（氏名を記入） | P32: 0 | Q32: 1以下
A33: 月の延べ利用者数 （自動計算） | D33: =SUM(D23:D32) -> 0 | E33: =SUM(E23:E32) -> 0 | F33: 0 | G33: 0 | H33: 0 | I33: 0 | J33: 0 | K33: 0 | L33: 0 | M33: 0 | N33: 0 | O33: 0 | P33: =SUM(D33:O33) -> 0
A34: 月の延べ利用者数（GH） （自動計算） | D34: =SUMIFS(D23:D32,$B$23:$B$32,"GH") -> 0 | E34: =SUMIFS(E23:E32,$B$23:$B$32,"GH") -> 0 | F34: 0 | G34: 0 | H34: 0 | I34: 0 | J34: 0 | K34: 0 | L34: 0 | M34: 0 | N34: 0 | O34: 0 | P34: =SUM(D34:O34) -> 0
A35: 月の開所日数 (直接入力) | D35: 30 | E35: 31 | F35: 30 | G35: 31 | H35: 31 | I35: 30 | J35: 31 | K35: 30 | L35: 31 | M35: 31 | N35: 28 | O35: 31 | P35: =SUM(D35:O35) -> 365 | Q35: =+P33/P35 -> 0
Q36: =+P34/P35 -> 0
Q37: =+ROUNDUP(Q36,1) -> 0
A38: ※新規指定又は住居追加から6月以上１年未満の間は、直近の6月における全利用者の延べ数を6月間の開所日数で除して得た数以上とする。
A39: 例）令和5年4月に住居追加した場合、9月末を以て、6月間の実績が出ることから、10月から新たな対象者数での算定が可能となる。
A40: ※新規指定又は住居追加から1年以上経過している場合は、直近1年間における全利用者の延べ数を1年間の開所日数で除して得た数以上とする。

Sheet ○○ホーム (15)
P1: （体制付表５－１９）
A2: 共同生活援助事業所における前年度平均利用者数等の算定資料 （兼夜間支援対象者数の根拠資料）
A4: 0.作成要領
A5: ・このシートは1住居に1シート作成してください。緑色のセルは選択、ピンク色のセルは入力が必要なセルです。
A6: ・全て入力が終わったら、「集計用シート」を確認し、当該数値を「体制付表5-25」へ転記してください。
A7: ・複数の住居がある場合、シートのコピーは行わず、予め用意したシートに入力してください。（数式が壊れ、うまく集計ができなくなります）
A9: 1.はじめに
A10: この住居は指定（住居追加）時点から６か月未満ですか？ | J10: =IF(H10="はい","区分毎の平均利用者数は推定値で入力してください。","") -> 
A11: =IF(H10="","",VLOOKUP(H10,Q11:S12,3,0)&"") ->  | J11: =IF(H11="","",VLOOKUP(H11,Q11:T12,4,0)&"") ->  | Q11: はい | T11: 直近6か月の利用状況を「3.利用状況」に入力してください。
A12: =IF(H11="","",VLOOKUP(H11,Q11:R12,2,0)&"") ->  | J12: 直近1年の利用状況を下表に入力してください | Q12: いいえ | R12: この住居は指定（住居追加）時点から1年以上経過していますか？ | S12: この住居は指定（住居追加）時点から6か月以上1年未満ですか？ | T12: 直近1年又は前年度の利用状況を下表に入力してください
A14: 2.事業所情報
A15: 事業所名 | J15: 平均利用者数合計 （自動計算） | L15: =IF(H10="はい",E17*0.9,+ROUNDUP(Q35,1)) -> 0 | M15: 夜間支援対象者数 （自動計算） | O15: =IF(H10="はい",E17*0.9,ROUND(Q37,0)) -> 0
A16: 住居名 | J16: 区分6 | L16: =ROUNDUP(SUMIFS($P:$P,$C:$C,6)/P35,1) -> 0 | M16: 区分5 | O16: =ROUNDUP(SUMIFS($P:$P,$C:$C,5)/P35,1) -> 0
A17: 住居定員 | J17: 区分4 | L17: =ROUNDUP(SUMIFS($P:$P,$C:$C,4)/P35,1) -> 0 | M17: 区分3 | O17: =ROUNDUP(SUMIFS($P:$P,$C:$C,3)/P35,1) -> 0
A18: 住居追加日 | J18: 区分2 | L18: =ROUNDUP(SUMIFS($P:$P,$C:$C,2)/P35,1) -> 0 | M18: 区分1以下 | O18: =ROUNDUP(SUMIFS($P:$P,$C:$C,"1以下")/P35,1) -> 0
L19: .
A21: 3.利用状況 | I21: 令和 | K21: 年度
A22: 月 | B22: サービス | C22: 区分 | D22: 4月 | E22: 5月 | F22: 6月 | G22: 7月 | H22: 8月 | I22: 9月 | J22: 10月 | K22: 11月 | L22: 12月 | M22: 1月 | N22: 2月 | O22: 3月 | P22: 合計
A23: 利用者①（氏名を記入） | P23: =SUM(D23:O23) -> 0
A24: 利用者②（氏名を記入） | P24: =SUM(D24:O24) -> 0
A25: 利用者③（氏名を記入） | P25: 0
A26: 利用者④（氏名を記入） | P26: 0
A27: 利用者⑤（氏名を記入） | P27: 0 | Q27: 6
A28: 利用者⑥（氏名を記入） | P28: 0 | Q28: 5
A29: 利用者⑦（氏名を記入） | P29: 0 | Q29: 4
A30: 利用者⑧（氏名を記入） | P30: 0 | Q30: 3
A31: 利用者⑨（氏名を記入） | P31: 0 | Q31: 2
A32: 利用者⑩（氏名を記入） | P32: 0 | Q32: 1以下
A33: 月の延べ利用者数 （自動計算） | D33: =SUM(D23:D32) -> 0 | E33: =SUM(E23:E32) -> 0 | F33: 0 | G33: 0 | H33: 0 | I33: 0 | J33: 0 | K33: 0 | L33: 0 | M33: 0 | N33: 0 | O33: 0 | P33: =SUM(D33:O33) -> 0
A34: 月の延べ利用者数（GH） （自動計算） | D34: =SUMIFS(D23:D32,$B$23:$B$32,"GH") -> 0 | E34: =SUMIFS(E23:E32,$B$23:$B$32,"GH") -> 0 | F34: 0 | G34: 0 | H34: 0 | I34: 0 | J34: 0 | K34: 0 | L34: 0 | M34: 0 | N34: 0 | O34: 0 | P34: =SUM(D34:O34) -> 0
A35: 月の開所日数 (直接入力) | D35: 30 | E35: 31 | F35: 30 | G35: 31 | H35: 31 | I35: 30 | J35: 31 | K35: 30 | L35: 31 | M35: 31 | N35: 28 | O35: 31 | P35: =SUM(D35:O35) -> 365 | Q35: =+P33/P35 -> 0
Q36: =+P34/P35 -> 0
Q37: =+ROUNDUP(Q36,1) -> 0
A38: ※新規指定又は住居追加から6月以上１年未満の間は、直近の6月における全利用者の延べ数を6月間の開所日数で除して得た数以上とする。
A39: 例）令和5年4月に住居追加した場合、9月末を以て、6月間の実績が出ることから、10月から新たな対象者数での算定が可能となる。
A40: ※新規指定又は住居追加から1年以上経過している場合は、直近1年間における全利用者の延べ数を1年間の開所日数で除して得た数以上とする。

Sheet ○○ホーム (16)
P1: （体制付表５－１９）
A2: 共同生活援助事業所における前年度平均利用者数等の算定資料 （兼夜間支援対象者数の根拠資料）
A4: 0.作成要領
A5: ・このシートは1住居に1シート作成してください。緑色のセルは選択、ピンク色のセルは入力が必要なセルです。
A6: ・全て入力が終わったら、「集計用シート」を確認し、当該数値を「体制付表5-25」へ転記してください。
A7: ・複数の住居がある場合、シートのコピーは行わず、予め用意したシートに入力してください。（数式が壊れ、うまく集計ができなくなります）
A9: 1.はじめに
A10: この住居は指定（住居追加）時点から６か月未満ですか？ | J10: =IF(H10="はい","区分毎の平均利用者数は推定値で入力してください。","") -> 
A11: =IF(H10="","",VLOOKUP(H10,Q11:S12,3,0)&"") ->  | J11: =IF(H11="","",VLOOKUP(H11,Q11:T12,4,0)&"") ->  | Q11: はい | T11: 直近6か月の利用状況を「3.利用状況」に入力してください。
A12: =IF(H11="","",VLOOKUP(H11,Q11:R12,2,0)&"") ->  | J12: 直近1年の利用状況を下表に入力してください | Q12: いいえ | R12: この住居は指定（住居追加）時点から1年以上経過していますか？ | S12: この住居は指定（住居追加）時点から6か月以上1年未満ですか？ | T12: 直近1年又は前年度の利用状況を下表に入力してください
A14: 2.事業所情報
A15: 事業所名 | J15: 平均利用者数合計 （自動計算） | L15: =IF(H10="はい",E17*0.9,+ROUNDUP(Q35,1)) -> 0 | M15: 夜間支援対象者数 （自動計算） | O15: =IF(H10="はい",E17*0.9,ROUND(Q37,0)) -> 0
A16: 住居名 | J16: 区分6 | L16: =ROUNDUP(SUMIFS($P:$P,$C:$C,6)/P35,1) -> 0 | M16: 区分5 | O16: =ROUNDUP(SUMIFS($P:$P,$C:$C,5)/P35,1) -> 0
A17: 住居定員 | J17: 区分4 | L17: =ROUNDUP(SUMIFS($P:$P,$C:$C,4)/P35,1) -> 0 | M17: 区分3 | O17: =ROUNDUP(SUMIFS($P:$P,$C:$C,3)/P35,1) -> 0
A18: 住居追加日 | J18: 区分2 | L18: =ROUNDUP(SUMIFS($P:$P,$C:$C,2)/P35,1) -> 0 | M18: 区分1以下 | O18: =ROUNDUP(SUMIFS($P:$P,$C:$C,"1以下")/P35,1) -> 0
L19: .
A21: 3.利用状況 | I21: 令和 | K21: 年度
A22: 月 | B22: サービス | C22: 区分 | D22: 4月 | E22: 5月 | F22: 6月 | G22: 7月 | H22: 8月 | I22: 9月 | J22: 10月 | K22: 11月 | L22: 12月 | M22: 1月 | N22: 2月 | O22: 3月 | P22: 合計
A23: 利用者①（氏名を記入） | P23: =SUM(D23:O23) -> 0
A24: 利用者②（氏名を記入） | P24: =SUM(D24:O24) -> 0
A25: 利用者③（氏名を記入） | P25: 0
A26: 利用者④（氏名を記入） | P26: 0
A27: 利用者⑤（氏名を記入） | P27: 0 | Q27: 6
A28: 利用者⑥（氏名を記入） | P28: 0 | Q28: 5
A29: 利用者⑦（氏名を記入） | P29: 0 | Q29: 4
A30: 利用者⑧（氏名を記入） | P30: 0 | Q30: 3
A31: 利用者⑨（氏名を記入） | P31: 0 | Q31: 2
A32: 利用者⑩（氏名を記入） | P32: 0 | Q32: 1以下
A33: 月の延べ利用者数 （自動計算） | D33: =SUM(D23:D32) -> 0 | E33: =SUM(E23:E32) -> 0 | F33: 0 | G33: 0 | H33: 0 | I33: 0 | J33: 0 | K33: 0 | L33: 0 | M33: 0 | N33: 0 | O33: 0 | P33: =SUM(D33:O33) -> 0
A34: 月の延べ利用者数（GH） （自動計算） | D34: =SUMIFS(D23:D32,$B$23:$B$32,"GH") -> 0 | E34: =SUMIFS(E23:E32,$B$23:$B$32,"GH") -> 0 | F34: 0 | G34: 0 | H34: 0 | I34: 0 | J34: 0 | K34: 0 | L34: 0 | M34: 0 | N34: 0 | O34: 0 | P34: =SUM(D34:O34) -> 0
A35: 月の開所日数 (直接入力) | D35: 30 | E35: 31 | F35: 30 | G35: 31 | H35: 31 | I35: 30 | J35: 31 | K35: 30 | L35: 31 | M35: 31 | N35: 28 | O35: 31 | P35: =SUM(D35:O35) -> 365 | Q35: =+P33/P35 -> 0
Q36: =+P34/P35 -> 0
Q37: =+ROUNDUP(Q36,1) -> 0
A38: ※新規指定又は住居追加から6月以上１年未満の間は、直近の6月における全利用者の延べ数を6月間の開所日数で除して得た数以上とする。
A39: 例）令和5年4月に住居追加した場合、9月末を以て、6月間の実績が出ることから、10月から新たな対象者数での算定が可能となる。
A40: ※新規指定又は住居追加から1年以上経過している場合は、直近1年間における全利用者の延べ数を1年間の開所日数で除して得た数以上とする。

Sheet ○○ホーム (17)
P1: （体制付表５－１９）
A2: 共同生活援助事業所における前年度平均利用者数等の算定資料 （兼夜間支援対象者数の根拠資料）
A4: 0.作成要領
A5: ・このシートは1住居に1シート作成してください。緑色のセルは選択、ピンク色のセルは入力が必要なセルです。
A6: ・全て入力が終わったら、「集計用シート」を確認し、当該数値を「体制付表5-25」へ転記してください。
A7: ・複数の住居がある場合、シートのコピーは行わず、予め用意したシートに入力してください。（数式が壊れ、うまく集計ができなくなります）
A9: 1.はじめに
A10: この住居は指定（住居追加）時点から６か月未満ですか？ | J10: =IF(H10="はい","区分毎の平均利用者数は推定値で入力してください。","") -> 
A11: =IF(H10="","",VLOOKUP(H10,Q11:S12,3,0)&"") ->  | J11: =IF(H11="","",VLOOKUP(H11,Q11:T12,4,0)&"") ->  | Q11: はい | T11: 直近6か月の利用状況を「3.利用状況」に入力してください。
A12: =IF(H11="","",VLOOKUP(H11,Q11:R12,2,0)&"") ->  | J12: 直近1年の利用状況を下表に入力してください | Q12: いいえ | R12: この住居は指定（住居追加）時点から1年以上経過していますか？ | S12: この住居は指定（住居追加）時点から6か月以上1年未満ですか？ | T12: 直近1年又は前年度の利用状況を下表に入力してください
A14: 2.事業所情報
A15: 事業所名 | J15: 平均利用者数合計 （自動計算） | L15: =IF(H10="はい",E17*0.9,+ROUNDUP(Q35,1)) -> 0 | M15: 夜間支援対象者数 （自動計算） | O15: =IF(H10="はい",E17*0.9,ROUND(Q37,0)) -> 0
A16: 住居名 | J16: 区分6 | L16: =ROUNDUP(SUMIFS($P:$P,$C:$C,6)/P35,1) -> 0 | M16: 区分5 | O16: =ROUNDUP(SUMIFS($P:$P,$C:$C,5)/P35,1) -> 0
A17: 住居定員 | J17: 区分4 | L17: =ROUNDUP(SUMIFS($P:$P,$C:$C,4)/P35,1) -> 0 | M17: 区分3 | O17: =ROUNDUP(SUMIFS($P:$P,$C:$C,3)/P35,1) -> 0
A18: 住居追加日 | J18: 区分2 | L18: =ROUNDUP(SUMIFS($P:$P,$C:$C,2)/P35,1) -> 0 | M18: 区分1以下 | O18: =ROUNDUP(SUMIFS($P:$P,$C:$C,"1以下")/P35,1) -> 0
L19: .
A21: 3.利用状況 | I21: 令和 | K21: 年度
A22: 月 | B22: サービス | C22: 区分 | D22: 4月 | E22: 5月 | F22: 6月 | G22: 7月 | H22: 8月 | I22: 9月 | J22: 10月 | K22: 11月 | L22: 12月 | M22: 1月 | N22: 2月 | O22: 3月 | P22: 合計
A23: 利用者①（氏名を記入） | P23: =SUM(D23:O23) -> 0
A24: 利用者②（氏名を記入） | P24: =SUM(D24:O24) -> 0
A25: 利用者③（氏名を記入） | P25: 0
A26: 利用者④（氏名を記入） | P26: 0
A27: 利用者⑤（氏名を記入） | P27: 0 | Q27: 6
A28: 利用者⑥（氏名を記入） | P28: 0 | Q28: 5
A29: 利用者⑦（氏名を記入） | P29: 0 | Q29: 4
A30: 利用者⑧（氏名を記入） | P30: 0 | Q30: 3
A31: 利用者⑨（氏名を記入） | P31: 0 | Q31: 2
A32: 利用者⑩（氏名を記入） | P32: 0 | Q32: 1以下
A33: 月の延べ利用者数 （自動計算） | D33: =SUM(D23:D32) -> 0 | E33: =SUM(E23:E32) -> 0 | F33: 0 | G33: 0 | H33: 0 | I33: 0 | J33: 0 | K33: 0 | L33: 0 | M33: 0 | N33: 0 | O33: 0 | P33: =SUM(D33:O33) -> 0
A34: 月の延べ利用者数（GH） （自動計算） | D34: =SUMIFS(D23:D32,$B$23:$B$32,"GH") -> 0 | E34: =SUMIFS(E23:E32,$B$23:$B$32,"GH") -> 0 | F34: 0 | G34: 0 | H34: 0 | I34: 0 | J34: 0 | K34: 0 | L34: 0 | M34: 0 | N34: 0 | O34: 0 | P34: =SUM(D34:O34) -> 0
A35: 月の開所日数 (直接入力) | D35: 30 | E35: 31 | F35: 30 | G35: 31 | H35: 31 | I35: 30 | J35: 31 | K35: 30 | L35: 31 | M35: 31 | N35: 28 | O35: 31 | P35: =SUM(D35:O35) -> 365 | Q35: =+P33/P35 -> 0
Q36: =+P34/P35 -> 0
Q37: =+ROUNDUP(Q36,1) -> 0
A38: ※新規指定又は住居追加から6月以上１年未満の間は、直近の6月における全利用者の延べ数を6月間の開所日数で除して得た数以上とする。
A39: 例）令和5年4月に住居追加した場合、9月末を以て、6月間の実績が出ることから、10月から新たな対象者数での算定が可能となる。
A40: ※新規指定又は住居追加から1年以上経過している場合は、直近1年間における全利用者の延べ数を1年間の開所日数で除して得た数以上とする。

Sheet ○○ホーム (18)
P1: （体制付表５－１９）
A2: 共同生活援助事業所における前年度平均利用者数等の算定資料 （兼夜間支援対象者数の根拠資料）
A4: 0.作成要領
A5: ・このシートは1住居に1シート作成してください。緑色のセルは選択、ピンク色のセルは入力が必要なセルです。
A6: ・全て入力が終わったら、「集計用シート」を確認し、当該数値を「体制付表5-25」へ転記してください。
A7: ・複数の住居がある場合、シートのコピーは行わず、予め用意したシートに入力してください。（数式が壊れ、うまく集計ができなくなります）
A9: 1.はじめに
A10: この住居は指定（住居追加）時点から６か月未満ですか？ | J10: =IF(H10="はい","区分毎の平均利用者数は推定値で入力してください。","") -> 
A11: =IF(H10="","",VLOOKUP(H10,Q11:S12,3,0)&"") ->  | J11: =IF(H11="","",VLOOKUP(H11,Q11:T12,4,0)&"") ->  | Q11: はい | T11: 直近6か月の利用状況を「3.利用状況」に入力してください。
A12: =IF(H11="","",VLOOKUP(H11,Q11:R12,2,0)&"") ->  | J12: 直近1年の利用状況を下表に入力してください | Q12: いいえ | R12: この住居は指定（住居追加）時点から1年以上経過していますか？ | S12: この住居は指定（住居追加）時点から6か月以上1年未満ですか？ | T12: 直近1年又は前年度の利用状況を下表に入力してください
A14: 2.事業所情報
A15: 事業所名 | J15: 平均利用者数合計 （自動計算） | L15: =IF(H10="はい",E17*0.9,+ROUNDUP(Q35,1)) -> 0 | M15: 夜間支援対象者数 （自動計算） | O15: =IF(H10="はい",E17*0.9,ROUND(Q37,0)) -> 0
A16: 住居名 | J16: 区分6 | L16: =ROUNDUP(SUMIFS($P:$P,$C:$C,6)/P35,1) -> 0 | M16: 区分5 | O16: =ROUNDUP(SUMIFS($P:$P,$C:$C,5)/P35,1) -> 0
A17: 住居定員 | J17: 区分4 | L17: =ROUNDUP(SUMIFS($P:$P,$C:$C,4)/P35,1) -> 0 | M17: 区分3 | O17: =ROUNDUP(SUMIFS($P:$P,$C:$C,3)/P35,1) -> 0
A18: 住居追加日 | J18: 区分2 | L18: =ROUNDUP(SUMIFS($P:$P,$C:$C,2)/P35,1) -> 0 | M18: 区分1以下 | O18: =ROUNDUP(SUMIFS($P:$P,$C:$C,"1以下")/P35,1) -> 0
L19: .
A21: 3.利用状況 | I21: 令和 | K21: 年度
A22: 月 | B22: サービス | C22: 区分 | D22: 4月 | E22: 5月 | F22: 6月 | G22: 7月 | H22: 8月 | I22: 9月 | J22: 10月 | K22: 11月 | L22: 12月 | M22: 1月 | N22: 2月 | O22: 3月 | P22: 合計
A23: 利用者①（氏名を記入） | P23: =SUM(D23:O23) -> 0
A24: 利用者②（氏名を記入） | P24: =SUM(D24:O24) -> 0
A25: 利用者③（氏名を記入） | P25: 0
A26: 利用者④（氏名を記入） | P26: 0
A27: 利用者⑤（氏名を記入） | P27: 0 | Q27: 6
A28: 利用者⑥（氏名を記入） | P28: 0 | Q28: 5
A29: 利用者⑦（氏名を記入） | P29: 0 | Q29: 4
A30: 利用者⑧（氏名を記入） | P30: 0 | Q30: 3
A31: 利用者⑨（氏名を記入） | P31: 0 | Q31: 2
A32: 利用者⑩（氏名を記入） | P32: 0 | Q32: 1以下
A33: 月の延べ利用者数 （自動計算） | D33: =SUM(D23:D32) -> 0 | E33: =SUM(E23:E32) -> 0 | F33: 0 | G33: 0 | H33: 0 | I33: 0 | J33: 0 | K33: 0 | L33: 0 | M33: 0 | N33: 0 | O33: 0 | P33: =SUM(D33:O33) -> 0
A34: 月の延べ利用者数（GH） （自動計算） | D34: =SUMIFS(D23:D32,$B$23:$B$32,"GH") -> 0 | E34: =SUMIFS(E23:E32,$B$23:$B$32,"GH") -> 0 | F34: 0 | G34: 0 | H34: 0 | I34: 0 | J34: 0 | K34: 0 | L34: 0 | M34: 0 | N34: 0 | O34: 0 | P34: =SUM(D34:O34) -> 0
A35: 月の開所日数 (直接入力) | D35: 30 | E35: 31 | F35: 30 | G35: 31 | H35: 31 | I35: 30 | J35: 31 | K35: 30 | L35: 31 | M35: 31 | N35: 28 | O35: 31 | P35: =SUM(D35:O35) -> 365 | Q35: =+P33/P35 -> 0
Q36: =+P34/P35 -> 0
Q37: =+ROUNDUP(Q36,1) -> 0
A38: ※新規指定又は住居追加から6月以上１年未満の間は、直近の6月における全利用者の延べ数を6月間の開所日数で除して得た数以上とする。
A39: 例）令和5年4月に住居追加した場合、9月末を以て、6月間の実績が出ることから、10月から新たな対象者数での算定が可能となる。
A40: ※新規指定又は住居追加から1年以上経過している場合は、直近1年間における全利用者の延べ数を1年間の開所日数で除して得た数以上とする。

Sheet ○○ホーム (19)
P1: （体制付表５－１９）
A2: 共同生活援助事業所における前年度平均利用者数等の算定資料 （兼夜間支援対象者数の根拠資料）
A4: 0.作成要領
A5: ・このシートは1住居に1シート作成してください。緑色のセルは選択、ピンク色のセルは入力が必要なセルです。
A6: ・全て入力が終わったら、「集計用シート」を確認し、当該数値を「体制付表5-25」へ転記してください。
A7: ・複数の住居がある場合、シートのコピーは行わず、予め用意したシートに入力してください。（数式が壊れ、うまく集計ができなくなります）
A9: 1.はじめに
A10: この住居は指定（住居追加）時点から６か月未満ですか？ | J10: =IF(H10="はい","区分毎の平均利用者数は推定値で入力してください。","") -> 
A11: =IF(H10="","",VLOOKUP(H10,Q11:S12,3,0)&"") ->  | J11: =IF(H11="","",VLOOKUP(H11,Q11:T12,4,0)&"") ->  | Q11: はい | T11: 直近6か月の利用状況を「3.利用状況」に入力してください。
A12: =IF(H11="","",VLOOKUP(H11,Q11:R12,2,0)&"") ->  | J12: 直近1年の利用状況を下表に入力してください | Q12: いいえ | R12: この住居は指定（住居追加）時点から1年以上経過していますか？ | S12: この住居は指定（住居追加）時点から6か月以上1年未満ですか？ | T12: 直近1年又は前年度の利用状況を下表に入力してください
A14: 2.事業所情報
A15: 事業所名 | J15: 平均利用者数合計 （自動計算） | L15: =IF(H10="はい",E17*0.9,+ROUNDUP(Q35,1)) -> 0 | M15: 夜間支援対象者数 （自動計算） | O15: =IF(H10="はい",E17*0.9,ROUND(Q37,0)) -> 0
A16: 住居名 | J16: 区分6 | L16: =ROUNDUP(SUMIFS($P:$P,$C:$C,6)/P35,1) -> 0 | M16: 区分5 | O16: =ROUNDUP(SUMIFS($P:$P,$C:$C,5)/P35,1) -> 0
A17: 住居定員 | J17: 区分4 | L17: =ROUNDUP(SUMIFS($P:$P,$C:$C,4)/P35,1) -> 0 | M17: 区分3 | O17: =ROUNDUP(SUMIFS($P:$P,$C:$C,3)/P35,1) -> 0
A18: 住居追加日 | J18: 区分2 | L18: =ROUNDUP(SUMIFS($P:$P,$C:$C,2)/P35,1) -> 0 | M18: 区分1以下 | O18: =ROUNDUP(SUMIFS($P:$P,$C:$C,"1以下")/P35,1) -> 0
L19: .
A21: 3.利用状況 | I21: 令和 | K21: 年度
A22: 月 | B22: サービス | C22: 区分 | D22: 4月 | E22: 5月 | F22: 6月 | G22: 7月 | H22: 8月 | I22: 9月 | J22: 10月 | K22: 11月 | L22: 12月 | M22: 1月 | N22: 2月 | O22: 3月 | P22: 合計
A23: 利用者①（氏名を記入） | P23: =SUM(D23:O23) -> 0
A24: 利用者②（氏名を記入） | P24: =SUM(D24:O24) -> 0
A25: 利用者③（氏名を記入） | P25: 0
A26: 利用者④（氏名を記入） | P26: 0
A27: 利用者⑤（氏名を記入） | P27: 0 | Q27: 6
A28: 利用者⑥（氏名を記入） | P28: 0 | Q28: 5
A29: 利用者⑦（氏名を記入） | P29: 0 | Q29: 4
A30: 利用者⑧（氏名を記入） | P30: 0 | Q30: 3
A31: 利用者⑨（氏名を記入） | P31: 0 | Q31: 2
A32: 利用者⑩（氏名を記入） | P32: 0 | Q32: 1以下
A33: 月の延べ利用者数 （自動計算） | D33: =SUM(D23:D32) -> 0 | E33: =SUM(E23:E32) -> 0 | F33: 0 | G33: 0 | H33: 0 | I33: 0 | J33: 0 | K33: 0 | L33: 0 | M33: 0 | N33: 0 | O33: 0 | P33: =SUM(D33:O33) -> 0
A34: 月の延べ利用者数（GH） （自動計算） | D34: =SUMIFS(D23:D32,$B$23:$B$32,"GH") -> 0 | E34: =SUMIFS(E23:E32,$B$23:$B$32,"GH") -> 0 | F34: 0 | G34: 0 | H34: 0 | I34: 0 | J34: 0 | K34: 0 | L34: 0 | M34: 0 | N34: 0 | O34: 0 | P34: =SUM(D34:O34) -> 0
A35: 月の開所日数 (直接入力) | D35: 30 | E35: 31 | F35: 30 | G35: 31 | H35: 31 | I35: 30 | J35: 31 | K35: 30 | L35: 31 | M35: 31 | N35: 28 | O35: 31 | P35: =SUM(D35:O35) -> 365 | Q35: =+P33/P35 -> 0
Q36: =+P34/P35 -> 0
Q37: =+ROUNDUP(Q36,1) -> 0
A38: ※新規指定又は住居追加から6月以上１年未満の間は、直近の6月における全利用者の延べ数を6月間の開所日数で除して得た数以上とする。
A39: 例）令和5年4月に住居追加した場合、9月末を以て、6月間の実績が出ることから、10月から新たな対象者数での算定が可能となる。
A40: ※新規指定又は住居追加から1年以上経過している場合は、直近1年間における全利用者の延べ数を1年間の開所日数で除して得た数以上とする。

Sheet ○○ホーム (20)
P1: （体制付表５－１９）
A2: 共同生活援助事業所における前年度平均利用者数等の算定資料 （兼夜間支援対象者数の根拠資料）
A4: 0.作成要領
A5: ・このシートは1住居に1シート作成してください。緑色のセルは選択、ピンク色のセルは入力が必要なセルです。
A6: ・全て入力が終わったら、「集計用シート」を確認し、当該数値を「体制付表5-25」へ転記してください。
A7: ・複数の住居がある場合、シートのコピーは行わず、予め用意したシートに入力してください。（数式が壊れ、うまく集計ができなくなります）
A9: 1.はじめに
A10: この住居は指定（住居追加）時点から６か月未満ですか？ | J10: =IF(H10="はい","区分毎の平均利用者数は推定値で入力してください。","") -> 
A11: =IF(H10="","",VLOOKUP(H10,Q11:S12,3,0)&"") ->  | J11: =IF(H11="","",VLOOKUP(H11,Q11:T12,4,0)&"") ->  | Q11: はい | T11: 直近6か月の利用状況を「3.利用状況」に入力してください。
A12: =IF(H11="","",VLOOKUP(H11,Q11:R12,2,0)&"") ->  | J12: 直近1年の利用状況を下表に入力してください | Q12: いいえ | R12: この住居は指定（住居追加）時点から1年以上経過していますか？ | S12: この住居は指定（住居追加）時点から6か月以上1年未満ですか？ | T12: 直近1年又は前年度の利用状況を下表に入力してください
A14: 2.事業所情報
A15: 事業所名 | J15: 平均利用者数合計 （自動計算） | L15: =IF(H10="はい",E17*0.9,+ROUNDUP(Q35,1)) -> 0 | M15: 夜間支援対象者数 （自動計算） | O15: =IF(H10="はい",E17*0.9,ROUND(Q37,0)) -> 0
A16: 住居名 | J16: 区分6 | L16: =ROUNDUP(SUMIFS($P:$P,$C:$C,6)/P35,1) -> 0 | M16: 区分5 | O16: =ROUNDUP(SUMIFS($P:$P,$C:$C,5)/P35,1) -> 0
A17: 住居定員 | J17: 区分4 | L17: =ROUNDUP(SUMIFS($P:$P,$C:$C,4)/P35,1) -> 0 | M17: 区分3 | O17: =ROUNDUP(SUMIFS($P:$P,$C:$C,3)/P35,1) -> 0
A18: 住居追加日 | J18: 区分2 | L18: =ROUNDUP(SUMIFS($P:$P,$C:$C,2)/P35,1) -> 0 | M18: 区分1以下 | O18: =ROUNDUP(SUMIFS($P:$P,$C:$C,"1以下")/P35,1) -> 0
L19: .
A21: 3.利用状況 | I21: 令和 | K21: 年度
A22: 月 | B22: サービス | C22: 区分 | D22: 4月 | E22: 5月 | F22: 6月 | G22: 7月 | H22: 8月 | I22: 9月 | J22: 10月 | K22: 11月 | L22: 12月 | M22: 1月 | N22: 2月 | O22: 3月 | P22: 合計
A23: 利用者①（氏名を記入） | P23: =SUM(D23:O23) -> 0
A24: 利用者②（氏名を記入） | P24: =SUM(D24:O24) -> 0
A25: 利用者③（氏名を記入） | P25: 0
A26: 利用者④（氏名を記入） | P26: 0
A27: 利用者⑤（氏名を記入） | P27: 0 | Q27: 6
A28: 利用者⑥（氏名を記入） | P28: 0 | Q28: 5
A29: 利用者⑦（氏名を記入） | P29: 0 | Q29: 4
A30: 利用者⑧（氏名を記入） | P30: 0 | Q30: 3
A31: 利用者⑨（氏名を記入） | P31: 0 | Q31: 2
A32: 利用者⑩（氏名を記入） | P32: 0 | Q32: 1以下
A33: 月の延べ利用者数 （自動計算） | D33: =SUM(D23:D32) -> 0 | E33: =SUM(E23:E32) -> 0 | F33: 0 | G33: 0 | H33: 0 | I33: 0 | J33: 0 | K33: 0 | L33: 0 | M33: 0 | N33: 0 | O33: 0 | P33: =SUM(D33:O33) -> 0
A34: 月の延べ利用者数（GH） （自動計算） | D34: =SUMIFS(D23:D32,$B$23:$B$32,"GH") -> 0 | E34: =SUMIFS(E23:E32,$B$23:$B$32,"GH") -> 0 | F34: 0 | G34: 0 | H34: 0 | I34: 0 | J34: 0 | K34: 0 | L34: 0 | M34: 0 | N34: 0 | O34: 0 | P34: =SUM(D34:O34) -> 0
A35: 月の開所日数 (直接入力) | D35: 30 | E35: 31 | F35: 30 | G35: 31 | H35: 31 | I35: 30 | J35: 31 | K35: 30 | L35: 31 | M35: 31 | N35: 28 | O35: 31 | P35: =SUM(D35:O35) -> 365 | Q35: =+P33/P35 -> 0
Q36: =+P34/P35 -> 0
Q37: =+ROUNDUP(Q36,1) -> 0
A38: ※新規指定又は住居追加から6月以上１年未満の間は、直近の6月における全利用者の延べ数を6月間の開所日数で除して得た数以上とする。
A39: 例）令和5年4月に住居追加した場合、9月末を以て、6月間の実績が出ることから、10月から新たな対象者数での算定が可能となる。
A40: ※新規指定又は住居追加から1年以上経過している場合は、直近1年間における全利用者の延べ数を1年間の開所日数で除して得た数以上とする。

Sheet ○○ホーム (21)
P1: （体制付表５－１９）
A2: 共同生活援助事業所における前年度平均利用者数等の算定資料 （兼夜間支援対象者数の根拠資料）
A4: 0.作成要領
A5: ・このシートは1住居に1シート作成してください。緑色のセルは選択、ピンク色のセルは入力が必要なセルです。
A6: ・全て入力が終わったら、「集計用シート」を確認し、当該数値を「体制付表5-25」へ転記してください。
A7: ・複数の住居がある場合、シートのコピーは行わず、予め用意したシートに入力してください。（数式が壊れ、うまく集計ができなくなります）
A9: 1.はじめに
A10: この住居は指定（住居追加）時点から６か月未満ですか？ | J10: =IF(H10="はい","区分毎の平均利用者数は推定値で入力してください。","") -> 
A11: =IF(H10="","",VLOOKUP(H10,Q11:S12,3,0)&"") ->  | J11: =IF(H11="","",VLOOKUP(H11,Q11:T12,4,0)&"") ->  | Q11: はい | T11: 直近6か月の利用状況を「3.利用状況」に入力してください。
A12: =IF(H11="","",VLOOKUP(H11,Q11:R12,2,0)&"") ->  | J12: 直近1年の利用状況を下表に入力してください | Q12: いいえ | R12: この住居は指定（住居追加）時点から1年以上経過していますか？ | S12: この住居は指定（住居追加）時点から6か月以上1年未満ですか？ | T12: 直近1年又は前年度の利用状況を下表に入力してください
A14: 2.事業所情報
A15: 事業所名 | J15: 平均利用者数合計 （自動計算） | L15: =IF(H10="はい",E17*0.9,+ROUNDUP(Q35,1)) -> 0 | M15: 夜間支援対象者数 （自動計算） | O15: =IF(H10="はい",E17*0.9,ROUND(Q37,0)) -> 0
A16: 住居名 | J16: 区分6 | L16: =ROUNDUP(SUMIFS($P:$P,$C:$C,6)/P35,1) -> 0 | M16: 区分5 | O16: =ROUNDUP(SUMIFS($P:$P,$C:$C,5)/P35,1) -> 0
A17: 住居定員 | J17: 区分4 | L17: =ROUNDUP(SUMIFS($P:$P,$C:$C,4)/P35,1) -> 0 | M17: 区分3 | O17: =ROUNDUP(SUMIFS($P:$P,$C:$C,3)/P35,1) -> 0
A18: 住居追加日 | J18: 区分2 | L18: =ROUNDUP(SUMIFS($P:$P,$C:$C,2)/P35,1) -> 0 | M18: 区分1以下 | O18: =ROUNDUP(SUMIFS($P:$P,$C:$C,"1以下")/P35,1) -> 0
L19: .
A21: 3.利用状況 | I21: 令和 | K21: 年度
A22: 月 | B22: サービス | C22: 区分 | D22: 4月 | E22: 5月 | F22: 6月 | G22: 7月 | H22: 8月 | I22: 9月 | J22: 10月 | K22: 11月 | L22: 12月 | M22: 1月 | N22: 2月 | O22: 3月 | P22: 合計
A23: 利用者①（氏名を記入） | P23: =SUM(D23:O23) -> 0
A24: 利用者②（氏名を記入） | P24: =SUM(D24:O24) -> 0
A25: 利用者③（氏名を記入） | P25: 0
A26: 利用者④（氏名を記入） | P26: 0
A27: 利用者⑤（氏名を記入） | P27: 0 | Q27: 6
A28: 利用者⑥（氏名を記入） | P28: 0 | Q28: 5
A29: 利用者⑦（氏名を記入） | P29: 0 | Q29: 4
A30: 利用者⑧（氏名を記入） | P30: 0 | Q30: 3
A31: 利用者⑨（氏名を記入） | P31: 0 | Q31: 2
A32: 利用者⑩（氏名を記入） | P32: 0 | Q32: 1以下
A33: 月の延べ利用者数 （自動計算） | D33: =SUM(D23:D32) -> 0 | E33: =SUM(E23:E32) -> 0 | F33: 0 | G33: 0 | H33: 0 | I33: 0 | J33: 0 | K33: 0 | L33: 0 | M33: 0 | N33: 0 | O33: 0 | P33: =SUM(D33:O33) -> 0
A34: 月の延べ利用者数（GH） （自動計算） | D34: =SUMIFS(D23:D32,$B$23:$B$32,"GH") -> 0 | E34: =SUMIFS(E23:E32,$B$23:$B$32,"GH") -> 0 | F34: 0 | G34: 0 | H34: 0 | I34: 0 | J34: 0 | K34: 0 | L34: 0 | M34: 0 | N34: 0 | O34: 0 | P34: =SUM(D34:O34) -> 0
A35: 月の開所日数 (直接入力) | D35: 30 | E35: 31 | F35: 30 | G35: 31 | H35: 31 | I35: 30 | J35: 31 | K35: 30 | L35: 31 | M35: 31 | N35: 28 | O35: 31 | P35: =SUM(D35:O35) -> 365 | Q35: =+P33/P35 -> 0
Q36: =+P34/P35 -> 0
Q37: =+ROUNDUP(Q36,1) -> 0
A38: ※新規指定又は住居追加から6月以上１年未満の間は、直近の6月における全利用者の延べ数を6月間の開所日数で除して得た数以上とする。
A39: 例）令和5年4月に住居追加した場合、9月末を以て、6月間の実績が出ることから、10月から新たな対象者数での算定が可能となる。
A40: ※新規指定又は住居追加から1年以上経過している場合は、直近1年間における全利用者の延べ数を1年間の開所日数で除して得た数以上とする。

Sheet ○○ホーム (22)
P1: （体制付表５－１９）
A2: 共同生活援助事業所における前年度平均利用者数等の算定資料 （兼夜間支援対象者数の根拠資料）
A4: 0.作成要領
A5: ・このシートは1住居に1シート作成してください。緑色のセルは選択、ピンク色のセルは入力が必要なセルです。
A6: ・全て入力が終わったら、「集計用シート」を確認し、当該数値を「体制付表5-25」へ転記してください。
A7: ・複数の住居がある場合、シートのコピーは行わず、予め用意したシートに入力してください。（数式が壊れ、うまく集計ができなくなります）
A9: 1.はじめに
A10: この住居は指定（住居追加）時点から６か月未満ですか？ | J10: =IF(H10="はい","区分毎の平均利用者数は推定値で入力してください。","") -> 
A11: =IF(H10="","",VLOOKUP(H10,Q11:S12,3,0)&"") ->  | J11: =IF(H11="","",VLOOKUP(H11,Q11:T12,4,0)&"") ->  | Q11: はい | T11: 直近6か月の利用状況を「3.利用状況」に入力してください。
A12: =IF(H11="","",VLOOKUP(H11,Q11:R12,2,0)&"") ->  | J12: 直近1年の利用状況を下表に入力してください | Q12: いいえ | R12: この住居は指定（住居追加）時点から1年以上経過していますか？ | S12: この住居は指定（住居追加）時点から6か月以上1年未満ですか？ | T12: 直近1年又は前年度の利用状況を下表に入力してください
A14: 2.事業所情報
A15: 事業所名 | J15: 平均利用者数合計 （自動計算） | L15: =IF(H10="はい",E17*0.9,+ROUNDUP(Q35,1)) -> 0 | M15: 夜間支援対象者数 （自動計算） | O15: =IF(H10="はい",E17*0.9,ROUND(Q37,0)) -> 0
A16: 住居名 | J16: 区分6 | L16: =ROUNDUP(SUMIFS($P:$P,$C:$C,6)/P35,1) -> 0 | M16: 区分5 | O16: =ROUNDUP(SUMIFS($P:$P,$C:$C,5)/P35,1) -> 0
A17: 住居定員 | J17: 区分4 | L17: =ROUNDUP(SUMIFS($P:$P,$C:$C,4)/P35,1) -> 0 | M17: 区分3 | O17: =ROUNDUP(SUMIFS($P:$P,$C:$C,3)/P35,1) -> 0
A18: 住居追加日 | J18: 区分2 | L18: =ROUNDUP(SUMIFS($P:$P,$C:$C,2)/P35,1) -> 0 | M18: 区分1以下 | O18: =ROUNDUP(SUMIFS($P:$P,$C:$C,"1以下")/P35,1) -> 0
L19: .
A21: 3.利用状況 | I21: 令和 | K21: 年度
A22: 月 | B22: サービス | C22: 区分 | D22: 4月 | E22: 5月 | F22: 6月 | G22: 7月 | H22: 8月 | I22: 9月 | J22: 10月 | K22: 11月 | L22: 12月 | M22: 1月 | N22: 2月 | O22: 3月 | P22: 合計
A23: 利用者①（氏名を記入） | P23: =SUM(D23:O23) -> 0
A24: 利用者②（氏名を記入） | P24: =SUM(D24:O24) -> 0
A25: 利用者③（氏名を記入） | P25: 0
A26: 利用者④（氏名を記入） | P26: 0
A27: 利用者⑤（氏名を記入） | P27: 0 | Q27: 6
A28: 利用者⑥（氏名を記入） | P28: 0 | Q28: 5
A29: 利用者⑦（氏名を記入） | P29: 0 | Q29: 4
A30: 利用者⑧（氏名を記入） | P30: 0 | Q30: 3
A31: 利用者⑨（氏名を記入） | P31: 0 | Q31: 2
A32: 利用者⑩（氏名を記入） | P32: 0 | Q32: 1以下
A33: 月の延べ利用者数 （自動計算） | D33: =SUM(D23:D32) -> 0 | E33: =SUM(E23:E32) -> 0 | F33: 0 | G33: 0 | H33: 0 | I33: 0 | J33: 0 | K33: 0 | L33: 0 | M33: 0 | N33: 0 | O33: 0 | P33: =SUM(D33:O33) -> 0
A34: 月の延べ利用者数（GH） （自動計算） | D34: =SUMIFS(D23:D32,$B$23:$B$32,"GH") -> 0 | E34: =SUMIFS(E23:E32,$B$23:$B$32,"GH") -> 0 | F34: 0 | G34: 0 | H34: 0 | I34: 0 | J34: 0 | K34: 0 | L34: 0 | M34: 0 | N34: 0 | O34: 0 | P34: =SUM(D34:O34) -> 0
A35: 月の開所日数 (直接入力) | D35: 30 | E35: 31 | F35: 30 | G35: 31 | H35: 31 | I35: 30 | J35: 31 | K35: 30 | L35: 31 | M35: 31 | N35: 28 | O35: 31 | P35: =SUM(D35:O35) -> 365 | Q35: =+P33/P35 -> 0
Q36: =+P34/P35 -> 0
Q37: =+ROUNDUP(Q36,1) -> 0
A38: ※新規指定又は住居追加から6月以上１年未満の間は、直近の6月における全利用者の延べ数を6月間の開所日数で除して得た数以上とする。
A39: 例）令和5年4月に住居追加した場合、9月末を以て、6月間の実績が出ることから、10月から新たな対象者数での算定が可能となる。
A40: ※新規指定又は住居追加から1年以上経過している場合は、直近1年間における全利用者の延べ数を1年間の開所日数で除して得た数以上とする。

Sheet ○○ホーム (23)
P1: （体制付表５－１９）
A2: 共同生活援助事業所における前年度平均利用者数等の算定資料 （兼夜間支援対象者数の根拠資料）
A4: 0.作成要領
A5: ・このシートは1住居に1シート作成してください。緑色のセルは選択、ピンク色のセルは入力が必要なセルです。
A6: ・全て入力が終わったら、「集計用シート」を確認し、当該数値を「体制付表5-25」へ転記してください。
A7: ・複数の住居がある場合、シートのコピーは行わず、予め用意したシートに入力してください。（数式が壊れ、うまく集計ができなくなります）
A9: 1.はじめに
A10: この住居は指定（住居追加）時点から６か月未満ですか？ | J10: =IF(H10="はい","区分毎の平均利用者数は推定値で入力してください。","") -> 
A11: =IF(H10="","",VLOOKUP(H10,Q11:S12,3,0)&"") ->  | J11: =IF(H11="","",VLOOKUP(H11,Q11:T12,4,0)&"") ->  | Q11: はい | T11: 直近6か月の利用状況を「3.利用状況」に入力してください。
A12: =IF(H11="","",VLOOKUP(H11,Q11:R12,2,0)&"") ->  | J12: 直近1年の利用状況を下表に入力してください | Q12: いいえ | R12: この住居は指定（住居追加）時点から1年以上経過していますか？ | S12: この住居は指定（住居追加）時点から6か月以上1年未満ですか？ | T12: 直近1年又は前年度の利用状況を下表に入力してください
A14: 2.事業所情報
A15: 事業所名 | J15: 平均利用者数合計 （自動計算） | L15: =IF(H10="はい",E17*0.9,+ROUNDUP(Q35,1)) -> 0 | M15: 夜間支援対象者数 （自動計算） | O15: =IF(H10="はい",E17*0.9,ROUND(Q37,0)) -> 0
A16: 住居名 | J16: 区分6 | L16: =ROUNDUP(SUMIFS($P:$P,$C:$C,6)/P35,1) -> 0 | M16: 区分5 | O16: =ROUNDUP(SUMIFS($P:$P,$C:$C,5)/P35,1) -> 0
A17: 住居定員 | J17: 区分4 | L17: =ROUNDUP(SUMIFS($P:$P,$C:$C,4)/P35,1) -> 0 | M17: 区分3 | O17: =ROUNDUP(SUMIFS($P:$P,$C:$C,3)/P35,1) -> 0
A18: 住居追加日 | J18: 区分2 | L18: =ROUNDUP(SUMIFS($P:$P,$C:$C,2)/P35,1) -> 0 | M18: 区分1以下 | O18: =ROUNDUP(SUMIFS($P:$P,$C:$C,"1以下")/P35,1) -> 0
L19: .
A21: 3.利用状況 | I21: 令和 | K21: 年度
A22: 月 | B22: サービス | C22: 区分 | D22: 4月 | E22: 5月 | F22: 6月 | G22: 7月 | H22: 8月 | I22: 9月 | J22: 10月 | K22: 11月 | L22: 12月 | M22: 1月 | N22: 2月 | O22: 3月 | P22: 合計
A23: 利用者①（氏名を記入） | P23: =SUM(D23:O23) -> 0
A24: 利用者②（氏名を記入） | P24: =SUM(D24:O24) -> 0
A25: 利用者③（氏名を記入） | P25: 0
A26: 利用者④（氏名を記入） | P26: 0
A27: 利用者⑤（氏名を記入） | P27: 0 | Q27: 6
A28: 利用者⑥（氏名を記入） | P28: 0 | Q28: 5
A29: 利用者⑦（氏名を記入） | P29: 0 | Q29: 4
A30: 利用者⑧（氏名を記入） | P30: 0 | Q30: 3
A31: 利用者⑨（氏名を記入） | P31: 0 | Q31: 2
A32: 利用者⑩（氏名を記入） | P32: 0 | Q32: 1以下
A33: 月の延べ利用者数 （自動計算） | D33: =SUM(D23:D32) -> 0 | E33: =SUM(E23:E32) -> 0 | F33: 0 | G33: 0 | H33: 0 | I33: 0 | J33: 0 | K33: 0 | L33: 0 | M33: 0 | N33: 0 | O33: 0 | P33: =SUM(D33:O33) -> 0
A34: 月の延べ利用者数（GH） （自動計算） | D34: =SUMIFS(D23:D32,$B$23:$B$32,"GH") -> 0 | E34: =SUMIFS(E23:E32,$B$23:$B$32,"GH") -> 0 | F34: 0 | G34: 0 | H34: 0 | I34: 0 | J34: 0 | K34: 0 | L34: 0 | M34: 0 | N34: 0 | O34: 0 | P34: =SUM(D34:O34) -> 0
A35: 月の開所日数 (直接入力) | D35: 30 | E35: 31 | F35: 30 | G35: 31 | H35: 31 | I35: 30 | J35: 31 | K35: 30 | L35: 31 | M35: 31 | N35: 28 | O35: 31 | P35: =SUM(D35:O35) -> 365 | Q35: =+P33/P35 -> 0
Q36: =+P34/P35 -> 0
Q37: =+ROUNDUP(Q36,1) -> 0
A38: ※新規指定又は住居追加から6月以上１年未満の間は、直近の6月における全利用者の延べ数を6月間の開所日数で除して得た数以上とする。
A39: 例）令和5年4月に住居追加した場合、9月末を以て、6月間の実績が出ることから、10月から新たな対象者数での算定が可能となる。
A40: ※新規指定又は住居追加から1年以上経過している場合は、直近1年間における全利用者の延べ数を1年間の開所日数で除して得た数以上とする。

Sheet ○○ホーム (24)
P1: （体制付表５－１９）
A2: 共同生活援助事業所における前年度平均利用者数等の算定資料 （兼夜間支援対象者数の根拠資料）
A4: 0.作成要領
A5: ・このシートは1住居に1シート作成してください。緑色のセルは選択、ピンク色のセルは入力が必要なセルです。
A6: ・全て入力が終わったら、「集計用シート」を確認し、当該数値を「体制付表5-25」へ転記してください。
A7: ・複数の住居がある場合、シートのコピーは行わず、予め用意したシートに入力してください。（数式が壊れ、うまく集計ができなくなります）
A9: 1.はじめに
A10: この住居は指定（住居追加）時点から６か月未満ですか？ | J10: =IF(H10="はい","区分毎の平均利用者数は推定値で入力してください。","") -> 
A11: =IF(H10="","",VLOOKUP(H10,Q11:S12,3,0)&"") ->  | J11: =IF(H11="","",VLOOKUP(H11,Q11:T12,4,0)&"") ->  | Q11: はい | T11: 直近6か月の利用状況を「3.利用状況」に入力してください。
A12: =IF(H11="","",VLOOKUP(H11,Q11:R12,2,0)&"") ->  | J12: 直近1年の利用状況を下表に入力してください | Q12: いいえ | R12: この住居は指定（住居追加）時点から1年以上経過していますか？ | S12: この住居は指定（住居追加）時点から6か月以上1年未満ですか？ | T12: 直近1年又は前年度の利用状況を下表に入力してください
A14: 2.事業所情報
A15: 事業所名 | J15: 平均利用者数合計 （自動計算） | L15: =IF(H10="はい",E17*0.9,+ROUNDUP(Q35,1)) -> 0 | M15: 夜間支援対象者数 （自動計算） | O15: =IF(H10="はい",E17*0.9,ROUND(Q37,0)) -> 0
A16: 住居名 | J16: 区分6 | L16: =ROUNDUP(SUMIFS($P:$P,$C:$C,6)/P35,1) -> 0 | M16: 区分5 | O16: =ROUNDUP(SUMIFS($P:$P,$C:$C,5)/P35,1) -> 0
A17: 住居定員 | J17: 区分4 | L17: =ROUNDUP(SUMIFS($P:$P,$C:$C,4)/P35,1) -> 0 | M17: 区分3 | O17: =ROUNDUP(SUMIFS($P:$P,$C:$C,3)/P35,1) -> 0
A18: 住居追加日 | J18: 区分2 | L18: =ROUNDUP(SUMIFS($P:$P,$C:$C,2)/P35,1) -> 0 | M18: 区分1以下 | O18: =ROUNDUP(SUMIFS($P:$P,$C:$C,"1以下")/P35,1) -> 0
L19: .
A21: 3.利用状況 | I21: 令和 | K21: 年度
A22: 月 | B22: サービス | C22: 区分 | D22: 4月 | E22: 5月 | F22: 6月 | G22: 7月 | H22: 8月 | I22: 9月 | J22: 10月 | K22: 11月 | L22: 12月 | M22: 1月 | N22: 2月 | O22: 3月 | P22: 合計
A23: 利用者①（氏名を記入） | P23: =SUM(D23:O23) -> 0
A24: 利用者②（氏名を記入） | P24: =SUM(D24:O24) -> 0
A25: 利用者③（氏名を記入） | P25: 0
A26: 利用者④（氏名を記入） | P26: 0
A27: 利用者⑤（氏名を記入） | P27: 0 | Q27: 6
A28: 利用者⑥（氏名を記入） | P28: 0 | Q28: 5
A29: 利用者⑦（氏名を記入） | P29: 0 | Q29: 4
A30: 利用者⑧（氏名を記入） | P30: 0 | Q30: 3
A31: 利用者⑨（氏名を記入） | P31: 0 | Q31: 2
A32: 利用者⑩（氏名を記入） | P32: 0 | Q32: 1以下
A33: 月の延べ利用者数 （自動計算） | D33: =SUM(D23:D32) -> 0 | E33: =SUM(E23:E32) -> 0 | F33: 0 | G33: 0 | H33: 0 | I33: 0 | J33: 0 | K33: 0 | L33: 0 | M33: 0 | N33: 0 | O33: 0 | P33: =SUM(D33:O33) -> 0
A34: 月の延べ利用者数（GH） （自動計算） | D34: =SUMIFS(D23:D32,$B$23:$B$32,"GH") -> 0 | E34: =SUMIFS(E23:E32,$B$23:$B$32,"GH") -> 0 | F34: 0 | G34: 0 | H34: 0 | I34: 0 | J34: 0 | K34: 0 | L34: 0 | M34: 0 | N34: 0 | O34: 0 | P34: =SUM(D34:O34) -> 0
A35: 月の開所日数 (直接入力) | D35: 30 | E35: 31 | F35: 30 | G35: 31 | H35: 31 | I35: 30 | J35: 31 | K35: 30 | L35: 31 | M35: 31 | N35: 28 | O35: 31 | P35: =SUM(D35:O35) -> 365 | Q35: =+P33/P35 -> 0
Q36: =+P34/P35 -> 0
Q37: =+ROUNDUP(Q36,1) -> 0
A38: ※新規指定又は住居追加から6月以上１年未満の間は、直近の6月における全利用者の延べ数を6月間の開所日数で除して得た数以上とする。
A39: 例）令和5年4月に住居追加した場合、9月末を以て、6月間の実績が出ることから、10月から新たな対象者数での算定が可能となる。
A40: ※新規指定又は住居追加から1年以上経過している場合は、直近1年間における全利用者の延べ数を1年間の開所日数で除して得た数以上とする。

Sheet ○○ホーム (25)
P1: （体制付表５－１９）
A2: 共同生活援助事業所における前年度平均利用者数等の算定資料 （兼夜間支援対象者数の根拠資料）
A4: 0.作成要領
A5: ・このシートは1住居に1シート作成してください。緑色のセルは選択、ピンク色のセルは入力が必要なセルです。
A6: ・全て入力が終わったら、「集計用シート」を確認し、当該数値を「体制付表5-25」へ転記してください。
A7: ・複数の住居がある場合、シートのコピーは行わず、予め用意したシートに入力してください。（数式が壊れ、うまく集計ができなくなります）
A9: 1.はじめに
A10: この住居は指定（住居追加）時点から６か月未満ですか？ | J10: =IF(H10="はい","区分毎の平均利用者数は推定値で入力してください。","") -> 
A11: =IF(H10="","",VLOOKUP(H10,Q11:S12,3,0)&"") ->  | J11: =IF(H11="","",VLOOKUP(H11,Q11:T12,4,0)&"") ->  | Q11: はい | T11: 直近6か月の利用状況を「3.利用状況」に入力してください。
A12: =IF(H11="","",VLOOKUP(H11,Q11:R12,2,0)&"") ->  | J12: 直近1年の利用状況を下表に入力してください | Q12: いいえ | R12: この住居は指定（住居追加）時点から1年以上経過していますか？ | S12: この住居は指定（住居追加）時点から6か月以上1年未満ですか？ | T12: 直近1年又は前年度の利用状況を下表に入力してください
A14: 2.事業所情報
A15: 事業所名 | J15: 平均利用者数合計 （自動計算） | L15: =IF(H10="はい",E17*0.9,+ROUNDUP(Q35,1)) -> 0 | M15: 夜間支援対象者数 （自動計算） | O15: =IF(H10="はい",E17*0.9,ROUND(Q37,0)) -> 0
A16: 住居名 | J16: 区分6 | L16: =ROUNDUP(SUMIFS($P:$P,$C:$C,6)/P35,1) -> 0 | M16: 区分5 | O16: =ROUNDUP(SUMIFS($P:$P,$C:$C,5)/P35,1) -> 0
A17: 住居定員 | J17: 区分4 | L17: =ROUNDUP(SUMIFS($P:$P,$C:$C,4)/P35,1) -> 0 | M17: 区分3 | O17: =ROUNDUP(SUMIFS($P:$P,$C:$C,3)/P35,1) -> 0
A18: 住居追加日 | J18: 区分2 | L18: =ROUNDUP(SUMIFS($P:$P,$C:$C,2)/P35,1) -> 0 | M18: 区分1以下 | O18: =ROUNDUP(SUMIFS($P:$P,$C:$C,"1以下")/P35,1) -> 0
L19: .
A21: 3.利用状況 | I21: 令和 | K21: 年度
A22: 月 | B22: サービス | C22: 区分 | D22: 4月 | E22: 5月 | F22: 6月 | G22: 7月 | H22: 8月 | I22: 9月 | J22: 10月 | K22: 11月 | L22: 12月 | M22: 1月 | N22: 2月 | O22: 3月 | P22: 合計
A23: 利用者①（氏名を記入） | P23: =SUM(D23:O23) -> 0
A24: 利用者②（氏名を記入） | P24: =SUM(D24:O24) -> 0
A25: 利用者③（氏名を記入） | P25: 0
A26: 利用者④（氏名を記入） | P26: 0
A27: 利用者⑤（氏名を記入） | P27: 0 | Q27: 6
A28: 利用者⑥（氏名を記入） | P28: 0 | Q28: 5
A29: 利用者⑦（氏名を記入） | P29: 0 | Q29: 4
A30: 利用者⑧（氏名を記入） | P30: 0 | Q30: 3
A31: 利用者⑨（氏名を記入） | P31: 0 | Q31: 2
A32: 利用者⑩（氏名を記入） | P32: 0 | Q32: 1以下
A33: 月の延べ利用者数 （自動計算） | D33: =SUM(D23:D32) -> 0 | E33: =SUM(E23:E32) -> 0 | F33: 0 | G33: 0 | H33: 0 | I33: 0 | J33: 0 | K33: 0 | L33: 0 | M33: 0 | N33: 0 | O33: 0 | P33: =SUM(D33:O33) -> 0
A34: 月の延べ利用者数（GH） （自動計算） | D34: =SUMIFS(D23:D32,$B$23:$B$32,"GH") -> 0 | E34: =SUMIFS(E23:E32,$B$23:$B$32,"GH") -> 0 | F34: 0 | G34: 0 | H34: 0 | I34: 0 | J34: 0 | K34: 0 | L34: 0 | M34: 0 | N34: 0 | O34: 0 | P34: =SUM(D34:O34) -> 0
A35: 月の開所日数 (直接入力) | D35: 30 | E35: 31 | F35: 30 | G35: 31 | H35: 31 | I35: 30 | J35: 31 | K35: 30 | L35: 31 | M35: 31 | N35: 28 | O35: 31 | P35: =SUM(D35:O35) -> 365 | Q35: =+P33/P35 -> 0
Q36: =+P34/P35 -> 0
Q37: =+ROUNDUP(Q36,1) -> 0
A38: ※新規指定又は住居追加から6月以上１年未満の間は、直近の6月における全利用者の延べ数を6月間の開所日数で除して得た数以上とする。
A39: 例）令和5年4月に住居追加した場合、9月末を以て、6月間の実績が出ることから、10月から新たな対象者数での算定が可能となる。
A40: ※新規指定又は住居追加から1年以上経過している場合は、直近1年間における全利用者の延べ数を1年間の開所日数で除して得た数以上とする。

Sheet ○○ホーム (26)
P1: （体制付表５－１９）
A2: 共同生活援助事業所における前年度平均利用者数等の算定資料 （兼夜間支援対象者数の根拠資料）
A4: 0.作成要領
A5: ・このシートは1住居に1シート作成してください。緑色のセルは選択、ピンク色のセルは入力が必要なセルです。
A6: ・全て入力が終わったら、「集計用シート」を確認し、当該数値を「体制付表5-25」へ転記してください。
A7: ・複数の住居がある場合、シートのコピーは行わず、予め用意したシートに入力してください。（数式が壊れ、うまく集計ができなくなります）
A9: 1.はじめに
A10: この住居は指定（住居追加）時点から６か月未満ですか？ | J10: =IF(H10="はい","区分毎の平均利用者数は推定値で入力してください。","") -> 
A11: =IF(H10="","",VLOOKUP(H10,Q11:S12,3,0)&"") ->  | J11: =IF(H11="","",VLOOKUP(H11,Q11:T12,4,0)&"") ->  | Q11: はい | T11: 直近6か月の利用状況を「3.利用状況」に入力してください。
A12: =IF(H11="","",VLOOKUP(H11,Q11:R12,2,0)&"") ->  | J12: 直近1年の利用状況を下表に入力してください | Q12: いいえ | R12: この住居は指定（住居追加）時点から1年以上経過していますか？ | S12: この住居は指定（住居追加）時点から6か月以上1年未満ですか？ | T12: 直近1年又は前年度の利用状況を下表に入力してください
A14: 2.事業所情報
A15: 事業所名 | J15: 平均利用者数合計 （自動計算） | L15: =IF(H10="はい",E17*0.9,+ROUNDUP(Q35,1)) -> 0 | M15: 夜間支援対象者数 （自動計算） | O15: =IF(H10="はい",E17*0.9,ROUND(Q37,0)) -> 0
A16: 住居名 | J16: 区分6 | L16: =ROUNDUP(SUMIFS($P:$P,$C:$C,6)/P35,1) -> 0 | M16: 区分5 | O16: =ROUNDUP(SUMIFS($P:$P,$C:$C,5)/P35,1) -> 0
A17: 住居定員 | J17: 区分4 | L17: =ROUNDUP(SUMIFS($P:$P,$C:$C,4)/P35,1) -> 0 | M17: 区分3 | O17: =ROUNDUP(SUMIFS($P:$P,$C:$C,3)/P35,1) -> 0
A18: 住居追加日 | J18: 区分2 | L18: =ROUNDUP(SUMIFS($P:$P,$C:$C,2)/P35,1) -> 0 | M18: 区分1以下 | O18: =ROUNDUP(SUMIFS($P:$P,$C:$C,"1以下")/P35,1) -> 0
L19: .
A21: 3.利用状況 | I21: 令和 | K21: 年度
A22: 月 | B22: サービス | C22: 区分 | D22: 4月 | E22: 5月 | F22: 6月 | G22: 7月 | H22: 8月 | I22: 9月 | J22: 10月 | K22: 11月 | L22: 12月 | M22: 1月 | N22: 2月 | O22: 3月 | P22: 合計
A23: 利用者①（氏名を記入） | P23: =SUM(D23:O23) -> 0
A24: 利用者②（氏名を記入） | P24: =SUM(D24:O24) -> 0
A25: 利用者③（氏名を記入） | P25: 0
A26: 利用者④（氏名を記入） | P26: 0
A27: 利用者⑤（氏名を記入） | P27: 0 | Q27: 6
A28: 利用者⑥（氏名を記入） | P28: 0 | Q28: 5
A29: 利用者⑦（氏名を記入） | P29: 0 | Q29: 4
A30: 利用者⑧（氏名を記入） | P30: 0 | Q30: 3
A31: 利用者⑨（氏名を記入） | P31: 0 | Q31: 2
A32: 利用者⑩（氏名を記入） | P32: 0 | Q32: 1以下
A33: 月の延べ利用者数 （自動計算） | D33: =SUM(D23:D32) -> 0 | E33: =SUM(E23:E32) -> 0 | F33: 0 | G33: 0 | H33: 0 | I33: 0 | J33: 0 | K33: 0 | L33: 0 | M33: 0 | N33: 0 | O33: 0 | P33: =SUM(D33:O33) -> 0
A34: 月の延べ利用者数（GH） （自動計算） | D34: =SUMIFS(D23:D32,$B$23:$B$32,"GH") -> 0 | E34: =SUMIFS(E23:E32,$B$23:$B$32,"GH") -> 0 | F34: 0 | G34: 0 | H34: 0 | I34: 0 | J34: 0 | K34: 0 | L34: 0 | M34: 0 | N34: 0 | O34: 0 | P34: =SUM(D34:O34) -> 0
A35: 月の開所日数 (直接入力) | D35: 30 | E35: 31 | F35: 30 | G35: 31 | H35: 31 | I35: 30 | J35: 31 | K35: 30 | L35: 31 | M35: 31 | N35: 28 | O35: 31 | P35: =SUM(D35:O35) -> 365 | Q35: =+P33/P35 -> 0
Q36: =+P34/P35 -> 0
Q37: =+ROUNDUP(Q36,1) -> 0
A38: ※新規指定又は住居追加から6月以上１年未満の間は、直近の6月における全利用者の延べ数を6月間の開所日数で除して得た数以上とする。
A39: 例）令和5年4月に住居追加した場合、9月末を以て、6月間の実績が出ることから、10月から新たな対象者数での算定が可能となる。
A40: ※新規指定又は住居追加から1年以上経過している場合は、直近1年間における全利用者の延べ数を1年間の開所日数で除して得た数以上とする。

Sheet ○○ホーム (27)
P1: （体制付表５－１９）
A2: 共同生活援助事業所における前年度平均利用者数等の算定資料 （兼夜間支援対象者数の根拠資料）
A4: 0.作成要領
A5: ・このシートは1住居に1シート作成してください。緑色のセルは選択、ピンク色のセルは入力が必要なセルです。
A6: ・全て入力が終わったら、「集計用シート」を確認し、当該数値を「体制付表5-25」へ転記してください。
A7: ・複数の住居がある場合、シートのコピーは行わず、予め用意したシートに入力してください。（数式が壊れ、うまく集計ができなくなります）
A9: 1.はじめに
A10: この住居は指定（住居追加）時点から６か月未満ですか？ | J10: =IF(H10="はい","区分毎の平均利用者数は推定値で入力してください。","") -> 
A11: =IF(H10="","",VLOOKUP(H10,Q11:S12,3,0)&"") ->  | J11: =IF(H11="","",VLOOKUP(H11,Q11:T12,4,0)&"") ->  | Q11: はい | T11: 直近6か月の利用状況を「3.利用状況」に入力してください。
A12: =IF(H11="","",VLOOKUP(H11,Q11:R12,2,0)&"") ->  | J12: 直近1年の利用状況を下表に入力してください | Q12: いいえ | R12: この住居は指定（住居追加）時点から1年以上経過していますか？ | S12: この住居は指定（住居追加）時点から6か月以上1年未満ですか？ | T12: 直近1年又は前年度の利用状況を下表に入力してください
A14: 2.事業所情報
A15: 事業所名 | J15: 平均利用者数合計 （自動計算） | L15: =IF(H10="はい",E17*0.9,+ROUNDUP(Q35,1)) -> 0 | M15: 夜間支援対象者数 （自動計算） | O15: =IF(H10="はい",E17*0.9,ROUND(Q37,0)) -> 0
A16: 住居名 | J16: 区分6 | L16: =ROUNDUP(SUMIFS($P:$P,$C:$C,6)/P35,1) -> 0 | M16: 区分5 | O16: =ROUNDUP(SUMIFS($P:$P,$C:$C,5)/P35,1) -> 0
A17: 住居定員 | J17: 区分4 | L17: =ROUNDUP(SUMIFS($P:$P,$C:$C,4)/P35,1) -> 0 | M17: 区分3 | O17: =ROUNDUP(SUMIFS($P:$P,$C:$C,3)/P35,1) -> 0
A18: 住居追加日 | J18: 区分2 | L18: =ROUNDUP(SUMIFS($P:$P,$C:$C,2)/P35,1) -> 0 | M18: 区分1以下 | O18: =ROUNDUP(SUMIFS($P:$P,$C:$C,"1以下")/P35,1) -> 0
L19: .
A21: 3.利用状況 | I21: 令和 | K21: 年度
A22: 月 | B22: サービス | C22: 区分 | D22: 4月 | E22: 5月 | F22: 6月 | G22: 7月 | H22: 8月 | I22: 9月 | J22: 10月 | K22: 11月 | L22: 12月 | M22: 1月 | N22: 2月 | O22: 3月 | P22: 合計
A23: 利用者①（氏名を記入） | P23: =SUM(D23:O23) -> 0
A24: 利用者②（氏名を記入） | P24: =SUM(D24:O24) -> 0
A25: 利用者③（氏名を記入） | P25: 0
A26: 利用者④（氏名を記入） | P26: 0
A27: 利用者⑤（氏名を記入） | P27: 0 | Q27: 6
A28: 利用者⑥（氏名を記入） | P28: 0 | Q28: 5
A29: 利用者⑦（氏名を記入） | P29: 0 | Q29: 4
A30: 利用者⑧（氏名を記入） | P30: 0 | Q30: 3
A31: 利用者⑨（氏名を記入） | P31: 0 | Q31: 2
A32: 利用者⑩（氏名を記入） | P32: 0 | Q32: 1以下
A33: 月の延べ利用者数 （自動計算） | D33: =SUM(D23:D32) -> 0 | E33: =SUM(E23:E32) -> 0 | F33: 0 | G33: 0 | H33: 0 | I33: 0 | J33: 0 | K33: 0 | L33: 0 | M33: 0 | N33: 0 | O33: 0 | P33: =SUM(D33:O33) -> 0
A34: 月の延べ利用者数（GH） （自動計算） | D34: =SUMIFS(D23:D32,$B$23:$B$32,"GH") -> 0 | E34: =SUMIFS(E23:E32,$B$23:$B$32,"GH") -> 0 | F34: 0 | G34: 0 | H34: 0 | I34: 0 | J34: 0 | K34: 0 | L34: 0 | M34: 0 | N34: 0 | O34: 0 | P34: =SUM(D34:O34) -> 0
A35: 月の開所日数 (直接入力) | D35: 30 | E35: 31 | F35: 30 | G35: 31 | H35: 31 | I35: 30 | J35: 31 | K35: 30 | L35: 31 | M35: 31 | N35: 28 | O35: 31 | P35: =SUM(D35:O35) -> 365 | Q35: =+P33/P35 -> 0
Q36: =+P34/P35 -> 0
Q37: =+ROUNDUP(Q36,1) -> 0
A38: ※新規指定又は住居追加から6月以上１年未満の間は、直近の6月における全利用者の延べ数を6月間の開所日数で除して得た数以上とする。
A39: 例）令和5年4月に住居追加した場合、9月末を以て、6月間の実績が出ることから、10月から新たな対象者数での算定が可能となる。
A40: ※新規指定又は住居追加から1年以上経過している場合は、直近1年間における全利用者の延べ数を1年間の開所日数で除して得た数以上とする。

Sheet ○○ホーム (28)
P1: （体制付表５－１９）
A2: 共同生活援助事業所における前年度平均利用者数等の算定資料 （兼夜間支援対象者数の根拠資料）
A4: 0.作成要領
A5: ・このシートは1住居に1シート作成してください。緑色のセルは選択、ピンク色のセルは入力が必要なセルです。
A6: ・全て入力が終わったら、「集計用シート」を確認し、当該数値を「体制付表5-25」へ転記してください。
A7: ・複数の住居がある場合、シートのコピーは行わず、予め用意したシートに入力してください。（数式が壊れ、うまく集計ができなくなります）
A9: 1.はじめに
A10: この住居は指定（住居追加）時点から６か月未満ですか？ | J10: =IF(H10="はい","区分毎の平均利用者数は推定値で入力してください。","") -> 
A11: =IF(H10="","",VLOOKUP(H10,Q11:S12,3,0)&"") ->  | J11: =IF(H11="","",VLOOKUP(H11,Q11:T12,4,0)&"") ->  | Q11: はい | T11: 直近6か月の利用状況を「3.利用状況」に入力してください。
A12: =IF(H11="","",VLOOKUP(H11,Q11:R12,2,0)&"") ->  | J12: 直近1年の利用状況を下表に入力してください | Q12: いいえ | R12: この住居は指定（住居追加）時点から1年以上経過していますか？ | S12: この住居は指定（住居追加）時点から6か月以上1年未満ですか？ | T12: 直近1年又は前年度の利用状況を下表に入力してください
A14: 2.事業所情報
A15: 事業所名 | J15: 平均利用者数合計 （自動計算） | L15: =IF(H10="はい",E17*0.9,+ROUNDUP(Q35,1)) -> 0 | M15: 夜間支援対象者数 （自動計算） | O15: =IF(H10="はい",E17*0.9,ROUND(Q37,0)) -> 0
A16: 住居名 | J16: 区分6 | L16: =ROUNDUP(SUMIFS($P:$P,$C:$C,6)/P35,1) -> 0 | M16: 区分5 | O16: =ROUNDUP(SUMIFS($P:$P,$C:$C,5)/P35,1) -> 0
A17: 住居定員 | J17: 区分4 | L17: =ROUNDUP(SUMIFS($P:$P,$C:$C,4)/P35,1) -> 0 | M17: 区分3 | O17: =ROUNDUP(SUMIFS($P:$P,$C:$C,3)/P35,1) -> 0
A18: 住居追加日 | J18: 区分2 | L18: =ROUNDUP(SUMIFS($P:$P,$C:$C,2)/P35,1) -> 0 | M18: 区分1以下 | O18: =ROUNDUP(SUMIFS($P:$P,$C:$C,"1以下")/P35,1) -> 0
L19: .
A21: 3.利用状況 | I21: 令和 | K21: 年度
A22: 月 | B22: サービス | C22: 区分 | D22: 4月 | E22: 5月 | F22: 6月 | G22: 7月 | H22: 8月 | I22: 9月 | J22: 10月 | K22: 11月 | L22: 12月 | M22: 1月 | N22: 2月 | O22: 3月 | P22: 合計
A23: 利用者①（氏名を記入） | P23: =SUM(D23:O23) -> 0
A24: 利用者②（氏名を記入） | P24: =SUM(D24:O24) -> 0
A25: 利用者③（氏名を記入） | P25: 0
A26: 利用者④（氏名を記入） | P26: 0
A27: 利用者⑤（氏名を記入） | P27: 0 | Q27: 6
A28: 利用者⑥（氏名を記入） | P28: 0 | Q28: 5
A29: 利用者⑦（氏名を記入） | P29: 0 | Q29: 4
A30: 利用者⑧（氏名を記入） | P30: 0 | Q30: 3
A31: 利用者⑨（氏名を記入） | P31: 0 | Q31: 2
A32: 利用者⑩（氏名を記入） | P32: 0 | Q32: 1以下
A33: 月の延べ利用者数 （自動計算） | D33: =SUM(D23:D32) -> 0 | E33: =SUM(E23:E32) -> 0 | F33: 0 | G33: 0 | H33: 0 | I33: 0 | J33: 0 | K33: 0 | L33: 0 | M33: 0 | N33: 0 | O33: 0 | P33: =SUM(D33:O33) -> 0
A34: 月の延べ利用者数（GH） （自動計算） | D34: =SUMIFS(D23:D32,$B$23:$B$32,"GH") -> 0 | E34: =SUMIFS(E23:E32,$B$23:$B$32,"GH") -> 0 | F34: 0 | G34: 0 | H34: 0 | I34: 0 | J34: 0 | K34: 0 | L34: 0 | M34: 0 | N34: 0 | O34: 0 | P34: =SUM(D34:O34) -> 0
A35: 月の開所日数 (直接入力) | D35: 30 | E35: 31 | F35: 30 | G35: 31 | H35: 31 | I35: 30 | J35: 31 | K35: 30 | L35: 31 | M35: 31 | N35: 28 | O35: 31 | P35: =SUM(D35:O35) -> 365 | Q35: =+P33/P35 -> 0
Q36: =+P34/P35 -> 0
Q37: =+ROUNDUP(Q36,1) -> 0
A38: ※新規指定又は住居追加から6月以上１年未満の間は、直近の6月における全利用者の延べ数を6月間の開所日数で除して得た数以上とする。
A39: 例）令和5年4月に住居追加した場合、9月末を以て、6月間の実績が出ることから、10月から新たな対象者数での算定が可能となる。
A40: ※新規指定又は住居追加から1年以上経過している場合は、直近1年間における全利用者の延べ数を1年間の開所日数で除して得た数以上とする。

Sheet ○○ホーム (29)
P1: （体制付表５－１９）
A2: 共同生活援助事業所における前年度平均利用者数等の算定資料 （兼夜間支援対象者数の根拠資料）
A4: 0.作成要領
A5: ・このシートは1住居に1シート作成してください。緑色のセルは選択、ピンク色のセルは入力が必要なセルです。
A6: ・全て入力が終わったら、「集計用シート」を確認し、当該数値を「体制付表5-25」へ転記してください。
A7: ・複数の住居がある場合、シートのコピーは行わず、予め用意したシートに入力してください。（数式が壊れ、うまく集計ができなくなります）
A9: 1.はじめに
A10: この住居は指定（住居追加）時点から６か月未満ですか？ | J10: =IF(H10="はい","区分毎の平均利用者数は推定値で入力してください。","") -> 
A11: =IF(H10="","",VLOOKUP(H10,Q11:S12,3,0)&"") ->  | J11: =IF(H11="","",VLOOKUP(H11,Q11:T12,4,0)&"") ->  | Q11: はい | T11: 直近6か月の利用状況を「3.利用状況」に入力してください。
A12: =IF(H11="","",VLOOKUP(H11,Q11:R12,2,0)&"") ->  | J12: 直近1年の利用状況を下表に入力してください | Q12: いいえ | R12: この住居は指定（住居追加）時点から1年以上経過していますか？ | S12: この住居は指定（住居追加）時点から6か月以上1年未満ですか？ | T12: 直近1年又は前年度の利用状況を下表に入力してください
A14: 2.事業所情報
A15: 事業所名 | J15: 平均利用者数合計 （自動計算） | L15: =IF(H10="はい",E17*0.9,+ROUNDUP(Q35,1)) -> 0 | M15: 夜間支援対象者数 （自動計算） | O15: =IF(H10="はい",E17*0.9,ROUND(Q37,0)) -> 0
A16: 住居名 | J16: 区分6 | L16: =ROUNDUP(SUMIFS($P:$P,$C:$C,6)/P35,1) -> 0 | M16: 区分5 | O16: =ROUNDUP(SUMIFS($P:$P,$C:$C,5)/P35,1) -> 0
A17: 住居定員 | J17: 区分4 | L17: =ROUNDUP(SUMIFS($P:$P,$C:$C,4)/P35,1) -> 0 | M17: 区分3 | O17: =ROUNDUP(SUMIFS($P:$P,$C:$C,3)/P35,1) -> 0
A18: 住居追加日 | J18: 区分2 | L18: =ROUNDUP(SUMIFS($P:$P,$C:$C,2)/P35,1) -> 0 | M18: 区分1以下 | O18: =ROUNDUP(SUMIFS($P:$P,$C:$C,"1以下")/P35,1) -> 0
L19: .
A21: 3.利用状況 | I21: 令和 | K21: 年度
A22: 月 | B22: サービス | C22: 区分 | D22: 4月 | E22: 5月 | F22: 6月 | G22: 7月 | H22: 8月 | I22: 9月 | J22: 10月 | K22: 11月 | L22: 12月 | M22: 1月 | N22: 2月 | O22: 3月 | P22: 合計
A23: 利用者①（氏名を記入） | P23: =SUM(D23:O23) -> 0
A24: 利用者②（氏名を記入） | P24: =SUM(D24:O24) -> 0
A25: 利用者③（氏名を記入） | P25: 0
A26: 利用者④（氏名を記入） | P26: 0
A27: 利用者⑤（氏名を記入） | P27: 0 | Q27: 6
A28: 利用者⑥（氏名を記入） | P28: 0 | Q28: 5
A29: 利用者⑦（氏名を記入） | P29: 0 | Q29: 4
A30: 利用者⑧（氏名を記入） | P30: 0 | Q30: 3
A31: 利用者⑨（氏名を記入） | P31: 0 | Q31: 2
A32: 利用者⑩（氏名を記入） | P32: 0 | Q32: 1以下
A33: 月の延べ利用者数 （自動計算） | D33: =SUM(D23:D32) -> 0 | E33: =SUM(E23:E32) -> 0 | F33: 0 | G33: 0 | H33: 0 | I33: 0 | J33: 0 | K33: 0 | L33: 0 | M33: 0 | N33: 0 | O33: 0 | P33: =SUM(D33:O33) -> 0
A34: 月の延べ利用者数（GH） （自動計算） | D34: =SUMIFS(D23:D32,$B$23:$B$32,"GH") -> 0 | E34: =SUMIFS(E23:E32,$B$23:$B$32,"GH") -> 0 | F34: 0 | G34: 0 | H34: 0 | I34: 0 | J34: 0 | K34: 0 | L34: 0 | M34: 0 | N34: 0 | O34: 0 | P34: =SUM(D34:O34) -> 0
A35: 月の開所日数 (直接入力) | D35: 30 | E35: 31 | F35: 30 | G35: 31 | H35: 31 | I35: 30 | J35: 31 | K35: 30 | L35: 31 | M35: 31 | N35: 28 | O35: 31 | P35: =SUM(D35:O35) -> 365 | Q35: =+P33/P35 -> 0
Q36: =+P34/P35 -> 0
Q37: =+ROUNDUP(Q36,1) -> 0
A38: ※新規指定又は住居追加から6月以上１年未満の間は、直近の6月における全利用者の延べ数を6月間の開所日数で除して得た数以上とする。
A39: 例）令和5年4月に住居追加した場合、9月末を以て、6月間の実績が出ることから、10月から新たな対象者数での算定が可能となる。
A40: ※新規指定又は住居追加から1年以上経過している場合は、直近1年間における全利用者の延べ数を1年間の開所日数で除して得た数以上とする。

Sheet ○○ホーム (30)
P1: （体制付表５－１９）
A2: 共同生活援助事業所における前年度平均利用者数等の算定資料 （兼夜間支援対象者数の根拠資料）
A4: 0.作成要領
A5: ・このシートは1住居に1シート作成してください。緑色のセルは選択、ピンク色のセルは入力が必要なセルです。
A6: ・全て入力が終わったら、「集計用シート」を確認し、当該数値を「体制付表5-25」へ転記してください。
A7: ・複数の住居がある場合、シートのコピーは行わず、予め用意したシートに入力してください。（数式が壊れ、うまく集計ができなくなります）
A9: 1.はじめに
A10: この住居は指定（住居追加）時点から６か月未満ですか？ | J10: =IF(H10="はい","区分毎の平均利用者数は推定値で入力してください。","") -> 
A11: =IF(H10="","",VLOOKUP(H10,Q11:S12,3,0)&"") ->  | J11: =IF(H11="","",VLOOKUP(H11,Q11:T12,4,0)&"") ->  | Q11: はい | T11: 直近6か月の利用状況を「3.利用状況」に入力してください。
A12: =IF(H11="","",VLOOKUP(H11,Q11:R12,2,0)&"") ->  | J12: 直近1年の利用状況を下表に入力してください | Q12: いいえ | R12: この住居は指定（住居追加）時点から1年以上経過していますか？ | S12: この住居は指定（住居追加）時点から6か月以上1年未満ですか？ | T12: 直近1年又は前年度の利用状況を下表に入力してください
A14: 2.事業所情報
A15: 事業所名 | J15: 平均利用者数合計 （自動計算） | L15: =IF(H10="はい",E17*0.9,+ROUNDUP(Q35,1)) -> 0 | M15: 夜間支援対象者数 （自動計算） | O15: =IF(H10="はい",E17*0.9,ROUND(Q37,0)) -> 0
A16: 住居名 | J16: 区分6 | L16: =ROUNDUP(SUMIFS($P:$P,$C:$C,6)/P35,1) -> 0 | M16: 区分5 | O16: =ROUNDUP(SUMIFS($P:$P,$C:$C,5)/P35,1) -> 0
A17: 住居定員 | J17: 区分4 | L17: =ROUNDUP(SUMIFS($P:$P,$C:$C,4)/P35,1) -> 0 | M17: 区分3 | O17: =ROUNDUP(SUMIFS($P:$P,$C:$C,3)/P35,1) -> 0
A18: 住居追加日 | J18: 区分2 | L18: =ROUNDUP(SUMIFS($P:$P,$C:$C,2)/P35,1) -> 0 | M18: 区分1以下 | O18: =ROUNDUP(SUMIFS($P:$P,$C:$C,"1以下")/P35,1) -> 0
L19: .
A21: 3.利用状況 | I21: 令和 | K21: 年度
A22: 月 | B22: サービス | C22: 区分 | D22: 4月 | E22: 5月 | F22: 6月 | G22: 7月 | H22: 8月 | I22: 9月 | J22: 10月 | K22: 11月 | L22: 12月 | M22: 1月 | N22: 2月 | O22: 3月 | P22: 合計
A23: 利用者①（氏名を記入） | P23: =SUM(D23:O23) -> 0
A24: 利用者②（氏名を記入） | P24: =SUM(D24:O24) -> 0
A25: 利用者③（氏名を記入） | P25: 0
A26: 利用者④（氏名を記入） | P26: 0
A27: 利用者⑤（氏名を記入） | P27: 0 | Q27: 6
A28: 利用者⑥（氏名を記入） | P28: 0 | Q28: 5
A29: 利用者⑦（氏名を記入） | P29: 0 | Q29: 4
A30: 利用者⑧（氏名を記入） | P30: 0 | Q30: 3
A31: 利用者⑨（氏名を記入） | P31: 0 | Q31: 2
A32: 利用者⑩（氏名を記入） | P32: 0 | Q32: 1以下
A33: 月の延べ利用者数 （自動計算） | D33: =SUM(D23:D32) -> 0 | E33: =SUM(E23:E32) -> 0 | F33: 0 | G33: 0 | H33: 0 | I33: 0 | J33: 0 | K33: 0 | L33: 0 | M33: 0 | N33: 0 | O33: 0 | P33: =SUM(D33:O33) -> 0
A34: 月の延べ利用者数（GH） （自動計算） | D34: =SUMIFS(D23:D32,$B$23:$B$32,"GH") -> 0 | E34: =SUMIFS(E23:E32,$B$23:$B$32,"GH") -> 0 | F34: 0 | G34: 0 | H34: 0 | I34: 0 | J34: 0 | K34: 0 | L34: 0 | M34: 0 | N34: 0 | O34: 0 | P34: =SUM(D34:O34) -> 0
A35: 月の開所日数 (直接入力) | D35: 30 | E35: 31 | F35: 30 | G35: 31 | H35: 31 | I35: 30 | J35: 31 | K35: 30 | L35: 31 | M35: 31 | N35: 28 | O35: 31 | P35: =SUM(D35:O35) -> 365 | Q35: =+P33/P35 -> 0
Q36: =+P34/P35 -> 0
Q37: =+ROUNDUP(Q36,1) -> 0
A38: ※新規指定又は住居追加から6月以上１年未満の間は、直近の6月における全利用者の延べ数を6月間の開所日数で除して得た数以上とする。
A39: 例）令和5年4月に住居追加した場合、9月末を以て、6月間の実績が出ることから、10月から新たな対象者数での算定が可能となる。
A40: ※新規指定又は住居追加から1年以上経過している場合は、直近1年間における全利用者の延べ数を1年間の開所日数で除して得た数以上とする。

Sheet ○○ホーム (31)
P1: （体制付表５－１９）
A2: 共同生活援助事業所における前年度平均利用者数等の算定資料 （兼夜間支援対象者数の根拠資料）
A4: 0.作成要領
A5: ・このシートは1住居に1シート作成してください。緑色のセルは選択、ピンク色のセルは入力が必要なセルです。
A6: ・全て入力が終わったら、「集計用シート」を確認し、当該数値を「体制付表5-25」へ転記してください。
A7: ・複数の住居がある場合、シートのコピーは行わず、予め用意したシートに入力してください。（数式が壊れ、うまく集計ができなくなります）
A9: 1.はじめに
A10: この住居は指定（住居追加）時点から６か月未満ですか？ | J10: =IF(H10="はい","区分毎の平均利用者数は推定値で入力してください。","") -> 
A11: =IF(H10="","",VLOOKUP(H10,Q11:S12,3,0)&"") ->  | J11: =IF(H11="","",VLOOKUP(H11,Q11:T12,4,0)&"") ->  | Q11: はい | T11: 直近6か月の利用状況を「3.利用状況」に入力してください。
A12: =IF(H11="","",VLOOKUP(H11,Q11:R12,2,0)&"") ->  | J12: 直近1年の利用状況を下表に入力してください | Q12: いいえ | R12: この住居は指定（住居追加）時点から1年以上経過していますか？ | S12: この住居は指定（住居追加）時点から6か月以上1年未満ですか？ | T12: 直近1年又は前年度の利用状況を下表に入力してください
A14: 2.事業所情報
A15: 事業所名 | J15: 平均利用者数合計 （自動計算） | L15: =IF(H10="はい",E17*0.9,+ROUNDUP(Q35,1)) -> 0 | M15: 夜間支援対象者数 （自動計算） | O15: =IF(H10="はい",E17*0.9,ROUND(Q37,0)) -> 0
A16: 住居名 | J16: 区分6 | L16: =ROUNDUP(SUMIFS($P:$P,$C:$C,6)/P35,1) -> 0 | M16: 区分5 | O16: =ROUNDUP(SUMIFS($P:$P,$C:$C,5)/P35,1) -> 0
A17: 住居定員 | J17: 区分4 | L17: =ROUNDUP(SUMIFS($P:$P,$C:$C,4)/P35,1) -> 0 | M17: 区分3 | O17: =ROUNDUP(SUMIFS($P:$P,$C:$C,3)/P35,1) -> 0
A18: 住居追加日 | J18: 区分2 | L18: =ROUNDUP(SUMIFS($P:$P,$C:$C,2)/P35,1) -> 0 | M18: 区分1以下 | O18: =ROUNDUP(SUMIFS($P:$P,$C:$C,"1以下")/P35,1) -> 0
L19: .
A21: 3.利用状況 | I21: 令和 | K21: 年度
A22: 月 | B22: サービス | C22: 区分 | D22: 4月 | E22: 5月 | F22: 6月 | G22: 7月 | H22: 8月 | I22: 9月 | J22: 10月 | K22: 11月 | L22: 12月 | M22: 1月 | N22: 2月 | O22: 3月 | P22: 合計
A23: 利用者①（氏名を記入） | P23: =SUM(D23:O23) -> 0
A24: 利用者②（氏名を記入） | P24: =SUM(D24:O24) -> 0
A25: 利用者③（氏名を記入） | P25: 0
A26: 利用者④（氏名を記入） | P26: 0
A27: 利用者⑤（氏名を記入） | P27: 0 | Q27: 6
A28: 利用者⑥（氏名を記入） | P28: 0 | Q28: 5
A29: 利用者⑦（氏名を記入） | P29: 0 | Q29: 4
A30: 利用者⑧（氏名を記入） | P30: 0 | Q30: 3
A31: 利用者⑨（氏名を記入） | P31: 0 | Q31: 2
A32: 利用者⑩（氏名を記入） | P32: 0 | Q32: 1以下
A33: 月の延べ利用者数 （自動計算） | D33: =SUM(D23:D32) -> 0 | E33: =SUM(E23:E32) -> 0 | F33: 0 | G33: 0 | H33: 0 | I33: 0 | J33: 0 | K33: 0 | L33: 0 | M33: 0 | N33: 0 | O33: 0 | P33: =SUM(D33:O33) -> 0
A34: 月の延べ利用者数（GH） （自動計算） | D34: =SUMIFS(D23:D32,$B$23:$B$32,"GH") -> 0 | E34: =SUMIFS(E23:E32,$B$23:$B$32,"GH") -> 0 | F34: 0 | G34: 0 | H34: 0 | I34: 0 | J34: 0 | K34: 0 | L34: 0 | M34: 0 | N34: 0 | O34: 0 | P34: =SUM(D34:O34) -> 0
A35: 月の開所日数 (直接入力) | D35: 30 | E35: 31 | F35: 30 | G35: 31 | H35: 31 | I35: 30 | J35: 31 | K35: 30 | L35: 31 | M35: 31 | N35: 28 | O35: 31 | P35: =SUM(D35:O35) -> 365 | Q35: =+P33/P35 -> 0
Q36: =+P34/P35 -> 0
Q37: =+ROUNDUP(Q36,1) -> 0
A38: ※新規指定又は住居追加から6月以上１年未満の間は、直近の6月における全利用者の延べ数を6月間の開所日数で除して得た数以上とする。
A39: 例）令和5年4月に住居追加した場合、9月末を以て、6月間の実績が出ることから、10月から新たな対象者数での算定が可能となる。
A40: ※新規指定又は住居追加から1年以上経過している場合は、直近1年間における全利用者の延べ数を1年間の開所日数で除して得た数以上とする。

Sheet ○○ホーム (32)
P1: （体制付表５－１９）
A2: 共同生活援助事業所における前年度平均利用者数等の算定資料 （兼夜間支援対象者数の根拠資料）
A4: 0.作成要領
A5: ・このシートは1住居に1シート作成してください。緑色のセルは選択、ピンク色のセルは入力が必要なセルです。
A6: ・全て入力が終わったら、「集計用シート」を確認し、当該数値を「体制付表5-25」へ転記してください。
A7: ・複数の住居がある場合、シートのコピーは行わず、予め用意したシートに入力してください。（数式が壊れ、うまく集計ができなくなります）
A9: 1.はじめに
A10: この住居は指定（住居追加）時点から６か月未満ですか？ | J10: =IF(H10="はい","区分毎の平均利用者数は推定値で入力してください。","") -> 
A11: =IF(H10="","",VLOOKUP(H10,Q11:S12,3,0)&"") ->  | J11: =IF(H11="","",VLOOKUP(H11,Q11:T12,4,0)&"") ->  | Q11: はい | T11: 直近6か月の利用状況を「3.利用状況」に入力してください。
A12: =IF(H11="","",VLOOKUP(H11,Q11:R12,2,0)&"") ->  | J12: 直近1年の利用状況を下表に入力してください | Q12: いいえ | R12: この住居は指定（住居追加）時点から1年以上経過していますか？ | S12: この住居は指定（住居追加）時点から6か月以上1年未満ですか？ | T12: 直近1年又は前年度の利用状況を下表に入力してください
A14: 2.事業所情報
A15: 事業所名 | J15: 平均利用者数合計 （自動計算） | L15: =IF(H10="はい",E17*0.9,+ROUNDUP(Q35,1)) -> 0 | M15: 夜間支援対象者数 （自動計算） | O15: =IF(H10="はい",E17*0.9,ROUND(Q37,0)) -> 0
A16: 住居名 | J16: 区分6 | L16: =ROUNDUP(SUMIFS($P:$P,$C:$C,6)/P35,1) -> 0 | M16: 区分5 | O16: =ROUNDUP(SUMIFS($P:$P,$C:$C,5)/P35,1) -> 0
A17: 住居定員 | J17: 区分4 | L17: =ROUNDUP(SUMIFS($P:$P,$C:$C,4)/P35,1) -> 0 | M17: 区分3 | O17: =ROUNDUP(SUMIFS($P:$P,$C:$C,3)/P35,1) -> 0
A18: 住居追加日 | J18: 区分2 | L18: =ROUNDUP(SUMIFS($P:$P,$C:$C,2)/P35,1) -> 0 | M18: 区分1以下 | O18: =ROUNDUP(SUMIFS($P:$P,$C:$C,"1以下")/P35,1) -> 0
L19: .
A21: 3.利用状況 | I21: 令和 | K21: 年度
A22: 月 | B22: サービス | C22: 区分 | D22: 4月 | E22: 5月 | F22: 6月 | G22: 7月 | H22: 8月 | I22: 9月 | J22: 10月 | K22: 11月 | L22: 12月 | M22: 1月 | N22: 2月 | O22: 3月 | P22: 合計
A23: 利用者①（氏名を記入） | P23: =SUM(D23:O23) -> 0
A24: 利用者②（氏名を記入） | P24: =SUM(D24:O24) -> 0
A25: 利用者③（氏名を記入） | P25: 0
A26: 利用者④（氏名を記入） | P26: 0
A27: 利用者⑤（氏名を記入） | P27: 0 | Q27: 6
A28: 利用者⑥（氏名を記入） | P28: 0 | Q28: 5
A29: 利用者⑦（氏名を記入） | P29: 0 | Q29: 4
A30: 利用者⑧（氏名を記入） | P30: 0 | Q30: 3
A31: 利用者⑨（氏名を記入） | P31: 0 | Q31: 2
A32: 利用者⑩（氏名を記入） | P32: 0 | Q32: 1以下
A33: 月の延べ利用者数 （自動計算） | D33: =SUM(D23:D32) -> 0 | E33: =SUM(E23:E32) -> 0 | F33: 0 | G33: 0 | H33: 0 | I33: 0 | J33: 0 | K33: 0 | L33: 0 | M33: 0 | N33: 0 | O33: 0 | P33: =SUM(D33:O33) -> 0
A34: 月の延べ利用者数（GH） （自動計算） | D34: =SUMIFS(D23:D32,$B$23:$B$32,"GH") -> 0 | E34: =SUMIFS(E23:E32,$B$23:$B$32,"GH") -> 0 | F34: 0 | G34: 0 | H34: 0 | I34: 0 | J34: 0 | K34: 0 | L34: 0 | M34: 0 | N34: 0 | O34: 0 | P34: =SUM(D34:O34) -> 0
A35: 月の開所日数 (直接入力) | D35: 30 | E35: 31 | F35: 30 | G35: 31 | H35: 31 | I35: 30 | J35: 31 | K35: 30 | L35: 31 | M35: 31 | N35: 28 | O35: 31 | P35: =SUM(D35:O35) -> 365 | Q35: =+P33/P35 -> 0
Q36: =+P34/P35 -> 0
Q37: =+ROUNDUP(Q36,1) -> 0
A38: ※新規指定又は住居追加から6月以上１年未満の間は、直近の6月における全利用者の延べ数を6月間の開所日数で除して得た数以上とする。
A39: 例）令和5年4月に住居追加した場合、9月末を以て、6月間の実績が出ることから、10月から新たな対象者数での算定が可能となる。
A40: ※新規指定又は住居追加から1年以上経過している場合は、直近1年間における全利用者の延べ数を1年間の開所日数で除して得た数以上とする。
